{"text_format":"1","workbook":"xlsx","n_sheets":13,"sheets":["Menu","Inputs","Monthly Average Bill","Tariff Comparison","FAQ","Rates Table","Workings High","Workings Low","Rates SPU - New","Rates SPU - Current","Mapping","Lists","Notes on updates"],"not_rendered":{"charts":4,"images":2,"macros":1,"external_links":0,"defined_names":148,"comments":1,"pivot_tables":0},"unopened":[],"bounds":{"document_bytes":16777216,"sheet_cells":100000,"rows_first":2000,"rows_last":500,"rows_between":2000,"halvings":0,"cell_chars":16384,"cell_head_chars":4096},"cells_cut":0,"cells_raw":0,"read":"whole","date_system":"1900"}

{"sheet":"Menu","index":0,"n_rows":22,"n_cols":5,"rows_kept":22,"cut":false,"hidden":false,"merged":[[7,1,7,18],[21,3,21,4]]}
[]
[]
[]
[]
[]
[]
[]
[null,"Tariff Comparison Tool (TCT)\n2024/25 retail tariff plan"]
[]
[]
[]
[]
[]
[null,null,null,null,"Compare 2024/25 Tariff Book with the proposed 2024/25 Retail Tariff Plan"]
[null,null,null,null,"Only for SPU tariffs"]
[]
[]
[]
[]
[]
[null,null,"Version:","6.12-RTP"]
[null,null,"Last updated:","2024-08-07"]

{"sheet":"Inputs","index":1,"n_rows":42,"n_cols":19,"rows_kept":42,"cut":false,"hidden":false,"merged":[[42,15,42,17],[31,6,31,8],[7,6,7,7],[8,6,8,7],[9,6,9,7],[20,15,35,24],[22,3,22,6],[26,6,26,8],[26,9,26,11],[26,12,27,12],[34,6,34,8],[34,9,34,11]]}
[]
[null,null,null,null,null,null,null,null,null,null,null,null,null,null,null,null,null,null,"Version 6.12    7 August 2024"]
[]
[null,"Tariff Input Sheet"]
[]
[null,"Please enter the required information below:"]
[]
[null,null,null,"Customer Name",null,null,"Customer Name",null,"Enter the customer name as it is displayed on the rates bill."]
[null,null,null,"Account number ",null,null,"Account Number",null,"Enter the account number as it is displayed on the rates bill."]
[null,null,null,"Point of delivery ID",null,null,"Point of delivery",null,"Enter the Point of Delivery ID as it is displayed on the rates bill."]
[null,null,null,"Number of PODs",null,null,null,1]
[]
[null,null,null,"Select your tariff classification",null,null,null,null,"Select either Non-Local Authority (Eskom), Local Authority (Municipality)"]
[]
[null,null,null,"Customer Category",null,null,"Small Power User"]
[]
[null,null,null,"Select  supply size",null,null,null,null,"Select the appropriate customer supply size (kVA)"]
[]
[null,null,null,"Select tariff",null,null,null,null,"Drop box selection driven by the supply voltage inputs"]
[]
[null,null,null,"Select supply voltage",null,null,{"$f":"Selected_Supply_Voltage","v":"< 500V"},null,null,null,null,null,null,null,null,"Calculations are based on the average number of days per month:\nAve days per month  = Total number of days in year (365) / months (12)\n                                     = 30.416667"]
[]
[null,null,null,"Enter average monthly consumption for SPU tariffs excluding Homeflex",null,null,null,null,"kWh / month"]
[]
[null,null,null,"For Homeflex tariff enter average monthly consumption below in cell M30:"]
[]
[null,null,null,null,null,null,"High demand season [Jun - Aug]",null,null,"Low demand season [Sep - May]",null,null,"Total energy"]
[null,null,null,null,null,null,"Peak energy","Standard energy","Off-peak energy","Peak energy","Standard energy","Off-peak energy"]
[null,null,null,null,null,null,"kWh / month","kWh / month","kWh / month","kWh / month","kWh / month","kWh / month","kWh / month"]
[null,null,null,null,null,null,{"$f":"IFERROR(Homeflex_Total_Energy*G37,\"\")","v":0},0,0,0,0,0]
[]
[null,null,null,"Select profile to use",null,null,"Use assumed average urban residential profile"]
[]
[]
[null,null,null,null,null,null,"High demand season [Jun - Aug]",null,null,"Low demand season [Sep - May]"]
[null,null,null,null,null,null,"Peak energy","Standard energy","Off-peak energy","Peak energy","Standard energy","Off-peak energy"]
[null,null,null,null,null,null,{"$f":"IF($G$32=\"Use assumed average urban residential profile\",31%,\"\")","v":0.31},{"$f":"IF($G$32=\"Use assumed average urban residential profile\",49%,\"\")","v":0.49},{"$f":"IF($G$32=\"Use assumed average urban residential profile\",20%,\"\")","v":0.2},{"$f":"IF($G$32=\"Use assumed average urban residential profile\",30%,\"\")","v":0.3},{"$f":"IF($G$32=\"Use assumed average urban residential profile\",49%,\"\")","v":0.49},{"$f":"IF($G$32=\"Use assumed average urban residential profile\",21%,\"\")","v":0.21},{"$f":"(SUM(G37:I37)+SUM(J37:L37))/2","v":1},null,null,"M37 should add up to 100%"]
[]
[]
[]
[null,null,null,"Use assumed average urban residential profile"]
[null,null,null,"Use customer 's own urban residential profile"]

{"sheet":"Monthly Average Bill","index":2,"n_rows":76,"n_cols":18,"rows_kept":76,"cut":false,"hidden":false,"merged":[[9,13,9,14],[9,5,9,6],[4,7,4,8],[4,16,4,17]]}
[]
[]
[]
[null,"Monthly Average Bill",null,null,null,null,null,null,{"$f":"D10","v":"Landrate 1"},null,{"$f":"B4","v":"Monthly Average Bill"},null,null,null,null,null,null,{"$f":"I4","v":"Landrate 1"}]
[null,null,null,null,null,null,null,{"$f":"IF(Dropdown_Category = 2, \"Proposed RTP tariff is \" & VLOOKUP(Selected_Base_Tariff, Mapping!$B$8:$D$34, 3, FALSE), \"\")","v":""},null,null,null,null,null,null,null,null,{"$f":"IF(Dropdown_Category = 2, \"Proposed RTP tariff is \" & VLOOKUP(Selected_Base_Tariff, Mapping!$B$8:$D$34, 3, FALSE), \"\")","v":""}]
[null,"High Demand",null,null,null,null,null,null,null,null,"Low Demand"]
[]
[null,"Customer Name",null,{"$f":"Customer_Name","v":"Customer Name"},null,null,null,null,null,null,{"$f":"B8","v":"Customer Name"},null,{"$f":"D8","v":"Customer Name"}]
[null,{"$f":"Inputs!D10","v":"Point of delivery ID"},null,{"$f":"Delivery_ID","v":"Point of delivery"},null,null,null,null,null,null,{"$f":"B9","v":"Point of delivery ID"},null,{"$f":"D9","v":"Point of delivery"}]
[null,null,"Tariff",{"$f":"Selected_Base_Tariff","v":"Landrate 1"},null,"Ave Monthly Consumption for SPU tariffs excluding Homeflex",null,{"$f":"IF(Selected_Customer_Category_ID=1,SPU_Annual_Total_Energy,0)","v":0},"kWh",null,null,{"$f":"C10","v":"Tariff"},{"$f":"D10","v":"Landrate 1"},{"$f":"F10","v":"Ave Monthly Consumption for SPU tariffs excluding Homeflex"},null,{"$f":"H10","v":0},"kWh"]
[null,null,null,null,null,"Ave Homeflex Monthly Peak",null,{"$f":"IF(Selected_Customer_Category_ID=1,Homeflex_Peak_Energy_High,0)","v":0},"kWh",null,null,null,null,"Ave Homeflex Monthly Peak",null,{"$f":"IF(Selected_Customer_Category_ID=1,Homeflex_Peak_Energy_Low,0)","v":0},"kWh"]
[null,null,null,null,null,"Ave Homeflex Monthly Standard",null,{"$f":"IF(Selected_Customer_Category_ID=1,Homeflex_Standard_Energy_High,0)","v":0},"kWh",null,null,null,null,"Ave Homeflex Monthly Standard",null,{"$f":"IF(Selected_Customer_Category_ID=1,Homeflex_Standard_Energy_Low,0)","v":0},"kWh"]
[null,null,null,null,null,"Ave Homeflex Monthly Off-peak",null,{"$f":"IF(Selected_Customer_Category_ID=1,Homeflex_OffPeak_Energy_High,0)","v":0},"kWh",null,null,null,null,"Ave Homeflex Monthly Off-peak",null,{"$f":"IF(Selected_Customer_Category_ID=1,Homeflex_OffPeak_Energy_Low,0)","v":0},"kWh"]
[null,null,null,null,null,"Ave Homeflex Total Monthly Consumption",null,{"$f":"IF(Selected_Customer_Category_ID=1,Homeflex_Total_Energy,0)","v":0},"kWh",null,null,null,null,"Ave Homeflex Total Monthly Consumption",null,0,"kWh"]
[null,null,"Tariff Category",{"$f":"INDEX(Full_Tariff_Type,MATCH(D10,Full_Tariff_List,0))","v":"Rural"},null,"Days",null,{"$f":"ESKOM_Total_days","v":30.416666666666668},"days",null,null,{"$f":"C15","v":"Tariff Category"},{"$f":"D15","v":"Rural"},"Days",null,30.416666666666668,"days"]
[null,null,"Supply voltage",{"$f":"Selected_Supply_Voltage","v":"< 500V"},null,null,null,null,null,null,null,{"$f":"C16","v":"Supply voltage"},"< 500V"]
[null,null,"Tariff Classification",{"$f":"Selected_Tariff_Category","v":"Non-Local Authority"},null,null,null,null,null,null,null,"Tariff Classification","Non-Local Authority"]
[null,null,"No of PODS",{"$f":"PODs","v":1},null,null,null,null,null,null,null,"No of PODS",1]
[null,null,"Size of supply",{"$f":"Selected_Supply_Size","v":"5kVA, 16kVA, 20A or 60A"},null,null,null,null,null,null,null,"Size of supply","5kVA, 16kVA, 20A or 60A"]
[null,null,null,null,null,null,null,null,null,null,null,0,0]
[]
[null,"Network charges",null,"Units",{"$f":"Current_Period &\" Rates\"","v":"2024/25 Tariff Book Rates"},{"$f":"New_Period &\" Rates\"","v":"2024/25 RTP Rates"},{"$f":"Current_Period&\" Charges\"","v":"2024/25 Tariff Book Charges"},{"$f":"New_Period&\" Charges\"","v":"2024/25 RTP Charges"},"% Change",null,"Network charges",null,"Units",{"$f":"Current_Period &\" Rates\"","v":"2024/25 Tariff Book Rates"},{"$f":"New_Period &\" Rates\"","v":"2024/25 RTP Rates"},{"$f":"Current_Period&\" Charges\"","v":"2024/25 Tariff Book Charges"},{"$f":"New_Period&\" Charges\"","v":"2024/25 RTP Charges"},"% Change"]
[]
[null,null,"Network demand charge","c/kWh",{"$f":"'Rates Table'!E10","v":52.09},{"$f":"'Rates Table'!AF10","v":54.75},{"$f":"IFERROR(E24*IF(OR($D$10=\"Homeflex 1\",$D$10=\"Homeflex 2\", $D$10=\"Homeflex 3\",$D$10=\"Homeflex 4\"),(Homeflex_Total_Monthly_Energy),SPU_Total_Energy),0)/100","v":0},{"$f":"IFERROR(F24*IF(OR($D$10=\"Homeflex 1\",$D$10=\"Homeflex 2\", $D$10=\"Homeflex 3\",$D$10=\"Homeflex 4\"),(Homeflex_Total_Monthly_Energy),SPU_Total_Energy),0)/100","v":0},{"$f":"IFERROR(H24/G24-1,0)","v":0},null,null,"Network demand charge","c/kWh",{"$f":"E24","v":52.09},{"$f":"F24","v":54.75},0,0,{"$f":"I24","v":0}]
[null,null,"Network demand charge, Ancillary service charge and retail","c/kWh",{"$f":"'Rates Table'!E11","v":0},{"$f":"'Rates Table'!AF11","v":0},{"$f":"IFERROR(E25*Homeflex_Total_Monthly_Energy,0)/100","v":0},{"$f":"IFERROR(F25*Homeflex_Total_Monthly_Energy,0)/100","v":0},{"$f":"IFERROR(H25/G25-1,0)","v":0},null,null,"Network demand charge, Ancillary service charge and retail","c/kWh",{"$f":"E25","v":0},0,0,0,{"$f":"I25","v":0}]
[null,null,"Network capacity charge",{"$f":"IF(Table_1=1,\"R/kVA\",\"R/day\")","v":"R/day"},{"$f":"'Rates Table'!E12","v":55.68},{"$f":"'Rates Table'!AF12","v":55.17},{"$f":"IFERROR(E26*PODs*SPU_Days,0)","v":1693.6000000000001},{"$f":"IFERROR(F26*PODs*SPU_Days,0)","v":1678.0875000000001},{"$f":"IFERROR(H26/G26-1,0)","v":-9.1594827586206629E-3},null,null,"Network capacity charge",{"$f":"IF(Table_1=1,\"R/kVA\",\"R/day\")","v":"R/day"},{"$f":"E26","v":55.68},55.17,1693.6000000000001,1678.0875000000001,{"$f":"I26","v":-9.1594827586206629E-3}]
[]
[null,"Total network charges",null,null,null,null,{"$f":"SUM(G24:G26)","v":1693.6000000000001},{"$f":"SUM(H24:H26)","v":1678.0875000000001},{"$f":"IFERROR(H28/G28-1,0)","v":-9.1594827586206629E-3},null,"Total network charges",null,null,null,null,{"$f":"SUM(P24:P26)","v":1693.6000000000001},{"$f":"SUM(Q24:Q26)","v":1678.0875000000001},{"$f":"IFERROR(Q28/P28-1,0)","v":-9.1594827586206629E-3}]
[]
[null,"Energy charges",null,"Units",{"$f":"E22","v":"2024/25 Tariff Book Rates"},{"$f":"F22","v":"2024/25 RTP Rates"},{"$f":"G22","v":"2024/25 Tariff Book Charges"},{"$f":"H22","v":"2024/25 RTP Charges"},"% Change",null,"Energy charges",null,"Units",{"$f":"N22","v":"2024/25 Tariff Book Rates"},{"$f":"O22","v":"2024/25 RTP Rates"},{"$f":"P22","v":"2024/25 Tariff Book Charges"},{"$f":"Q22","v":"2024/25 RTP Charges"},"% Change"]
[]
[null,null,"Energy","c/kWh",{"$f":"'Rates Table'!E18","v":208.48},{"$f":"'Rates Table'!AF18","v":202.57},{"$f":"IFERROR(E32*(SPU_Total_Energy),0)/100","v":0},{"$f":"IFERROR(F32*(SPU_Total_Energy),0)/100","v":0},{"$f":"IFERROR(H32/G32-1,0)","v":0},null,null,"Energy","c/kWh",{"$f":"E32","v":208.48},{"$f":"F32","v":202.57},{"$f":"G32","v":0},{"$f":"H32","v":0},{"$f":"I32","v":0}]
[null,null,"Peak","c/kWh",{"$f":"'Rates Table'!E19","v":0},{"$f":"'Rates Table'!AF19","v":0},{"$f":"IFERROR(E33*(Ave_Monthly_Peak_High),0)/100","v":0},{"$f":"IFERROR(F33*(Ave_Monthly_Peak_High),0)/100","v":0},0,null,null,"Peak","c/kWh",{"$f":"IFERROR('Rates SPU - Current'!$L$29*IF(OR($D$10=\"Homeflex 1\",$D$10=\"Homeflex 2\", $D$10=\"Homeflex 3\",$D$10=\"Homeflex 4\"),1,0),0)","v":0},{"$f":"IFERROR('Rates SPU - New'!$L$29*IF(OR($D$10=\"Homeflex 1\",$D$10=\"Homeflex 2\", $D$10=\"Homeflex 3\",$D$10=\"Homeflex 4\"),1,0),0)","v":0},{"$f":"IFERROR(N33*IF(OR($D$10=\"Homeflex 1\",$D$10=\"Homeflex 2\", $D$10=\"Homeflex 3\",$D$10=\"Homeflex 4\"),(Ave_Monthly_Peak_Low),0),0)/100","v":0},{"$f":"IFERROR(O33*IF(OR($D$10=\"Homeflex 1\",$D$10=\"Homeflex 2\", $D$10=\"Homeflex 3\",$D$10=\"Homeflex 4\"),(Ave_Monthly_Peak_Low),0),0)/100","v":0},{"$f":"IFERROR(Q33/P33-1,0)","v":0}]
[null,null,"Standard","c/kWh",{"$f":"'Rates Table'!E20","v":0},{"$f":"'Rates Table'!AF20","v":0},{"$f":"IFERROR(E34*(Ave_Monthly_Standard_High),0)/100","v":0},{"$f":"IFERROR(F34*(Ave_Monthly_Standard_High),0)/100","v":0},0,null,null,"Standard","c/kWh",{"$f":"IFERROR('Rates SPU - Current'!$M$29*IF(OR($D$10=\"Homeflex 1\",$D$10=\"Homeflex 2\", $D$10=\"Homeflex 3\",$D$10=\"Homeflex 4\"),1,0),0)","v":0},{"$f":"IFERROR('Rates SPU - New'!$M$29*IF(OR($D$10=\"Homeflex 1\",$D$10=\"Homeflex 2\", $D$10=\"Homeflex 3\",$D$10=\"Homeflex 4\"),1,0),0)","v":0},{"$f":"IFERROR(N34*IF(OR($D$10=\"Homeflex 1\",$D$10=\"Homeflex 2\", $D$10=\"Homeflex 3\",$D$10=\"Homeflex 4\"),(Ave_Monthly_Standard_Low),0),0)/100","v":0},{"$f":"IFERROR(O34*IF(OR($D$10=\"Homeflex 1\",$D$10=\"Homeflex 2\", $D$10=\"Homeflex 3\",$D$10=\"Homeflex 4\"),(Ave_Monthly_Standard_Low),0),0)/100","v":0},{"$f":"IFERROR(Q34/P34-1,0)","v":0}]
[null,null,"Off-Peak","c/kWh",{"$f":"'Rates Table'!E21","v":0},{"$f":"'Rates Table'!AF21","v":0},{"$f":"IFERROR(E35*(Ave_Monthly_OffPeak_High),0)/100","v":0},{"$f":"IFERROR(F35*(Ave_Monthly_OffPeak_High),0)/100","v":0},0,null,null,"Off-Peak","c/kWh",{"$f":"IFERROR('Rates SPU - Current'!$N$29*IF(OR($D$10=\"Homeflex 1\",$D$10=\"Homeflex 2\", $D$10=\"Homeflex 3\",$D$10=\"Homeflex 4\"),1,0),0)","v":0},{"$f":"IFERROR('Rates SPU - New'!$N$29*IF(OR($D$10=\"Homeflex 1\",$D$10=\"Homeflex 2\", $D$10=\"Homeflex 3\",$D$10=\"Homeflex 4\"),1,0),0)","v":0},{"$f":"IFERROR(N35*IF(OR($D$10=\"Homeflex 1\",$D$10=\"Homeflex 2\", $D$10=\"Homeflex 3\",$D$10=\"Homeflex 4\"),(Ave_Monthly_OffPeak_Low),0),0)/100","v":0},{"$f":"IFERROR(O35*IF(OR($D$10=\"Homeflex 1\",$D$10=\"Homeflex 2\", $D$10=\"Homeflex 3\",$D$10=\"Homeflex 4\"),(Ave_Monthly_OffPeak_Low),0),0)/100","v":0},{"$f":"IFERROR(Q35/P35-1,0)","v":0}]
[null,null,"Energy - Block 1","c/kWh",{"$f":"'Rates Table'!E22","v":0},{"$f":"'Rates Table'!AF22","v":0},{"$f":"IFERROR(E36*(SPU_Block_1),0)/100","v":0},{"$f":"IFERROR(F36*(SPU_Block_1),0)/100","v":0},0,null,null,"Energy - Block 1","c/kWh",{"$f":"E36","v":0},0,0,0,0]
[null,null,"Energy - Block 2","c/kWh",{"$f":"'Rates Table'!E23","v":0},{"$f":"'Rates Table'!AF23","v":0},{"$f":"IFERROR(E37*(SPU_Block_2),0)/100","v":0},{"$f":"IFERROR(F37*(SPU_Block_2),0)/100","v":0},0,null,null,"Energy - Block 2","c/kWh",0,0,0,0,0]
[null,null,"Generation capacity charge","R/PoD/day",{"$f":"'Rates Table'!E24","v":0},{"$f":"'Rates Table'!AF24","v":5.99},{"$f":"IFERROR(E38*PODs*SPU_Days,0)","v":0},{"$f":"IFERROR(F38*PODs*SPU_Days,0)","v":182.19583333333335},0,null,null,"Generation capacity charge","R/PoD/day",0,5.99,0,182.19583333333335,0]
[null,null,"Legacy charge","c/kWh",{"$f":"'Rates Table'!E25","v":0},{"$f":"'Rates Table'!AF25","v":0},{"$f":"IFERROR(E39*IF(OR($D$10=\"Homeflex 1\",$D$10=\"Homeflex 2\", $D$10=\"Homeflex 3\",$D$10=\"Homeflex 4\"),(Homeflex_Total_Monthly_Energy),SPU_Total_Energy),0)/100","v":0},{"$f":"IFERROR(F39*IF(OR($D$10=\"Homeflex 1\",$D$10=\"Homeflex 2\", $D$10=\"Homeflex 3\",$D$10=\"Homeflex 4\"),(Homeflex_Total_Monthly_Energy),SPU_Total_Energy),0)/100","v":0},{"$f":"IFERROR(H39/G39-1,0)","v":0},null,null,"Legacy charge","c/kWh",0,0,0,0,0]
[null,"Total energy charges",null,null,null,null,{"$f":"SUM(G32:G39)","v":0},{"$f":"SUM(H32:H39)","v":182.19583333333335},{"$f":"IFERROR(H40/G40-1,0)","v":0},null,"Total energy charges",null,null,null,null,{"$f":"SUM(P32:P39)","v":0},{"$f":"SUM(Q32:Q39)","v":182.19583333333335},{"$f":"IFERROR(Q40/P40-1,0)","v":0}]
[]
[null,"Other charges",null,"Units",{"$f":"E22","v":"2024/25 Tariff Book Rates"},{"$f":"F22","v":"2024/25 RTP Rates"},{"$f":"G22","v":"2024/25 Tariff Book Charges"},{"$f":"H22","v":"2024/25 RTP Charges"},"% Change",null,"Other charges",null,"Units",{"$f":"N22","v":"2024/25 Tariff Book Rates"},{"$f":"O22","v":"2024/25 RTP Rates"},{"$f":"P22","v":"2024/25 Tariff Book Charges"},{"$f":"Q22","v":"2024/25 RTP Charges"},"% Change"]
[]
[null,null,"Ancillary service charge ","c/kWh",{"$f":"'Rates Table'!E31","v":0.8},{"$f":"'Rates Table'!AF31","v":0.36},{"$f":"IFERROR(E44*IF(OR($D$10=\"Homeflex 1\",$D$10=\"Homeflex 2\", $D$10=\"Homeflex 3\",$D$10=\"Homeflex 4\"),(Homeflex_Total_Monthly_Energy),SPU_Total_Energy),0)/100","v":0},{"$f":"IFERROR(F44*IF(OR($D$10=\"Homeflex 1\",$D$10=\"Homeflex 2\", $D$10=\"Homeflex 3\",$D$10=\"Homeflex 4\"),(Homeflex_Total_Monthly_Energy),SPU_Total_Energy),0)/100","v":0},{"$f":"IFERROR(H44/G44-1,0)","v":0},null,null,"Ancillary service charge ","c/kWh",{"$f":"E44","v":0.8},0.36,0,0,0]
[null,null,"Service charge",{"$f":"IF(Table_1=1,\"R/day\",\"R/day\")","v":"R/day"},{"$f":"'Rates Table'!E32","v":46.25},{"$f":"'Rates Table'!AF32","v":21.73},{"$f":"IFERROR(IF(Table_1=1,E45*PODs*SPU_Days,E45*PODs*SPU_Days),0)","v":1406.7708333333335},{"$f":"IFERROR(IF(Table_1=1,F45*PODs*SPU_Days,F45*PODs*SPU_Days),0)","v":660.95416666666665},{"$f":"IFERROR(H45/G45-1,0)","v":-0.53016216216216216},null,null,"Service charge",{"$f":"IF(Table_1=1,\"R/day\",\"R/day\")","v":"R/day"},46.25,21.73,1406.7708333333335,660.95416666666665,-0.53016216216216216]
[null,null,"Electrification and rural subsidy ","c/kWh",{"$f":"'Rates Table'!E33","v":0},{"$f":"'Rates Table'!AF33","v":0},{"$f":"IFERROR(E46*IF(OR($D$10=\"Homeflex 1\",$D$10=\"Homeflex 2\", $D$10=\"Homeflex 3\",$D$10=\"Homeflex 4\"),(Homeflex_Total_Monthly_Energy),SPU_Total_Energy),0)/100","v":0},{"$f":"IFERROR(F46*IF(OR($D$10=\"Homeflex 1\",$D$10=\"Homeflex 2\", $D$10=\"Homeflex 3\",$D$10=\"Homeflex 4\"),(Homeflex_Total_Monthly_Energy),SPU_Total_Energy),0)/100","v":0},{"$f":"IFERROR(H46/G46-1,0)","v":0},null,null,"Ancillary service charge ","c/kWh",{"$f":"E46","v":0},{"$f":"F46","v":0},{"$f":"G46","v":0},{"$f":"H46","v":0},{"$f":"I46","v":0}]
[]
[null,"Total other charges",null,null,null,null,{"$f":"SUM(G44:G46)","v":1406.7708333333335},{"$f":"SUM(H44:H46)","v":660.95416666666665},{"$f":"IFERROR(H48/G48-1,0)","v":-0.53016216216216216},null,"Total other charges",null,null,null,null,{"$f":"SUM(P44:P46)","v":1406.7708333333335},{"$f":"SUM(Q44:Q46)","v":660.95416666666665},{"$f":"IFERROR(Q48/P48-1,0)","v":-0.53016216216216216}]
[]
[null,"Total excl VAT",null,null,null,null,{"$f":"G48+G40+G28","v":3100.3708333333334},{"$f":"H48+H40+H28","v":2521.2375000000002},{"$f":"IFERROR(H50/G50-1,0)","v":-0.1867948592171097},null,"Total excl VAT",null,null,null,null,{"$f":"P48+P40+P28","v":3100.3708333333334},{"$f":"Q48+Q40+Q28","v":2521.2375000000002},{"$f":"IFERROR(Q50/P50-1,0)","v":-0.1867948592171097}]
[null,"VAT",null,{"$f":"VAT","v":0.15},null,null,{"$f":"G50*$D51","v":465.05562499999996},{"$f":"H50*$D51","v":378.18562500000002},null,null,"VAT",null,{"$f":"VAT","v":0.15},null,null,{"$f":"P50*$D51","v":465.05562499999996},{"$f":"Q50*$D51","v":378.18562500000002}]
[]
[null,"Total account",null,null,null,null,{"$f":"SUM(G50:G51)","v":3565.4264583333334},{"$f":"SUM(H50:H51)","v":2899.4231250000003},{"$f":"IFERROR(H53/G53-1,0)","v":-0.1867948592171097},null,"Total account",null,null,null,null,{"$f":"SUM(P50:P51)","v":3565.4264583333334},{"$f":"SUM(Q50:Q51)","v":2899.4231250000003},{"$f":"IFERROR(Q53/P53-1,0)","v":-0.1867948592171097}]
[]
[null,"Average price",null,"c/kWh",null,null,{"$f":"IFERROR(IF(OR($D$10=\"Homeflex 1\",$D$10=\"Homeflex 2\", $D$10=\"Homeflex 3\",$D$10=\"Homeflex 4\"),G50/Homeflex_Total_Monthly_Energy*100,G50/SPU_Total_Energy*100),0)","v":0},{"$f":"IFERROR(IF(OR($D$10=\"Homeflex 1\",$D$10=\"Homeflex 2\", $D$10=\"Homeflex 3\",$D$10=\"Homeflex 4\"),H50/Homeflex_Total_Monthly_Energy*100,H50/SPU_Total_Energy*100),0)","v":0},{"$f":"IFERROR(H55/G55-1,0)","v":0},null,"Average price",null,"c/kWh",null,null,{"$f":"IFERROR(IF(OR($D$10=\"Homeflex 1\",$D$10=\"Homeflex 2\", $D$10=\"Homeflex 3\",$D$10=\"Homeflex 4\"),P50/Homeflex_Total_Monthly_Energy*100,P50/SPU_Total_Energy*100),0)","v":0},{"$f":"IFERROR(IF(OR($D$10=\"Homeflex 1\",$D$10=\"Homeflex 2\", $D$10=\"Homeflex 3\",$D$10=\"Homeflex 4\"),Q50/Homeflex_Total_Monthly_Energy*100,Q50/SPU_Total_Energy*100),0)","v":0},{"$f":"IFERROR(Q55/P55-1,0)","v":0}]
[]
[]
[null,"Summary High demand",null,{"$f":"Current_Period","v":"2024/25 Tariff Book"},{"$f":"New_Period","v":"2024/25 RTP"},"% Change",null,null,null,null,"Summary Low demand",null,{"$f":"Current_Period","v":"2024/25 Tariff Book"},{"$f":"New_Period","v":"2024/25 RTP"},"% Change"]
[]
[null,null,"Total Network Charges",{"$f":"G28","v":1693.6000000000001},{"$f":"H28","v":1678.0875000000001},{"$f":"I28","v":-9.1594827586206629E-3},null,null,null,null,null,"Total Network Charges",{"$f":"P28","v":1693.6000000000001},{"$f":"Q28","v":1678.0875000000001},{"$f":"R28","v":-9.1594827586206629E-3}]
[null,null,"Total Energy Charges",{"$f":"G40","v":0},{"$f":"H40","v":182.19583333333335},{"$f":"I40","v":0},null,null,null,null,null,"Total Energy Charges",{"$f":"P40","v":0},{"$f":"Q40","v":182.19583333333335},{"$f":"R40","v":0}]
[null,null,"Other Charges",{"$f":"G48","v":1406.7708333333335},{"$f":"H48","v":660.95416666666665},{"$f":"I48","v":-0.53016216216216216},null,null,null,null,null,"Other Charges",{"$f":"P48","v":1406.7708333333335},{"$f":"Q48","v":660.95416666666665},{"$f":"R48","v":-0.53016216216216216}]
[]
[]
[null,null,"VAT",{"$f":"G51","v":465.05562499999996},{"$f":"H51","v":378.18562500000002},null,null,null,null,null,null,"VAT",{"$f":"P51","v":465.05562499999996},{"$f":"Q51","v":378.18562500000002}]
[]
[null,null,"Total Charges",{"$f":"G53","v":3565.4264583333334},{"$f":"H53","v":2899.4231250000003},{"$f":"IFERROR(E67/D67-1,0)","v":-0.1867948592171097},null,null,null,null,null,"Total Charges",{"$f":"P53","v":3565.4264583333334},{"$f":"Q53","v":2899.4231250000003},{"$f":"IFERROR(N67/M67-1,0)","v":-0.1867948592171097}]
[]
[]
[]
[]
[]
[]
[null,"Blocks"]
[null,null,"Block 1",{"$f":"IF(SPU_Total_Energy > SPU_Block_1_Upper, SPU_Block_1_Upper, SPU_Total_Energy)","v":0},{"$f":"IF(D10 = Lists!B21,  Block1_max_HL20A,  Block1_max_HL60A)","v":600}]
[null,null,"Block 2",{"$f":"SPU_Total_Energy - D75","v":0}]

{"sheet":"Tariff Comparison","index":3,"n_rows":112,"n_cols":18,"rows_kept":112,"cut":false,"hidden":false,"merged":[[4,15,4,16]]}
[]
[null,null,null,null,null,null,null,"Please select tariffs from the dropdown boxes to set up the Comparison Report.\n"]
[]
[null,"Comparison against other tariffs High Demand",null,null,null,null,null,null,null,null,null,null,null,null,null,null,null,{"$f":"'Monthly Average Bill'!I4","v":"Landrate 1"}]
[null,null,null,null,null,null,null,{"$f":"IF(Dropdown_Category = 2, \"Proposed RTP tariff is \" & VLOOKUP(J6, Lists!$G$17:$H$37, 2, FALSE), \"\")","v":""},null,null,null,{"$f":"IF(Dropdown_Category = 2, \"Proposed RTP tariff is \" & VLOOKUP(N6, Lists!$G$17:$H$37, 2, FALSE), \"\")","v":""},null,null,null,{"$f":"IF(Dropdown_Category = 2, \"Proposed RTP tariff is \" & VLOOKUP(R6, Lists!$G$17:$H$37, 2, FALSE), \"\")","v":""}]
[null,null,null,null,null,null,null,1,null,{"$f":"MATCH(H8,Full_Tariff_List,0)","v":1},null,3,null,{"$f":"MATCH(L8,Full_Tariff_List,0)","v":10},null,2,null,{"$f":"MATCH(P8,Full_Tariff_List,0)","v":4}]
[]
[null,null,null,{"$f":"'Monthly Average Bill'!I4","v":"Landrate 1"},null,null,null,{"$f":"IFERROR(INDEX(Compare_Tariff_List,Dropdown_Compare_1),$D$8)","v":"Businessrate 1"},null,null,null,{"$f":"IFERROR(INDEX(Compare_Tariff_List,Dropdown_Compare_2),$D$8)","v":"Homepower 4"},null,null,null,{"$f":"IFERROR(INDEX(Compare_Tariff_List,Dropdown_Compare_3),$D$8)","v":"Businessrate 4"}]
[null,null,null,{"$f":"IFERROR(INDEX(Compare_Long_Type,Selected_Compare_Tariff_ID),\"\")","v":"Rural"},null,null,null,{"$f":"IFERROR(INDEX(Compare_Long_Type,Dropdown_Compare_1),\"\")","v":"Commercial Urban"},null,null,null,{"$f":"IFERROR(INDEX(Compare_Long_Type,Dropdown_Compare_2),\"\")","v":"Residential Urban"},null,null,null,{"$f":"IFERROR(INDEX(Compare_Long_Type,Dropdown_Compare_3),\"\")","v":"Commercial Urban"}]
[null,"Comparison Tariffs",null,{"$f":"Current_Period","v":"2024/25 Tariff Book"},{"$f":"New_Period","v":"2024/25 RTP"},"% Change",null,{"$f":"Current_Period","v":"2024/25 Tariff Book"},{"$f":"New_Period","v":"2024/25 RTP"},"% Change",null,{"$f":"Current_Period","v":"2024/25 Tariff Book"},{"$f":"New_Period","v":"2024/25 RTP"},"% Change",null,{"$f":"Current_Period","v":"2024/25 Tariff Book"},{"$f":"New_Period","v":"2024/25 RTP"},"% Change"]
[]
[null,null,"Network Charges",{"$f":"'Monthly Average Bill'!D60","v":1693.6000000000001},{"$f":"'Monthly Average Bill'!E60","v":1678.0875000000001},{"$f":"IFERROR(E12/D12-1,0)","v":-9.1594827586206629E-3},null,{"$f":"IFERROR(SUMIFS(SPU_Network_Costs_Current,'Workings High'!$F$7:$AD$7,J$6),\"\")","v":1291.7958333333333},{"$f":"IFERROR(SUMIFS(SPU_Network_Costs_New,'Workings High'!$F$7:$AD$7,J$6),\"\")","v":548.7166666666667},{"$f":"IFERROR(I12/H12-1,0)","v":-0.57522957381681183},null,{"$f":"IFERROR(SUMIFS(SPU_Network_Costs_Current,'Workings High'!$F$7:$AD$7,N$6),\"\")","v":195.57916666666665},{"$f":"IFERROR(SUMIFS(SPU_Network_Costs_New,'Workings High'!$F$7:$AD$7,N$6),\"\")","v":225.38750000000002},{"$f":"IFERROR(M12/L12-1,0)","v":0.15241057542768299},null,{"$f":"IFERROR(SUMIFS(SPU_Network_Costs_Current,'Workings High'!$F$7:$AD$7,R$6),\"\")","v":0},{"$f":"IFERROR(SUMIFS(SPU_Network_Costs_New,'Workings High'!$F$7:$AD$7,R$6),\"\")","v":0},{"$f":"IFERROR(Q12/P12-1,0)","v":0}]
[null,null,"Energy Charges",{"$f":"'Monthly Average Bill'!D61","v":0},{"$f":"'Monthly Average Bill'!E61","v":182.19583333333335},{"$f":"IFERROR(E13/D13-1,0)","v":0},null,{"$f":"IFERROR(SUMIFS(SPU_Energy_Charges_Current,'Workings High'!$F$7:$AD$7,J$6),\"\")","v":0},{"$f":"IFERROR(SUMIFS(SPU_Energy_Charges_New,'Workings High'!$F$7:$AD$7,J$6),\"\")","v":268.27500000000003},{"$f":"IFERROR(I13/H13-1,0)","v":0},null,{"$f":"IFERROR(SUMIFS(SPU_Energy_Charges_Current,'Workings High'!$F$7:$AD$7,N$6),\"\")","v":0},{"$f":"IFERROR(SUMIFS(SPU_Energy_Charges_New,'Workings High'!$F$7:$AD$7,N$6),\"\")","v":63.570833333333333},{"$f":"IFERROR(M13/L13-1,0)","v":0},null,{"$f":"IFERROR(SUMIFS(SPU_Energy_Charges_Current,'Workings High'!$F$7:$AD$7,R$6),\"\")","v":0},{"$f":"IFERROR(SUMIFS(SPU_Energy_Charges_New,'Workings High'!$F$7:$AD$7,R$6),\"\")","v":0},{"$f":"IFERROR(Q13/P13-1,0)","v":0}]
[null,null,"Other",{"$f":"'Monthly Average Bill'!D62","v":1406.7708333333335},{"$f":"'Monthly Average Bill'!E62","v":660.95416666666665},{"$f":"IFERROR(E14/D14-1,0)","v":-0.53016216216216216},null,{"$f":"IFERROR(SUMIFS(SPU_Other_Charges_Current,'Workings High'!$F$7:$AD$7,J$6),\"\")","v":1116.5958333333333},{"$f":"IFERROR(SUMIFS(SPU_Other_Charges_NEw,'Workings High'!$F$7:$AD$7,J$6),\"\")","v":396.63333333333333},{"$f":"IFERROR(I14/H14-1,0)","v":-0.64478343775538005},null,{"$f":"IFERROR(SUMIFS(SPU_Other_Charges_Current,'Workings High'!$F$7:$AD$7,N$6),\"\")","v":0},{"$f":"IFERROR(SUMIFS(SPU_Other_Charges_NEw,'Workings High'!$F$7:$AD$7,N$6),\"\")","v":265.23333333333335},{"$f":"IFERROR(M14/L14-1,0)","v":0},null,{"$f":"IFERROR(SUMIFS(SPU_Other_Charges_Current,'Workings High'!$F$7:$AD$7,R$6),\"\")","v":0},{"$f":"IFERROR(SUMIFS(SPU_Other_Charges_NEw,'Workings High'!$F$7:$AD$7,R$6),\"\")","v":0},{"$f":"IFERROR(Q14/P14-1,0)","v":0}]
[]
[null,null,"Total",{"$f":"'Monthly Average Bill'!G50","v":3100.3708333333334},{"$f":"'Monthly Average Bill'!H50","v":2521.2375000000002},{"$f":"IFERROR(E16/D16-1,0)","v":-0.1867948592171097},null,{"$f":"SUM(H12:H14)","v":2408.3916666666664},{"$f":"SUM(I12:I14)","v":1213.625},{"$f":"IFERROR(I16/H16-1,0)","v":-0.49608486991664558},null,{"$f":"SUM(L12:L14)","v":195.57916666666665},{"$f":"SUM(M12:M14)","v":554.19166666666672},{"$f":"IFERROR(M16/L16-1,0)","v":1.8335925349922246},null,{"$f":"SUM(P12:P14)","v":0},{"$f":"SUM(Q12:Q14)","v":0},{"$f":"IFERROR(Q16/P16-1,0)","v":0}]
[]
[null,null,"Average price c/kWh",{"$f":"'Monthly Average Bill'!G55","v":0},{"$f":"'Monthly Average Bill'!H55","v":0},{"$f":"IFERROR(E18/D18-1,0)","v":0},null,{"$f":"IFERROR(H16/(IF(OR(H$8=\"Homeflex 1\",H$8=\"Homeflex 2\", H$8=\"Homeflex 3\",H$8=\"Homeflex 4\"),(Homeflex_Total_Monthly_Energy),SPU_Total_Energy))*100,0)","v":0},{"$f":"IFERROR(I16/(IF(OR(H$8=\"Homeflex 1\",H$8=\"Homeflex 2\", H$8=\"Homeflex 3\",H$8=\"Homeflex 4\"),(Homeflex_Total_Monthly_Energy),SPU_Total_Energy))*100,0)","v":0},{"$f":"IFERROR(I18/H18-1,0)","v":0},null,{"$f":"IFERROR(L16/(IF(OR(L$8=\"Homeflex 1\",L$8=\"Homeflex 2\", L$8=\"Homeflex 3\",L$8=\"Homeflex 4\"),(Homeflex_Total_Monthly_Energy),SPU_Total_Energy))*100,0)","v":0},{"$f":"IFERROR(M16/(IF(OR(L$8=\"Homeflex 1\",L$8=\"Homeflex 2\", L$8=\"Homeflex 3\",L$8=\"Homeflex 4\"),(Homeflex_Total_Monthly_Energy),SPU_Total_Energy))*100,0)","v":0},{"$f":"IFERROR(M18/L18-1,0)","v":0},null,{"$f":"IFERROR(P16/(IF(OR(P$8=\"Homeflex 1\",P$8=\"Homeflex 2\", P$8=\"Homeflex 3\",P$8=\"Homeflex 4\"),(Homeflex_Total_Monthly_Energy),SPU_Total_Energy))*100,0)","v":0},{"$f":"IFERROR(Q16/(IF(OR(P$8=\"Homeflex 1\",P$8=\"Homeflex 2\", P$8=\"Homeflex 3\",P$8=\"Homeflex 4\"),(Homeflex_Total_Monthly_Energy),SPU_Total_Energy))*100,0)","v":0},{"$f":"IFERROR(Q18/P18-1,0)","v":0}]
[]
[]
[null,"Total Comparison",null,{"$f":"Current_Period","v":"2024/25 Tariff Book"},{"$f":"New_Period","v":"2024/25 RTP"},"% Change"]
[]
[null,null,{"$f":"D8","v":"Landrate 1"},{"$f":"D16","v":3100.3708333333334},{"$f":"E16","v":2521.2375000000002},{"$f":"IFERROR(E23/D23-1,0)","v":-0.1867948592171097}]
[null,null,{"$f":"H8","v":"Businessrate 1"},{"$f":"H16","v":2408.3916666666664},{"$f":"I16","v":1213.625},{"$f":"IFERROR(E24/D24-1,0)","v":-0.49608486991664558}]
[null,null,{"$f":"L8","v":"Homepower 4"},{"$f":"L16","v":195.57916666666665},{"$f":"M16","v":554.19166666666672},{"$f":"IFERROR(E25/D25-1,0)","v":1.8335925349922246}]
[null,null,{"$f":"P8","v":"Businessrate 4"},{"$f":"P16","v":0},{"$f":"Q16","v":0},{"$f":"IFERROR(E26/D26-1,0)","v":0}]
[]
[]
[]
[]
[]
[]
[]
[]
[null,"Comparison against other tariffs Low Demand",null,null,null,null,null,null,null,null,null,null,null,null,null,null,null,{"$f":"'Monthly Average Bill'!I4","v":"Landrate 1"}]
[null,null,null,null,null,null,null,{"$f":"IF(Dropdown_Category = 2, \"Proposed RTP tariff is \" & VLOOKUP(J37, Lists!$G$17:$H$37, 2, FALSE), \"\")","v":""},null,null,null,{"$f":"IF(Dropdown_Category = 2, \"Proposed RTP tariff is \" & VLOOKUP(N37, Lists!$G$17:$H$37, 2, FALSE), \"\")","v":""},null,null,null,{"$f":"IF(Dropdown_Category = 2, \"Proposed RTP tariff is \" & VLOOKUP(R37, Lists!$G$17:$H$37, 2, FALSE), \"\")","v":""}]
[null,null,null,null,null,null,null,3,null,{"$f":"MATCH(H39,Full_Tariff_List,0)","v":1},null,5,null,{"$f":"MATCH(L39,Full_Tariff_List,0)","v":10},null,7,null,{"$f":"MATCH(P39,Full_Tariff_List,0)","v":4}]
[]
[null,null,null,{"$f":"'Monthly Average Bill'!I4","v":"Landrate 1"},null,null,null,{"$f":"IFERROR(INDEX(Compare_Tariff_List,Dropdown_Compare_1),$D$8)","v":"Businessrate 1"},null,null,null,{"$f":"IFERROR(INDEX(Compare_Tariff_List,Dropdown_Compare_2),$D$8)","v":"Homepower 4"},null,null,null,{"$f":"IFERROR(INDEX(Compare_Tariff_List,Dropdown_Compare_3),$D$8)","v":"Businessrate 4"}]
[null,null,null,{"$f":"IFERROR(INDEX(Compare_Long_Type,Selected_Compare_Tariff_ID),\"\")","v":"Rural"},null,null,null,{"$f":"IFERROR(INDEX(Compare_Long_Type,Dropdown_Compare_1),\"\")","v":"Commercial Urban"},null,null,null,{"$f":"IFERROR(INDEX(Compare_Long_Type,Dropdown_Compare_2),\"\")","v":"Residential Urban"},null,null,null,{"$f":"IFERROR(INDEX(Compare_Long_Type,Dropdown_Compare_3),\"\")","v":"Commercial Urban"}]
[null,"Comparison Tariffs",null,{"$f":"Current_Period","v":"2024/25 Tariff Book"},{"$f":"New_Period","v":"2024/25 RTP"},"% Change",null,{"$f":"Current_Period","v":"2024/25 Tariff Book"},{"$f":"New_Period","v":"2024/25 RTP"},"% Change",null,{"$f":"Current_Period","v":"2024/25 Tariff Book"},{"$f":"New_Period","v":"2024/25 RTP"},"% Change",null,{"$f":"Current_Period","v":"2024/25 Tariff Book"},{"$f":"New_Period","v":"2024/25 RTP"},"% Change"]
[]
[null,null,"Network Charges",{"$f":"'Monthly Average Bill'!M60","v":1693.6000000000001},{"$f":"'Monthly Average Bill'!N60","v":1678.0875000000001},{"$f":"IFERROR(E43/D43-1,0)","v":-9.1594827586206629E-3},null,{"$f":"IFERROR(SUMIFS('Workings Low'!SPU_Network_Costs_Current_Low,'Workings Low'!$F$7:$AD$7,J$6),\"\")","v":1291.7958333333333},{"$f":"IFERROR(SUMIFS('Workings Low'!SPU_Network_Costs_New_Low,'Workings Low'!$F$7:$AD$7,J$6),\"\")","v":548.7166666666667},{"$f":"IFERROR(I43/H43-1,0)","v":-0.57522957381681183},null,{"$f":"IFERROR(SUMIFS('Workings Low'!SPU_Network_Costs_Current_Low,'Workings Low'!$F$7:$AD$7,N$6),\"\")","v":195.57916666666665},{"$f":"IFERROR(SUMIFS('Workings Low'!SPU_Network_Costs_New_Low,'Workings Low'!$F$7:$AD$7,N$6),\"\")","v":225.38750000000002},{"$f":"IFERROR(M43/L43-1,0)","v":0.15241057542768299},null,{"$f":"IFERROR(SUMIFS('Workings Low'!SPU_Network_Costs_Current_Low,'Workings Low'!$F$7:$AD$7,R$6),\"\")","v":0},{"$f":"IFERROR(SUMIFS('Workings Low'!SPU_Network_Costs_New_Low,'Workings Low'!$F$7:$AD$7,R$6),\"\")","v":0},{"$f":"IFERROR(Q43/P43-1,0)","v":0}]
[null,null,"Energy Charges",{"$f":"'Monthly Average Bill'!M61","v":0},{"$f":"'Monthly Average Bill'!N61","v":182.19583333333335},{"$f":"IFERROR(E44/D44-1,0)","v":0},null,{"$f":"IFERROR(SUMIFS('Workings Low'!SPU_Energy_Charges_Current_Low,'Workings Low'!$F$7:$AD$7,J$6),\"\")","v":0},{"$f":"IFERROR(SUMIFS('Workings Low'!SPU_Energy_Charges_New_Low,'Workings Low'!$F$7:$AD$7,J$6),\"\")","v":268.27500000000003},{"$f":"IFERROR(I44/H44-1,0)","v":0},null,{"$f":"IFERROR(SUMIFS('Workings Low'!SPU_Energy_Charges_Current_Low,'Workings Low'!$F$7:$AD$7,N$6),\"\")","v":0},{"$f":"IFERROR(SUMIFS('Workings Low'!SPU_Energy_Charges_New_Low,'Workings Low'!$F$7:$AD$7,N$6),\"\")","v":63.570833333333333},{"$f":"IFERROR(M44/L44-1,0)","v":0},null,{"$f":"IFERROR(SUMIFS('Workings Low'!SPU_Energy_Charges_Current_Low,'Workings Low'!$F$7:$AD$7,R$6),\"\")","v":0},{"$f":"IFERROR(SUMIFS('Workings Low'!SPU_Energy_Charges_New_Low,'Workings Low'!$F$7:$AD$7,R$6),\"\")","v":0},{"$f":"IFERROR(Q44/P44-1,0)","v":0}]
[null,null,"Other",{"$f":"'Monthly Average Bill'!M62","v":1406.7708333333335},{"$f":"'Monthly Average Bill'!N62","v":660.95416666666665},{"$f":"IFERROR(E45/D45-1,0)","v":-0.53016216216216216},null,{"$f":"IFERROR(SUMIFS('Workings Low'!SPU_Other_Charges_Current_Low,'Workings Low'!$F$7:$AD$7,J$6),\"\")","v":1116.5958333333333},{"$f":"IFERROR(SUMIFS('Workings Low'!SPU_Other_Charges_NEw_Low,'Workings Low'!$F$7:$AD$7,J$6),\"\")","v":396.63333333333333},{"$f":"IFERROR(I45/H45-1,0)","v":-0.64478343775538005},null,{"$f":"IFERROR(SUMIFS('Workings Low'!SPU_Other_Charges_Current_Low,'Workings Low'!$F$7:$AD$7,N$6),\"\")","v":0},{"$f":"IFERROR(SUMIFS('Workings Low'!SPU_Other_Charges_NEw_Low,'Workings Low'!$F$7:$AD$7,N$6),\"\")","v":265.23333333333335},{"$f":"IFERROR(M45/L45-1,0)","v":0},null,{"$f":"IFERROR(SUMIFS('Workings Low'!SPU_Other_Charges_Current_Low,'Workings Low'!$F$7:$AD$7,R$6),\"\")","v":0},{"$f":"IFERROR(SUMIFS('Workings Low'!SPU_Other_Charges_NEw_Low,'Workings Low'!$F$7:$AD$7,R$6),\"\")","v":0},{"$f":"IFERROR(Q45/P45-1,0)","v":0}]
[]
[null,null,"Total",{"$f":"'Monthly Average Bill'!P50","v":3100.3708333333334},{"$f":"'Monthly Average Bill'!Q50","v":2521.2375000000002},{"$f":"IFERROR(E47/D47-1,0)","v":-0.1867948592171097},null,{"$f":"SUM(H43:H45)","v":2408.3916666666664},{"$f":"SUM(I43:I45)","v":1213.625},{"$f":"IFERROR(I47/H47-1,0)","v":-0.49608486991664558},null,{"$f":"SUM(L43:L45)","v":195.57916666666665},{"$f":"SUM(M43:M45)","v":554.19166666666672},{"$f":"IFERROR(M47/L47-1,0)","v":1.8335925349922246},null,{"$f":"SUM(P43:P45)","v":0},{"$f":"SUM(Q43:Q45)","v":0},{"$f":"IFERROR(Q47/P47-1,0)","v":0}]
[]
[null,null,"Average price c/kWh",{"$f":"'Monthly Average Bill'!P55","v":0},{"$f":"'Monthly Average Bill'!Q55","v":0},{"$f":"IFERROR(E49/D49-1,0)","v":0},null,{"$f":"IFERROR(H47/(IF(OR(H$39=\"Homeflex 1\",H$39=\"Homeflex 2\", H$39=\"Homeflex 3\",H$39=\"Homeflex 4\"),(Homeflex_Total_Monthly_Energy),SPU_Total_Energy))*100,0)","v":0},{"$f":"IFERROR(I47/(IF(OR(H$39=\"Homeflex 1\",H$39=\"Homeflex 2\", H$39=\"Homeflex 3\",H$39=\"Homeflex 4\"),(Homeflex_Total_Monthly_Energy),SPU_Total_Energy))*100,0)","v":0},{"$f":"IFERROR(I49/H49-1,0)","v":0},null,{"$f":"IFERROR(L47/(IF(OR(L$39=\"Homeflex 1\",L$39=\"Homeflex 2\", L$39=\"Homeflex 3\",L$39=\"Homeflex 4\"),(Homeflex_Total_Monthly_Energy),SPU_Total_Energy))*100,0)","v":0},{"$f":"IFERROR(M47/(IF(OR(L$39=\"Homeflex 1\",L$39=\"Homeflex 2\", L$39=\"Homeflex 3\",L$39=\"Homeflex 4\"),(Homeflex_Total_Monthly_Energy),SPU_Total_Energy))*100,0)","v":0},{"$f":"IFERROR(M49/L49-1,0)","v":0},null,{"$f":"IFERROR(P47/(IF(OR(P$39=\"Homeflex 1\",P$39=\"Homeflex 2\", P$39=\"Homeflex 3\",P$39=\"Homeflex 4\"),(Homeflex_Total_Monthly_Energy),SPU_Total_Energy))*100,0)","v":0},{"$f":"IFERROR(Q47/(IF(OR(P$39=\"Homeflex 1\",P$39=\"Homeflex 2\", P$39=\"Homeflex 3\",P$39=\"Homeflex 4\"),(Homeflex_Total_Monthly_Energy),SPU_Total_Energy))*100,0)","v":0},{"$f":"IFERROR(Q49/P49-1,0)","v":0}]
[]
[]
[null,"Total Comparison",null,{"$f":"Current_Period","v":"2024/25 Tariff Book"},{"$f":"New_Period","v":"2024/25 RTP"},"% Change"]
[]
[null,null,{"$f":"D39","v":"Landrate 1"},{"$f":"D47","v":3100.3708333333334},{"$f":"E47","v":2521.2375000000002},{"$f":"IFERROR(E54/D54-1,0)","v":-0.1867948592171097}]
[null,null,{"$f":"H39","v":"Businessrate 1"},{"$f":"H47","v":2408.3916666666664},{"$f":"I47","v":1213.625},{"$f":"IFERROR(E55/D55-1,0)","v":-0.49608486991664558}]
[null,null,{"$f":"L39","v":"Homepower 4"},{"$f":"L47","v":195.57916666666665},{"$f":"M47","v":554.19166666666672},{"$f":"IFERROR(E56/D56-1,0)","v":1.8335925349922246}]
[null,null,{"$f":"P39","v":"Businessrate 4"},{"$f":"P47","v":0},{"$f":"Q47","v":0},{"$f":"IFERROR(E57/D57-1,0)","v":0}]
[]
[]
[]
[]
[]
[]
[]
[]
[]
[]
[]
[]
[]
[]
[]
[]
[]
[]
[]
[]
[]
[]
[]
[]
[]
[]
[]
[]
[]
[]
[]
[]
[]
[]
[]
[]
[]
[]
[]
[]
[]
[]
[]
[]
[]
[]
[]
[]
[]
[]
[]
[]
[null,null,"Descriptions"]
[null,null,"Rates Comparison"]
[null,null,"Average Price"]

{"sheet":"FAQ","index":4,"n_rows":4,"n_cols":2,"rows_kept":4,"cut":false,"hidden":true,"merged":[]}
[]
[]
[]
[null,"Frequently Asked Questions"]

{"sheet":"Rates Table","index":5,"n_rows":53,"n_cols":57,"rows_kept":53,"cut":false,"hidden":true,"merged":[]}
[]
[]
[]
[null,"Rates by Tariff"]
[]
[null,"Tariffs",null,null,{"$f":"Selected_Base_Tariff","v":"Landrate 1"},{"$f":"INDEX(Full_Tariff_List,F$7,)","v":"Businessrate 1"},"Businessrate 2","Businessrate 3","Businessrate 4","Homelight 20A","Homelight 60A","Homepower 1","Homepower 2","Homepower 3","Homepower 4","Homepower Bulk","Landrate 1","Landrate 2","Landrate 3","Landrate 4","Landrate Dx","Landlight 20A","Landlight 60A","Public Lighting All Night","Public Lighting 24 Hours","Public Lighting Urban Fixed","Homeflex 1","Homeflex 2","Homeflex 3","Homeflex 4",null,{"$f":"E6","v":"Landrate 1"},"Businessrate 1","Businessrate 2","Businessrate 3","Businessrate 4","Homelight 20A","Homelight 60A","Homepower 1","Homepower 2","Homepower 3","Homepower 4","Homepower Bulk","Landrate 1","Landrate 2","Landrate 3","Landrate 4","Landrate Dx","Landlight 20A","Landlight 60A","Public Lighting All Night","Public Lighting 24 Hours","Public Lighting Urban Fixed","Homeflex 1","Homeflex 2","Homeflex 3","Homeflex 4"]
[null,null,null,null,null,1,{"$f":"F7+1","v":2},{"$f":"G7+1","v":3},4,5,6,7,8,9,10,11,12,13,14,15,{"$f":"T7+1","v":16},17,18,19,20,21,33,{"$f":"AA7+1","v":34},{"$f":"AB7+1","v":35},{"$f":"AC7+1","v":36}]
[null,"Network charges",null,"Units",{"$f":"Current_Period&\" Rates\"","v":"2024/25 Tariff Book Rates"},"2024/25 Tariff Book Rates","2024/25 Tariff Book Rates","2024/25 Tariff Book Rates","2024/25 Tariff Book Rates","2024/25 Tariff Book Rates","2024/25 Tariff Book Rates","2024/25 Tariff Book Rates","2024/25 Tariff Book Rates","2024/25 Tariff Book Rates","2024/25 Tariff Book Rates","2024/25 Tariff Book Rates","2024/25 Tariff Book Rates","2024/25 Tariff Book Rates","2024/25 Tariff Book Rates","2024/25 Tariff Book Rates","2024/25 Tariff Book Rates","2024/25 Tariff Book Rates","2024/25 Tariff Book Rates","2024/25 Tariff Book Rates","2024/25 Tariff Book Rates","2024/25 Tariff Book Rates","2024/25 Tariff Book Rates","2024/25 Tariff Book Rates","2024/25 Tariff Book Rates","2024/25 Tariff Book Rates",null,{"$f":"New_Period&\" Rates\"","v":"2024/25 RTP Rates"},{"$f":"AF8","v":"2024/25 RTP Rates"},{"$f":"AG8","v":"2024/25 RTP Rates"},"2024/25 RTP Rates","2024/25 RTP Rates","2024/25 RTP Rates","2024/25 RTP Rates","2024/25 RTP Rates","2024/25 RTP Rates","2024/25 RTP Rates","2024/25 RTP Rates","2024/25 RTP Rates","2024/25 RTP Rates","2024/25 RTP Rates","2024/25 RTP Rates","2024/25 RTP Rates",{"$f":"AU8","v":"2024/25 RTP Rates"},"2024/25 RTP Rates","2024/25 RTP Rates","2024/25 RTP Rates","2024/25 RTP Rates","2024/25 RTP Rates",{"$f":"AZ8","v":"2024/25 RTP Rates"},"2024/25 RTP Rates","2024/25 RTP Rates","2024/25 RTP Rates"]
[]
[null,null,"Distribution network demand charge","c/kWh",{"$f":"SUMIFS(F10:AD10,$F$7:$AD$7,Selected_Tariff_ID)","v":52.09},{"$f":"INDEX(Rates_AllOther_Current[Network demand charge '[c/kWh']],MATCH(F$40,Rates_AllOther_Current[Code],0))","v":29.57},{"$f":"INDEX(Rates_AllOther_Current[Network demand charge '[c/kWh']],MATCH(G$40,Rates_AllOther_Current[Code],0))","v":29.57},{"$f":"INDEX(Rates_AllOther_Current[Network demand charge '[c/kWh']],MATCH(H$40,Rates_AllOther_Current[Code],0))","v":29.57},{"$f":"INDEX(Rates_AllOther_Current[Network demand charge '[c/kWh']],MATCH(I$40,Rates_AllOther_Current[Code],0))","v":29.57},{"$f":"INDEX(Rates_AllOther_Current[Network demand charge '[c/kWh']],MATCH(J$40,Rates_AllOther_Current[Code],0))","v":0},{"$f":"INDEX(Rates_AllOther_Current[Network demand charge '[c/kWh']],MATCH(K$40,Rates_AllOther_Current[Code],0))","v":0},{"$f":"INDEX(Rates_AllOther_Current[Network demand charge '[c/kWh']],MATCH(L$40,Rates_AllOther_Current[Code],0))","v":0},{"$f":"INDEX(Rates_AllOther_Current[Network demand charge '[c/kWh']],MATCH(M$40,Rates_AllOther_Current[Code],0))","v":0},{"$f":"INDEX(Rates_AllOther_Current[Network demand charge '[c/kWh']],MATCH(N$40,Rates_AllOther_Current[Code],0))","v":0},{"$f":"INDEX(Rates_AllOther_Current[Network demand charge '[c/kWh']],MATCH(O$40,Rates_AllOther_Current[Code],0))","v":0},{"$f":"INDEX(Rates_AllOther_Current[Network demand charge '[c/kWh']],MATCH(P$40,Rates_AllOther_Current[Code],0))","v":0},{"$f":"INDEX(Rates_AllOther_Current[Network demand charge '[c/kWh']],MATCH(Q$40,Rates_AllOther_Current[Code],0))","v":52.09},{"$f":"INDEX(Rates_AllOther_Current[Network demand charge '[c/kWh']],MATCH(R$40,Rates_AllOther_Current[Code],0))","v":52.09},{"$f":"INDEX(Rates_AllOther_Current[Network demand charge '[c/kWh']],MATCH(S$40,Rates_AllOther_Current[Code],0))","v":52.09},{"$f":"INDEX(Rates_AllOther_Current[Network demand charge '[c/kWh']],MATCH(T$40,Rates_AllOther_Current[Code],0))","v":52.09},{"$f":"INDEX(Rates_AllOther_Current[Network demand charge '[c/kWh']],MATCH(U$40,Rates_AllOther_Current[Code],0))","v":0},{"$f":"INDEX(Rates_AllOther_Current[Network demand charge '[c/kWh']],MATCH(V$40,Rates_AllOther_Current[Code],0))","v":0},{"$f":"INDEX(Rates_AllOther_Current[Network demand charge '[c/kWh']],MATCH(W$40,Rates_AllOther_Current[Code],0))","v":0},{"$f":"INDEX(Rates_AllOther_Current[Network demand charge '[c/kWh']],MATCH(X$40,Rates_AllOther_Current[Code],0))","v":0},{"$f":"INDEX(Rates_AllOther_Current[Network demand charge '[c/kWh']],MATCH(Y$40,Rates_AllOther_Current[Code],0))","v":0},{"$f":"INDEX(Rates_AllOther_Current[Network demand charge '[c/kWh']],MATCH(Z$40,Rates_AllOther_Current[Code],0))","v":0},"n/a","n/a","n/a","n/a",null,{"$f":"SUMIFS(AG10:BE10,$F$7:$AD$7,Selected_Tariff_ID)","v":54.75},{"$f":"INDEX(Rates_AllOther_New[Network demand charge '[c/kWh']],MATCH(AG$40,Rates_AllOther_New[Code],0))","v":12.9},{"$f":"INDEX(Rates_AllOther_New[Network demand charge '[c/kWh']],MATCH(AH$40,Rates_AllOther_New[Code],0))","v":12.9},{"$f":"INDEX(Rates_AllOther_New[Network demand charge '[c/kWh']],MATCH(AI$40,Rates_AllOther_New[Code],0))","v":12.9},{"$f":"INDEX(Rates_AllOther_New[Network demand charge '[c/kWh']],MATCH(AJ$40,Rates_AllOther_New[Code],0))","v":12.9},{"$f":"INDEX(Rates_AllOther_New[Network demand charge '[c/kWh']],MATCH(AK$40,Rates_AllOther_New[Code],0))","v":0},{"$f":"INDEX(Rates_AllOther_New[Network demand charge '[c/kWh']],MATCH(AL$40,Rates_AllOther_New[Code],0))","v":0},{"$f":"INDEX(Rates_AllOther_New[Network demand charge '[c/kWh']],MATCH(AM$40,Rates_AllOther_New[Code],0))","v":23.39},{"$f":"INDEX(Rates_AllOther_New[Network demand charge '[c/kWh']],MATCH(AN$40,Rates_AllOther_New[Code],0))","v":23.39},{"$f":"INDEX(Rates_AllOther_New[Network demand charge '[c/kWh']],MATCH(AO$40,Rates_AllOther_New[Code],0))","v":23.39},{"$f":"INDEX(Rates_AllOther_New[Network demand charge '[c/kWh']],MATCH(AP$40,Rates_AllOther_New[Code],0))","v":23.39},{"$f":"INDEX(Rates_AllOther_New[Network demand charge '[c/kWh']],MATCH(AQ$40,Rates_AllOther_New[Code],0))","v":23.39},{"$f":"INDEX(Rates_AllOther_New[Network demand charge '[c/kWh']],MATCH(AR$40,Rates_AllOther_New[Code],0))","v":54.75},{"$f":"INDEX(Rates_AllOther_New[Network demand charge '[c/kWh']],MATCH(AS$40,Rates_AllOther_New[Code],0))","v":54.75},{"$f":"INDEX(Rates_AllOther_New[Network demand charge '[c/kWh']],MATCH(AT$40,Rates_AllOther_New[Code],0))","v":54.75},{"$f":"INDEX(Rates_AllOther_New[Network demand charge '[c/kWh']],MATCH(AU$40,Rates_AllOther_New[Code],0))","v":54.75},{"$f":"INDEX(Rates_AllOther_New[Network demand charge '[c/kWh']],MATCH(AV$40,Rates_AllOther_New[Code],0))","v":0},{"$f":"INDEX(Rates_AllOther_New[Network demand charge '[c/kWh']],MATCH(AW$40,Rates_AllOther_New[Code],0))","v":0},{"$f":"INDEX(Rates_AllOther_New[Network demand charge '[c/kWh']],MATCH(AX$40,Rates_AllOther_New[Code],0))","v":0},{"$f":"INDEX(Rates_AllOther_New[Network demand charge '[c/kWh']],MATCH(AY$40,Rates_AllOther_New[Code],0))","v":0},{"$f":"INDEX(Rates_AllOther_New[Network demand charge '[c/kWh']],MATCH(AZ$40,Rates_AllOther_New[Code],0))","v":0},{"$f":"INDEX(Rates_AllOther_New[Network demand charge '[c/kWh']],MATCH(BA$40,Rates_AllOther_New[Code],0))","v":0},{"$f":"INDEX(Rates_AllOther_New[Network demand charge '[c/kWh']],MATCH(BB$40,Rates_AllOther_New[Code],0))","v":23.39},{"$f":"INDEX(Rates_AllOther_New[Network demand charge '[c/kWh']],MATCH(BC$40,Rates_AllOther_New[Code],0))","v":23.39},{"$f":"INDEX(Rates_AllOther_New[Network demand charge '[c/kWh']],MATCH(BD$40,Rates_AllOther_New[Code],0))","v":23.39},{"$f":"INDEX(Rates_AllOther_New[Network demand charge '[c/kWh']],MATCH(BE$40,Rates_AllOther_New[Code],0))","v":23.39}]
[null,null,"Network demand charge, Ancillary service charge and retail","c/kWh",{"$f":"SUMIFS(F11:AD11,$F$7:$AD$7,Selected_Tariff_ID)","v":0},null,null,null,null,null,null,null,null,null,null,null,null,null,null,null,null,null,null,null,null,null,{"$f":"INDEX(Rates_AllOther_Current[Network demand charge, Ancillary service charge and retail '[c/kWh']],MATCH(AA$40,Rates_AllOther_Current[Code],0))","v":126.39},{"$f":"INDEX(Rates_AllOther_Current[Network demand charge, Ancillary service charge and retail '[c/kWh']],MATCH(AB$40,Rates_AllOther_Current[Code],0))","v":126.39},{"$f":"INDEX(Rates_AllOther_Current[Network demand charge, Ancillary service charge and retail '[c/kWh']],MATCH(AC$40,Rates_AllOther_Current[Code],0))","v":126.39},{"$f":"INDEX(Rates_AllOther_Current[Network demand charge, Ancillary service charge and retail '[c/kWh']],MATCH(AD$40,Rates_AllOther_Current[Code],0))","v":126.39},null,{"$f":"SUMIFS(AG11:BE11,$F$7:$AD$7,Selected_Tariff_ID)","v":0},null,null,null,null,null,null,null,null,null,null,null,null,null,null,null,null,null,null,null,null,null,{"$f":"INDEX(Rates_AllOther_New[Network demand charge, Ancillary service charge and retail '[c/kWh']],MATCH(BB$40,Rates_AllOther_New[Code],0))","v":0},{"$f":"INDEX(Rates_AllOther_New[Network demand charge, Ancillary service charge and retail '[c/kWh']],MATCH(BC$40,Rates_AllOther_New[Code],0))","v":0},{"$f":"INDEX(Rates_AllOther_New[Network demand charge, Ancillary service charge and retail '[c/kWh']],MATCH(BD$40,Rates_AllOther_New[Code],0))","v":0},{"$f":"INDEX(Rates_AllOther_New[Network demand charge, Ancillary service charge and retail '[c/kWh']],MATCH(BE$40,Rates_AllOther_New[Code],0))","v":0}]
[null,null,"Network capacity charge",{"$f":"IF(Table_1=1,\"R/kVA\",\"R/day\")","v":"R/day"},{"$f":"SUMIFS(F12:AD12,$F$7:$AD$7,Selected_Tariff_ID)","v":55.68},{"$f":"INDEX(Rates_AllOther_Current[Network capacity charge '[R/POD/day']],MATCH(F$40,Rates_AllOther_Current[Code],0))","v":42.47},{"$f":"INDEX(Rates_AllOther_Current[Network capacity charge '[R/POD/day']],MATCH(G$40,Rates_AllOther_Current[Code],0))","v":71.569999999999993},{"$f":"INDEX(Rates_AllOther_Current[Network capacity charge '[R/POD/day']],MATCH(H$40,Rates_AllOther_Current[Code],0))","v":123.64},{"$f":"INDEX(Rates_AllOther_Current[Network capacity charge '[R/POD/day']],MATCH(I$40,Rates_AllOther_Current[Code],0))","v":0},{"$f":"INDEX(Rates_AllOther_Current[Network capacity charge '[R/POD/day']],MATCH(J$40,Rates_AllOther_Current[Code],0))","v":0},{"$f":"INDEX(Rates_AllOther_Current[Network capacity charge '[R/POD/day']],MATCH(K$40,Rates_AllOther_Current[Code],0))","v":0},{"$f":"INDEX(Rates_AllOther_Current[Network capacity charge '[R/POD/day']],MATCH(L$40,Rates_AllOther_Current[Code],0))","v":10.52},{"$f":"INDEX(Rates_AllOther_Current[Network capacity charge '[R/POD/day']],MATCH(M$40,Rates_AllOther_Current[Code],0))","v":19.71},{"$f":"INDEX(Rates_AllOther_Current[Network capacity charge '[R/POD/day']],MATCH(N$40,Rates_AllOther_Current[Code],0))","v":40.69},{"$f":"INDEX(Rates_AllOther_Current[Network capacity charge '[R/POD/day']],MATCH(O$40,Rates_AllOther_Current[Code],0))","v":6.43},{"$f":"INDEX(Rates_AllOther_Current[Network capacity charge '[R/POD/day']],MATCH(P$40,Rates_AllOther_Current[Code],0))","v":66.72},{"$f":"INDEX(Rates_AllOther_Current[Network capacity charge '[R/POD/day']],MATCH(Q$40,Rates_AllOther_Current[Code],0))","v":55.68},{"$f":"INDEX(Rates_AllOther_Current[Network capacity charge '[R/POD/day']],MATCH(R$40,Rates_AllOther_Current[Code],0))","v":85.59},{"$f":"INDEX(Rates_AllOther_Current[Network capacity charge '[R/POD/day']],MATCH(S$40,Rates_AllOther_Current[Code],0))","v":136.84},{"$f":"INDEX(Rates_AllOther_Current[Network capacity charge '[R/POD/day']],MATCH(T$40,Rates_AllOther_Current[Code],0))","v":44.34},{"$f":"INDEX(Rates_AllOther_Current[Network capacity charge '[R/POD/day']],MATCH(U$40,Rates_AllOther_Current[Code],0))","v":0},{"$f":"INDEX(Rates_AllOther_Current[Network capacity charge '[R/POD/day']],MATCH(V$40,Rates_AllOther_Current[Code],0))","v":0},{"$f":"INDEX(Rates_AllOther_Current[Network capacity charge '[R/POD/day']],MATCH(W$40,Rates_AllOther_Current[Code],0))","v":0},{"$f":"INDEX(Rates_AllOther_Current[Network capacity charge '[R/POD/day']],MATCH(X$40,Rates_AllOther_Current[Code],0))","v":0},{"$f":"INDEX(Rates_AllOther_Current[Network capacity charge '[R/POD/day']],MATCH(Y$40,Rates_AllOther_Current[Code],0))","v":0},{"$f":"INDEX(Rates_AllOther_Current[Network capacity charge '[R/POD/day']],MATCH(Z$40,Rates_AllOther_Current[Code],0))","v":0},{"$f":"INDEX(Rates_AllOther_Current[Network capacity charge '[R/POD/day']],MATCH(AA$40,Rates_AllOther_Current[Code],0))","v":10.52},{"$f":"INDEX(Rates_AllOther_Current[Network capacity charge '[R/POD/day']],MATCH(AB$40,Rates_AllOther_Current[Code],0))","v":19.71},{"$f":"INDEX(Rates_AllOther_Current[Network capacity charge '[R/POD/day']],MATCH(AC$40,Rates_AllOther_Current[Code],0))","v":40.69},{"$f":"INDEX(Rates_AllOther_Current[Network capacity charge '[R/POD/day']],MATCH(AD$40,Rates_AllOther_Current[Code],0))","v":6.43},null,{"$f":"SUMIFS(AG12:BE12,$F$7:$AD$7,Selected_Tariff_ID)","v":55.17},{"$f":"INDEX(Rates_AllOther_New[Network capacity charge '[R/POD/day']],MATCH(AG$40,Rates_AllOther_New[Code],0))","v":18.04},{"$f":"INDEX(Rates_AllOther_New[Network capacity charge '[R/POD/day']],MATCH(AH$40,Rates_AllOther_New[Code],0))","v":26.8},{"$f":"INDEX(Rates_AllOther_New[Network capacity charge '[R/POD/day']],MATCH(AI$40,Rates_AllOther_New[Code],0))","v":66.86},{"$f":"INDEX(Rates_AllOther_New[Network capacity charge '[R/POD/day']],MATCH(AJ$40,Rates_AllOther_New[Code],0))","v":0},{"$f":"INDEX(Rates_AllOther_New[Network capacity charge '[R/POD/day']],MATCH(AK$40,Rates_AllOther_New[Code],0))","v":0},{"$f":"INDEX(Rates_AllOther_New[Network capacity charge '[R/POD/day']],MATCH(AL$40,Rates_AllOther_New[Code],0))","v":0},{"$f":"INDEX(Rates_AllOther_New[Network capacity charge '[R/POD/day']],MATCH(AM$40,Rates_AllOther_New[Code],0))","v":10.76},{"$f":"INDEX(Rates_AllOther_New[Network capacity charge '[R/POD/day']],MATCH(AN$40,Rates_AllOther_New[Code],0))","v":24.01},{"$f":"INDEX(Rates_AllOther_New[Network capacity charge '[R/POD/day']],MATCH(AO$40,Rates_AllOther_New[Code],0))","v":51.29},{"$f":"INDEX(Rates_AllOther_New[Network capacity charge '[R/POD/day']],MATCH(AP$40,Rates_AllOther_New[Code],0))","v":7.41},{"$f":"INDEX(Rates_AllOther_New[Network capacity charge '[R/POD/day']],MATCH(AQ$40,Rates_AllOther_New[Code],0))","v":0},{"$f":"INDEX(Rates_AllOther_New[Network capacity charge '[R/POD/day']],MATCH(AR$40,Rates_AllOther_New[Code],0))","v":55.17},{"$f":"INDEX(Rates_AllOther_New[Network capacity charge '[R/POD/day']],MATCH(AS$40,Rates_AllOther_New[Code],0))","v":86.03},{"$f":"INDEX(Rates_AllOther_New[Network capacity charge '[R/POD/day']],MATCH(AT$40,Rates_AllOther_New[Code],0))","v":137.77000000000001},{"$f":"INDEX(Rates_AllOther_New[Network capacity charge '[R/POD/day']],MATCH(AU$40,Rates_AllOther_New[Code],0))","v":40.729999999999997},{"$f":"INDEX(Rates_AllOther_New[Network capacity charge '[R/POD/day']],MATCH(AV$40,Rates_AllOther_New[Code],0))","v":0},{"$f":"INDEX(Rates_AllOther_New[Network capacity charge '[R/POD/day']],MATCH(AW$40,Rates_AllOther_New[Code],0))","v":0},{"$f":"INDEX(Rates_AllOther_New[Network capacity charge '[R/POD/day']],MATCH(AX$40,Rates_AllOther_New[Code],0))","v":0},{"$f":"INDEX(Rates_AllOther_New[Network capacity charge '[R/POD/day']],MATCH(AY$40,Rates_AllOther_New[Code],0))","v":0},{"$f":"INDEX(Rates_AllOther_New[Network capacity charge '[R/POD/day']],MATCH(AZ$40,Rates_AllOther_New[Code],0))","v":0},{"$f":"INDEX(Rates_AllOther_New[Network capacity charge '[R/POD/day']],MATCH(BA$40,Rates_AllOther_New[Code],0))","v":0},{"$f":"INDEX(Rates_AllOther_New[Network capacity charge '[R/POD/day']],MATCH(BB$40,Rates_AllOther_New[Code],0))","v":10.76},{"$f":"INDEX(Rates_AllOther_New[Network capacity charge '[R/POD/day']],MATCH(BC$40,Rates_AllOther_New[Code],0))","v":24.01},{"$f":"INDEX(Rates_AllOther_New[Network capacity charge '[R/POD/day']],MATCH(BD$40,Rates_AllOther_New[Code],0))","v":51.29},{"$f":"INDEX(Rates_AllOther_New[Network capacity charge '[R/POD/day']],MATCH(BE$40,Rates_AllOther_New[Code],0))","v":7.41}]
[]
[null,"Total network charges"]
[]
[null,"Energy charges - High",null,"Units",{"$f":"E$8","v":"2024/25 Tariff Book Rates"},{"$f":"F$8","v":"2024/25 Tariff Book Rates"},"2024/25 Tariff Book Rates","2024/25 Tariff Book Rates","2024/25 Tariff Book Rates","2024/25 Tariff Book Rates","2024/25 Tariff Book Rates","2024/25 Tariff Book Rates","2024/25 Tariff Book Rates","2024/25 Tariff Book Rates","2024/25 Tariff Book Rates","2024/25 Tariff Book Rates","2024/25 Tariff Book Rates","2024/25 Tariff Book Rates","2024/25 Tariff Book Rates","2024/25 Tariff Book Rates","2024/25 Tariff Book Rates","2024/25 Tariff Book Rates","2024/25 Tariff Book Rates","2024/25 Tariff Book Rates","2024/25 Tariff Book Rates","2024/25 Tariff Book Rates","2024/25 Tariff Book Rates","2024/25 Tariff Book Rates","2024/25 Tariff Book Rates","2024/25 Tariff Book Rates",null,{"$f":"AF$8","v":"2024/25 RTP Rates"},{"$f":"AG$8","v":"2024/25 RTP Rates"},"2024/25 RTP Rates","2024/25 RTP Rates","2024/25 RTP Rates","2024/25 RTP Rates","2024/25 RTP Rates","2024/25 RTP Rates","2024/25 RTP Rates","2024/25 RTP Rates","2024/25 RTP Rates","2024/25 RTP Rates","2024/25 RTP Rates","2024/25 RTP Rates","2024/25 RTP Rates","2024/25 RTP Rates","2024/25 RTP Rates","2024/25 RTP Rates","2024/25 RTP Rates","2024/25 RTP Rates","2024/25 RTP Rates","2024/25 RTP Rates","2024/25 RTP Rates","2024/25 RTP Rates","2024/25 RTP Rates","2024/25 RTP Rates"]
[]
[null,null,"Energy","c/kWh",{"$f":"SUMIFS(F18:AD18,$F$7:$AD$7,Selected_Tariff_ID)","v":208.48},{"$f":"INDEX(Rates_AllOther_Current[Energy charge '[c/kWh']],MATCH(F$40,Rates_AllOther_Current[Code],0))","v":209.5},{"$f":"INDEX(Rates_AllOther_Current[Energy charge '[c/kWh']],MATCH(G$40,Rates_AllOther_Current[Code],0))","v":209.5},{"$f":"INDEX(Rates_AllOther_Current[Energy charge '[c/kWh']],MATCH(H$40,Rates_AllOther_Current[Code],0))","v":209.5},{"$f":"INDEX(Rates_AllOther_Current[Energy charge '[c/kWh']],MATCH(I$40,Rates_AllOther_Current[Code],0))","v":563.80999999999995},{"$f":"INDEX(Rates_AllOther_Current[Energy charge '[c/kWh']],MATCH(J$40,Rates_AllOther_Current[Code],0))","v":0},{"$f":"INDEX(Rates_AllOther_Current[Energy charge '[c/kWh']],MATCH(K$40,Rates_AllOther_Current[Code],0))","v":0},{"$f":"INDEX(Rates_AllOther_Current[Energy charge '[c/kWh']],MATCH(L$40,Rates_AllOther_Current[Code],0))","v":0},{"$f":"INDEX(Rates_AllOther_Current[Energy charge '[c/kWh']],MATCH(M$40,Rates_AllOther_Current[Code],0))","v":0},{"$f":"INDEX(Rates_AllOther_Current[Energy charge '[c/kWh']],MATCH(N$40,Rates_AllOther_Current[Code],0))","v":0},{"$f":"INDEX(Rates_AllOther_Current[Energy charge '[c/kWh']],MATCH(O$40,Rates_AllOther_Current[Code],0))","v":0},{"$f":"INDEX(Rates_AllOther_Current[Energy charge '[c/kWh']],MATCH(P$40,Rates_AllOther_Current[Code],0))","v":322.39},{"$f":"INDEX(Rates_AllOther_Current[Energy charge '[c/kWh']],MATCH(Q$40,Rates_AllOther_Current[Code],0))","v":208.48},{"$f":"INDEX(Rates_AllOther_Current[Energy charge '[c/kWh']],MATCH(R$40,Rates_AllOther_Current[Code],0))","v":208.48},{"$f":"INDEX(Rates_AllOther_Current[Energy charge '[c/kWh']],MATCH(S$40,Rates_AllOther_Current[Code],0))","v":208.48},{"$f":"INDEX(Rates_AllOther_Current[Energy charge '[c/kWh']],MATCH(T$40,Rates_AllOther_Current[Code],0))","v":450.29},{"$f":"INDEX(Rates_AllOther_Current[Energy charge '[c/kWh']],MATCH(U$40,Rates_AllOther_Current[Code],0))","v":0},{"$f":"INDEX(Rates_AllOther_Current[Energy charge '[c/kWh']],MATCH(V$40,Rates_AllOther_Current[Code],0))","v":599.48},{"$f":"INDEX(Rates_AllOther_Current[Energy charge '[c/kWh']],MATCH(W$40,Rates_AllOther_Current[Code],0))","v":772.81},{"$f":"INDEX(Rates_AllOther_Current[Energy charge '[c/kWh']],MATCH(X$40,Rates_AllOther_Current[Code],0))","v":166.73},{"$f":"INDEX(Rates_AllOther_Current[Energy charge '[c/kWh']],MATCH(Y$40,Rates_AllOther_Current[Code],0))","v":223.24},{"$f":"INDEX(Rates_AllOther_Current[Energy charge '[c/kWh']],MATCH(Z$40,Rates_AllOther_Current[Code],0))","v":0},{"$f":"INDEX(Rates_AllOther_Current[Energy charge '[c/kWh']],MATCH(AA$40,Rates_AllOther_Current[Code],0))","v":0},{"$f":"INDEX(Rates_AllOther_Current[Energy charge '[c/kWh']],MATCH(AB$40,Rates_AllOther_Current[Code],0))","v":0},{"$f":"INDEX(Rates_AllOther_Current[Energy charge '[c/kWh']],MATCH(AC$40,Rates_AllOther_Current[Code],0))","v":0},{"$f":"INDEX(Rates_AllOther_Current[Energy charge '[c/kWh']],MATCH(AD$40,Rates_AllOther_Current[Code],0))","v":0},null,{"$f":"SUMIFS(AG18:BE18,$F$7:$AD$7,Selected_Tariff_ID)","v":202.57},{"$f":"INDEX(Rates_AllOther_New[Energy charge '[c/kWh']],MATCH(AG$40,Rates_AllOther_New[Code],0))","v":188.86},{"$f":"INDEX(Rates_AllOther_New[Energy charge '[c/kWh']],MATCH(AH$40,Rates_AllOther_New[Code],0))","v":188.86},{"$f":"INDEX(Rates_AllOther_New[Energy charge '[c/kWh']],MATCH(AI$40,Rates_AllOther_New[Code],0))","v":188.86},{"$f":"INDEX(Rates_AllOther_New[Energy charge '[c/kWh']],MATCH(AJ$40,Rates_AllOther_New[Code],0))","v":317.48},{"$f":"INDEX(Rates_AllOther_New[Energy charge '[c/kWh']],MATCH(AK$40,Rates_AllOther_New[Code],0))","v":191.69},{"$f":"INDEX(Rates_AllOther_New[Energy charge '[c/kWh']],MATCH(AL$40,Rates_AllOther_New[Code],0))","v":243.68},{"$f":"INDEX(Rates_AllOther_New[Energy charge '[c/kWh']],MATCH(AM$40,Rates_AllOther_New[Code],0))","v":206.78},{"$f":"INDEX(Rates_AllOther_New[Energy charge '[c/kWh']],MATCH(AN$40,Rates_AllOther_New[Code],0))","v":206.78},{"$f":"INDEX(Rates_AllOther_New[Energy charge '[c/kWh']],MATCH(AO$40,Rates_AllOther_New[Code],0))","v":206.78},{"$f":"INDEX(Rates_AllOther_New[Energy charge '[c/kWh']],MATCH(AP$40,Rates_AllOther_New[Code],0))","v":206.78},{"$f":"INDEX(Rates_AllOther_New[Energy charge '[c/kWh']],MATCH(AQ$40,Rates_AllOther_New[Code],0))","v":206.78},{"$f":"INDEX(Rates_AllOther_New[Energy charge '[c/kWh']],MATCH(AR$40,Rates_AllOther_New[Code],0))","v":202.57},{"$f":"INDEX(Rates_AllOther_New[Energy charge '[c/kWh']],MATCH(AS$40,Rates_AllOther_New[Code],0))","v":202.57},{"$f":"INDEX(Rates_AllOther_New[Energy charge '[c/kWh']],MATCH(AT$40,Rates_AllOther_New[Code],0))","v":202.57},{"$f":"INDEX(Rates_AllOther_New[Energy charge '[c/kWh']],MATCH(AU$40,Rates_AllOther_New[Code],0))","v":330.64},{"$f":"INDEX(Rates_AllOther_New[Energy charge '[c/kWh']],MATCH(AV$40,Rates_AllOther_New[Code],0))","v":0},{"$f":"INDEX(Rates_AllOther_New[Energy charge '[c/kWh']],MATCH(AW$40,Rates_AllOther_New[Code],0))","v":543.6},{"$f":"INDEX(Rates_AllOther_New[Energy charge '[c/kWh']],MATCH(AX$40,Rates_AllOther_New[Code],0))","v":762.65},{"$f":"INDEX(Rates_AllOther_New[Energy charge '[c/kWh']],MATCH(AY$40,Rates_AllOther_New[Code],0))","v":206.28},{"$f":"INDEX(Rates_AllOther_New[Energy charge '[c/kWh']],MATCH(AZ$40,Rates_AllOther_New[Code],0))","v":196.47},{"$f":"INDEX(Rates_AllOther_New[Energy charge '[c/kWh']],MATCH(BA$40,Rates_AllOther_New[Code],0))","v":0},{"$f":"INDEX(Rates_AllOther_New[Energy charge '[c/kWh']],MATCH(BB$40,Rates_AllOther_New[Code],0))","v":"n/a"},{"$f":"INDEX(Rates_AllOther_New[Energy charge '[c/kWh']],MATCH(BC$40,Rates_AllOther_New[Code],0))","v":"n/a"},{"$f":"INDEX(Rates_AllOther_New[Energy charge '[c/kWh']],MATCH(BD$40,Rates_AllOther_New[Code],0))","v":"n/a"},{"$f":"INDEX(Rates_AllOther_New[Energy charge '[c/kWh']],MATCH(BE$40,Rates_AllOther_New[Code],0))","v":"n/a"}]
[null,null,"Peak consumption","c/kWh",0,null,null,null,null,null,null,null,null,null,null,null,null,null,null,null,null,null,null,null,null,null,{"$f":"INDEX(Rates_AllOther_Current[High - Peak],MATCH(AA$40,Rates_AllOther_Current[Code],0))","v":611.94000000000005},{"$f":"INDEX(Rates_AllOther_Current[High - Peak],MATCH(AB$40,Rates_AllOther_Current[Code],0))","v":611.94000000000005},{"$f":"INDEX(Rates_AllOther_Current[High - Peak],MATCH(AC$40,Rates_AllOther_Current[Code],0))","v":611.94000000000005},{"$f":"INDEX(Rates_AllOther_Current[High - Peak],MATCH(AD$40,Rates_AllOther_Current[Code],0))","v":611.94000000000005},null,0,null,null,null,null,null,null,null,null,null,null,null,null,null,null,null,null,null,null,null,null,null,{"$f":"INDEX(Rates_AllOther_New[High - Peak],MATCH(BB$40,Rates_AllOther_New[Code],0))","v":571.16999999999996},{"$f":"INDEX(Rates_AllOther_New[High - Peak],MATCH(BC$40,Rates_AllOther_New[Code],0))","v":571.16999999999996},{"$f":"INDEX(Rates_AllOther_New[High - Peak],MATCH(BD$40,Rates_AllOther_New[Code],0))","v":571.16999999999996},{"$f":"INDEX(Rates_AllOther_New[High - Peak],MATCH(BE$40,Rates_AllOther_New[Code],0))","v":571.16999999999996}]
[null,null,"Standard consumption","c/kWh",0,null,null,null,null,null,null,null,null,null,null,null,null,null,null,null,null,null,null,null,null,null,{"$f":"INDEX(Rates_AllOther_Current[High - Standard],MATCH(AA$40,Rates_AllOther_Current[Code],0))","v":186.18},{"$f":"INDEX(Rates_AllOther_Current[High - Standard],MATCH(AB$40,Rates_AllOther_Current[Code],0))","v":186.18},{"$f":"INDEX(Rates_AllOther_Current[High - Standard],MATCH(AC$40,Rates_AllOther_Current[Code],0))","v":186.18},{"$f":"INDEX(Rates_AllOther_Current[High - Standard],MATCH(AD$40,Rates_AllOther_Current[Code],0))","v":186.18},null,0,null,null,null,null,null,null,null,null,null,null,null,null,null,null,null,null,null,null,null,null,null,{"$f":"INDEX(Rates_AllOther_New[High - Standard],MATCH(BB$40,Rates_AllOther_New[Code],0))","v":163},{"$f":"INDEX(Rates_AllOther_New[High - Standard],MATCH(BC$40,Rates_AllOther_New[Code],0))","v":163},{"$f":"INDEX(Rates_AllOther_New[High - Standard],MATCH(BD$40,Rates_AllOther_New[Code],0))","v":163},{"$f":"INDEX(Rates_AllOther_New[High - Standard],MATCH(BE$40,Rates_AllOther_New[Code],0))","v":163}]
[null,null,"Off-Peak consumption","c/kWh",0,null,null,null,null,null,null,null,null,null,null,null,null,null,null,null,null,null,null,null,null,null,{"$f":"INDEX(Rates_AllOther_Current[High-Off Peak],MATCH(AA$40,Rates_AllOther_Current[Code],0))","v":101.66},{"$f":"INDEX(Rates_AllOther_Current[High-Off Peak],MATCH(AB$40,Rates_AllOther_Current[Code],0))","v":101.66},{"$f":"INDEX(Rates_AllOther_Current[High-Off Peak],MATCH(AC$40,Rates_AllOther_Current[Code],0))","v":101.66},{"$f":"INDEX(Rates_AllOther_Current[High-Off Peak],MATCH(AD$40,Rates_AllOther_Current[Code],0))","v":101.66},null,0,null,null,null,null,null,null,null,null,null,null,null,null,null,null,null,null,null,null,null,null,null,{"$f":"INDEX(Rates_AllOther_New[High-Off Peak],MATCH(BB$40,Rates_AllOther_New[Code],0))","v":115.41},{"$f":"INDEX(Rates_AllOther_New[High-Off Peak],MATCH(BC$40,Rates_AllOther_New[Code],0))","v":115.41},{"$f":"INDEX(Rates_AllOther_New[High-Off Peak],MATCH(BD$40,Rates_AllOther_New[Code],0))","v":115.41},{"$f":"INDEX(Rates_AllOther_New[High-Off Peak],MATCH(BE$40,Rates_AllOther_New[Code],0))","v":115.41}]
[null,null,"Energy - Block 1","c/kWh",0,{"$f":"INDEX(Rates_AllOther_Current[Energy charge Block 1 '[c/kWh']],MATCH(F$40,Rates_AllOther_Current[Code],0))","v":0},{"$f":"INDEX(Rates_AllOther_Current[Energy charge Block 1 '[c/kWh']],MATCH(G$40,Rates_AllOther_Current[Code],0))","v":0},{"$f":"INDEX(Rates_AllOther_Current[Energy charge Block 1 '[c/kWh']],MATCH(H$40,Rates_AllOther_Current[Code],0))","v":0},{"$f":"INDEX(Rates_AllOther_Current[Energy charge Block 1 '[c/kWh']],MATCH(I$40,Rates_AllOther_Current[Code],0))","v":0},{"$f":"INDEX(Rates_AllOther_Current[Energy charge Block 1 '[c/kWh']],MATCH(J$40,Rates_AllOther_Current[Code],0))","v":190.28},{"$f":"INDEX(Rates_AllOther_Current[Energy charge Block 1 '[c/kWh']],MATCH(K$40,Rates_AllOther_Current[Code],0))","v":232.31},{"$f":"INDEX(Rates_AllOther_Current[Energy charge Block 1 '[c/kWh']],MATCH(L$40,Rates_AllOther_Current[Code],0))","v":245.54},{"$f":"INDEX(Rates_AllOther_Current[Energy charge Block 1 '[c/kWh']],MATCH(M$40,Rates_AllOther_Current[Code],0))","v":245.54},{"$f":"INDEX(Rates_AllOther_Current[Energy charge Block 1 '[c/kWh']],MATCH(N$40,Rates_AllOther_Current[Code],0))","v":245.54},{"$f":"INDEX(Rates_AllOther_Current[Energy charge Block 1 '[c/kWh']],MATCH(O$40,Rates_AllOther_Current[Code],0))","v":245.54},{"$f":"INDEX(Rates_AllOther_Current[Energy charge Block 1 '[c/kWh']],MATCH(P$40,Rates_AllOther_Current[Code],0))","v":0},{"$f":"INDEX(Rates_AllOther_Current[Energy charge Block 1 '[c/kWh']],MATCH(Q$40,Rates_AllOther_Current[Code],0))","v":0},{"$f":"INDEX(Rates_AllOther_Current[Energy charge Block 1 '[c/kWh']],MATCH(R$40,Rates_AllOther_Current[Code],0))","v":0},{"$f":"INDEX(Rates_AllOther_Current[Energy charge Block 1 '[c/kWh']],MATCH(S$40,Rates_AllOther_Current[Code],0))","v":0},{"$f":"INDEX(Rates_AllOther_Current[Energy charge Block 1 '[c/kWh']],MATCH(T$40,Rates_AllOther_Current[Code],0))","v":0},{"$f":"INDEX(Rates_AllOther_Current[Energy charge Block 1 '[c/kWh']],MATCH(U$40,Rates_AllOther_Current[Code],0))","v":0},{"$f":"INDEX(Rates_AllOther_Current[Energy charge Block 1 '[c/kWh']],MATCH(V$40,Rates_AllOther_Current[Code],0))","v":0},{"$f":"INDEX(Rates_AllOther_Current[Energy charge Block 1 '[c/kWh']],MATCH(W$40,Rates_AllOther_Current[Code],0))","v":0},{"$f":"INDEX(Rates_AllOther_Current[Energy charge Block 1 '[c/kWh']],MATCH(X$40,Rates_AllOther_Current[Code],0))","v":0},{"$f":"INDEX(Rates_AllOther_Current[Energy charge Block 1 '[c/kWh']],MATCH(Y$40,Rates_AllOther_Current[Code],0))","v":0},{"$f":"INDEX(Rates_AllOther_Current[Energy charge Block 1 '[c/kWh']],MATCH(Z$40,Rates_AllOther_Current[Code],0))","v":0},{"$f":"INDEX(Rates_AllOther_Current[Energy charge Block 1 '[c/kWh']],MATCH(AA$40,Rates_AllOther_Current[Code],0))","v":0},{"$f":"INDEX(Rates_AllOther_Current[Energy charge Block 1 '[c/kWh']],MATCH(AB$40,Rates_AllOther_Current[Code],0))","v":0},{"$f":"INDEX(Rates_AllOther_Current[Energy charge Block 1 '[c/kWh']],MATCH(AC$40,Rates_AllOther_Current[Code],0))","v":0},{"$f":"INDEX(Rates_AllOther_Current[Energy charge Block 1 '[c/kWh']],MATCH(AD$40,Rates_AllOther_Current[Code],0))","v":0},null,0,{"$f":"INDEX(Rates_AllOther_New[Energy charge Block 1 '[c/kWh']],MATCH(AG$40,Rates_AllOther_New[Code],0))","v":0},{"$f":"INDEX(Rates_AllOther_New[Energy charge Block 1 '[c/kWh']],MATCH(AH$40,Rates_AllOther_New[Code],0))","v":0},{"$f":"INDEX(Rates_AllOther_New[Energy charge Block 1 '[c/kWh']],MATCH(AI$40,Rates_AllOther_New[Code],0))","v":0},{"$f":"INDEX(Rates_AllOther_New[Energy charge Block 1 '[c/kWh']],MATCH(AJ$40,Rates_AllOther_New[Code],0))","v":0},{"$f":"INDEX(Rates_AllOther_New[Energy charge Block 1 '[c/kWh']],MATCH(AK$40,Rates_AllOther_New[Code],0))","v":0},{"$f":"INDEX(Rates_AllOther_New[Energy charge Block 1 '[c/kWh']],MATCH(AL$40,Rates_AllOther_New[Code],0))","v":0},{"$f":"INDEX(Rates_AllOther_New[Energy charge Block 1 '[c/kWh']],MATCH(AM$40,Rates_AllOther_New[Code],0))","v":0},{"$f":"INDEX(Rates_AllOther_New[Energy charge Block 1 '[c/kWh']],MATCH(AN$40,Rates_AllOther_New[Code],0))","v":0},{"$f":"INDEX(Rates_AllOther_New[Energy charge Block 1 '[c/kWh']],MATCH(AO$40,Rates_AllOther_New[Code],0))","v":0},{"$f":"INDEX(Rates_AllOther_New[Energy charge Block 1 '[c/kWh']],MATCH(AP$40,Rates_AllOther_New[Code],0))","v":0},{"$f":"INDEX(Rates_AllOther_New[Energy charge Block 1 '[c/kWh']],MATCH(AQ$40,Rates_AllOther_New[Code],0))","v":0},{"$f":"INDEX(Rates_AllOther_New[Energy charge Block 1 '[c/kWh']],MATCH(AR$40,Rates_AllOther_New[Code],0))","v":0},{"$f":"INDEX(Rates_AllOther_New[Energy charge Block 1 '[c/kWh']],MATCH(AS$40,Rates_AllOther_New[Code],0))","v":0},{"$f":"INDEX(Rates_AllOther_New[Energy charge Block 1 '[c/kWh']],MATCH(AT$40,Rates_AllOther_New[Code],0))","v":0},{"$f":"INDEX(Rates_AllOther_New[Energy charge Block 1 '[c/kWh']],MATCH(AU$40,Rates_AllOther_New[Code],0))","v":0},{"$f":"INDEX(Rates_AllOther_New[Energy charge Block 1 '[c/kWh']],MATCH(AV$40,Rates_AllOther_New[Code],0))","v":0},{"$f":"INDEX(Rates_AllOther_New[Energy charge Block 1 '[c/kWh']],MATCH(AW$40,Rates_AllOther_New[Code],0))","v":0},{"$f":"INDEX(Rates_AllOther_New[Energy charge Block 1 '[c/kWh']],MATCH(AX$40,Rates_AllOther_New[Code],0))","v":0},{"$f":"INDEX(Rates_AllOther_New[Energy charge Block 1 '[c/kWh']],MATCH(AY$40,Rates_AllOther_New[Code],0))","v":0},{"$f":"INDEX(Rates_AllOther_New[Energy charge Block 1 '[c/kWh']],MATCH(AZ$40,Rates_AllOther_New[Code],0))","v":0},{"$f":"INDEX(Rates_AllOther_New[Energy charge Block 1 '[c/kWh']],MATCH(BA$40,Rates_AllOther_New[Code],0))","v":0},{"$f":"INDEX(Rates_AllOther_New[Energy charge Block 1 '[c/kWh']],MATCH(BB$40,Rates_AllOther_New[Code],0))","v":"n/a"},{"$f":"INDEX(Rates_AllOther_New[Energy charge Block 1 '[c/kWh']],MATCH(BC$40,Rates_AllOther_New[Code],0))","v":"n/a"},{"$f":"INDEX(Rates_AllOther_New[Energy charge Block 1 '[c/kWh']],MATCH(BD$40,Rates_AllOther_New[Code],0))","v":"n/a"},{"$f":"INDEX(Rates_AllOther_New[Energy charge Block 1 '[c/kWh']],MATCH(BE$40,Rates_AllOther_New[Code],0))","v":"n/a"}]
[null,null,"Energy - Block 2","c/kWh",0,{"$f":"INDEX(Rates_AllOther_Current[Energy charge Block 2 '[c/kWh']],MATCH(F$40,Rates_AllOther_Current[Code],0))","v":0},{"$f":"INDEX(Rates_AllOther_Current[Energy charge Block 2 '[c/kWh']],MATCH(G$40,Rates_AllOther_Current[Code],0))","v":0},{"$f":"INDEX(Rates_AllOther_Current[Energy charge Block 2 '[c/kWh']],MATCH(H$40,Rates_AllOther_Current[Code],0))","v":0},{"$f":"INDEX(Rates_AllOther_Current[Energy charge Block 2 '[c/kWh']],MATCH(I$40,Rates_AllOther_Current[Code],0))","v":0},{"$f":"INDEX(Rates_AllOther_Current[Energy charge Block 2 '[c/kWh']],MATCH(J$40,Rates_AllOther_Current[Code],0))","v":215.62},{"$f":"INDEX(Rates_AllOther_Current[Energy charge Block 2 '[c/kWh']],MATCH(K$40,Rates_AllOther_Current[Code],0))","v":394.86},{"$f":"INDEX(Rates_AllOther_Current[Energy charge Block 2 '[c/kWh']],MATCH(L$40,Rates_AllOther_Current[Code],0))","v":387.72},{"$f":"INDEX(Rates_AllOther_Current[Energy charge Block 2 '[c/kWh']],MATCH(M$40,Rates_AllOther_Current[Code],0))","v":378.05},{"$f":"INDEX(Rates_AllOther_Current[Energy charge Block 2 '[c/kWh']],MATCH(N$40,Rates_AllOther_Current[Code],0))","v":378.05},{"$f":"INDEX(Rates_AllOther_Current[Energy charge Block 2 '[c/kWh']],MATCH(O$40,Rates_AllOther_Current[Code],0))","v":394.86},{"$f":"INDEX(Rates_AllOther_Current[Energy charge Block 2 '[c/kWh']],MATCH(P$40,Rates_AllOther_Current[Code],0))","v":0},{"$f":"INDEX(Rates_AllOther_Current[Energy charge Block 2 '[c/kWh']],MATCH(Q$40,Rates_AllOther_Current[Code],0))","v":0},{"$f":"INDEX(Rates_AllOther_Current[Energy charge Block 2 '[c/kWh']],MATCH(R$40,Rates_AllOther_Current[Code],0))","v":0},{"$f":"INDEX(Rates_AllOther_Current[Energy charge Block 2 '[c/kWh']],MATCH(S$40,Rates_AllOther_Current[Code],0))","v":0},{"$f":"INDEX(Rates_AllOther_Current[Energy charge Block 2 '[c/kWh']],MATCH(T$40,Rates_AllOther_Current[Code],0))","v":0},{"$f":"INDEX(Rates_AllOther_Current[Energy charge Block 2 '[c/kWh']],MATCH(U$40,Rates_AllOther_Current[Code],0))","v":0},{"$f":"INDEX(Rates_AllOther_Current[Energy charge Block 2 '[c/kWh']],MATCH(V$40,Rates_AllOther_Current[Code],0))","v":0},{"$f":"INDEX(Rates_AllOther_Current[Energy charge Block 2 '[c/kWh']],MATCH(W$40,Rates_AllOther_Current[Code],0))","v":0},{"$f":"INDEX(Rates_AllOther_Current[Energy charge Block 2 '[c/kWh']],MATCH(X$40,Rates_AllOther_Current[Code],0))","v":0},{"$f":"INDEX(Rates_AllOther_Current[Energy charge Block 2 '[c/kWh']],MATCH(Y$40,Rates_AllOther_Current[Code],0))","v":0},{"$f":"INDEX(Rates_AllOther_Current[Energy charge Block 2 '[c/kWh']],MATCH(Z$40,Rates_AllOther_Current[Code],0))","v":0},{"$f":"INDEX(Rates_AllOther_Current[Energy charge Block 2 '[c/kWh']],MATCH(AA$40,Rates_AllOther_Current[Code],0))","v":0},{"$f":"INDEX(Rates_AllOther_Current[Energy charge Block 2 '[c/kWh']],MATCH(AB$40,Rates_AllOther_Current[Code],0))","v":0},{"$f":"INDEX(Rates_AllOther_Current[Energy charge Block 2 '[c/kWh']],MATCH(AC$40,Rates_AllOther_Current[Code],0))","v":0},{"$f":"INDEX(Rates_AllOther_Current[Energy charge Block 2 '[c/kWh']],MATCH(AD$40,Rates_AllOther_Current[Code],0))","v":0},null,0,{"$f":"INDEX(Rates_AllOther_New[Energy charge Block 2 '[c/kWh']],MATCH(AG$40,Rates_AllOther_New[Code],0))","v":0},{"$f":"INDEX(Rates_AllOther_New[Energy charge Block 2 '[c/kWh']],MATCH(AH$40,Rates_AllOther_New[Code],0))","v":0},{"$f":"INDEX(Rates_AllOther_New[Energy charge Block 2 '[c/kWh']],MATCH(AI$40,Rates_AllOther_New[Code],0))","v":0},{"$f":"INDEX(Rates_AllOther_New[Energy charge Block 2 '[c/kWh']],MATCH(AJ$40,Rates_AllOther_New[Code],0))","v":0},{"$f":"INDEX(Rates_AllOther_New[Energy charge Block 2 '[c/kWh']],MATCH(AK$40,Rates_AllOther_New[Code],0))","v":0},{"$f":"INDEX(Rates_AllOther_New[Energy charge Block 2 '[c/kWh']],MATCH(AL$40,Rates_AllOther_New[Code],0))","v":0},{"$f":"INDEX(Rates_AllOther_New[Energy charge Block 2 '[c/kWh']],MATCH(AM$40,Rates_AllOther_New[Code],0))","v":0},{"$f":"INDEX(Rates_AllOther_New[Energy charge Block 2 '[c/kWh']],MATCH(AN$40,Rates_AllOther_New[Code],0))","v":0},{"$f":"INDEX(Rates_AllOther_New[Energy charge Block 2 '[c/kWh']],MATCH(AO$40,Rates_AllOther_New[Code],0))","v":0},{"$f":"INDEX(Rates_AllOther_New[Energy charge Block 2 '[c/kWh']],MATCH(AP$40,Rates_AllOther_New[Code],0))","v":0},{"$f":"INDEX(Rates_AllOther_New[Energy charge Block 2 '[c/kWh']],MATCH(AQ$40,Rates_AllOther_New[Code],0))","v":0},{"$f":"INDEX(Rates_AllOther_New[Energy charge Block 2 '[c/kWh']],MATCH(AR$40,Rates_AllOther_New[Code],0))","v":0},{"$f":"INDEX(Rates_AllOther_New[Energy charge Block 2 '[c/kWh']],MATCH(AS$40,Rates_AllOther_New[Code],0))","v":0},{"$f":"INDEX(Rates_AllOther_New[Energy charge Block 2 '[c/kWh']],MATCH(AT$40,Rates_AllOther_New[Code],0))","v":0},{"$f":"INDEX(Rates_AllOther_New[Energy charge Block 2 '[c/kWh']],MATCH(AU$40,Rates_AllOther_New[Code],0))","v":0},{"$f":"INDEX(Rates_AllOther_New[Energy charge Block 2 '[c/kWh']],MATCH(AV$40,Rates_AllOther_New[Code],0))","v":0},{"$f":"INDEX(Rates_AllOther_New[Energy charge Block 2 '[c/kWh']],MATCH(AW$40,Rates_AllOther_New[Code],0))","v":0},{"$f":"INDEX(Rates_AllOther_New[Energy charge Block 2 '[c/kWh']],MATCH(AX$40,Rates_AllOther_New[Code],0))","v":0},{"$f":"INDEX(Rates_AllOther_New[Energy charge Block 2 '[c/kWh']],MATCH(AY$40,Rates_AllOther_New[Code],0))","v":0},{"$f":"INDEX(Rates_AllOther_New[Energy charge Block 2 '[c/kWh']],MATCH(AZ$40,Rates_AllOther_New[Code],0))","v":0},{"$f":"INDEX(Rates_AllOther_New[Energy charge Block 2 '[c/kWh']],MATCH(BA$40,Rates_AllOther_New[Code],0))","v":0},{"$f":"INDEX(Rates_AllOther_New[Energy charge Block 2 '[c/kWh']],MATCH(BB$40,Rates_AllOther_New[Code],0))","v":"n/a"},{"$f":"INDEX(Rates_AllOther_New[Energy charge Block 2 '[c/kWh']],MATCH(BC$40,Rates_AllOther_New[Code],0))","v":"n/a"},{"$f":"INDEX(Rates_AllOther_New[Energy charge Block 2 '[c/kWh']],MATCH(BD$40,Rates_AllOther_New[Code],0))","v":"n/a"},{"$f":"INDEX(Rates_AllOther_New[Energy charge Block 2 '[c/kWh']],MATCH(BE$40,Rates_AllOther_New[Code],0))","v":"n/a"}]
[null,null,"Generation capacity charge","R/POD/day",null,null,null,null,null,null,null,null,null,null,null,null,null,null,null,null,null,null,null,null,null,null,null,null,null,null,null,5.99,{"$f":"INDEX(Rates_AllOther_New[Generation capacity charge '[R/POD/day']],MATCH(AG$40,Rates_AllOther_New[Code],0))","v":8.82},{"$f":"INDEX(Rates_AllOther_New[Generation capacity charge '[R/POD/day']],MATCH(AH$40,Rates_AllOther_New[Code],0))","v":13.1},{"$f":"INDEX(Rates_AllOther_New[Generation capacity charge '[R/POD/day']],MATCH(AI$40,Rates_AllOther_New[Code],0))","v":32.69},{"$f":"INDEX(Rates_AllOther_New[Generation capacity charge '[R/POD/day']],MATCH(AJ$40,Rates_AllOther_New[Code],0))","v":0},{"$f":"INDEX(Rates_AllOther_New[Generation capacity charge '[R/POD/day']],MATCH(AK$40,Rates_AllOther_New[Code],0))","v":0},{"$f":"INDEX(Rates_AllOther_New[Generation capacity charge '[R/POD/day']],MATCH(AL$40,Rates_AllOther_New[Code],0))","v":0},{"$f":"INDEX(Rates_AllOther_New[Generation capacity charge '[R/POD/day']],MATCH(AM$40,Rates_AllOther_New[Code],0))","v":3.2},{"$f":"INDEX(Rates_AllOther_New[Generation capacity charge '[R/POD/day']],MATCH(AN$40,Rates_AllOther_New[Code],0))","v":5.65},{"$f":"INDEX(Rates_AllOther_New[Generation capacity charge '[R/POD/day']],MATCH(AO$40,Rates_AllOther_New[Code],0))","v":13.74},{"$f":"INDEX(Rates_AllOther_New[Generation capacity charge '[R/POD/day']],MATCH(AP$40,Rates_AllOther_New[Code],0))","v":2.09},{"$f":"INDEX(Rates_AllOther_New[Generation capacity charge '[R/POD/day']],MATCH(AQ$40,Rates_AllOther_New[Code],0))","v":21.19},{"$f":"INDEX(Rates_AllOther_New[Generation capacity charge '[R/POD/day']],MATCH(AR$40,Rates_AllOther_New[Code],0))","v":5.99},{"$f":"INDEX(Rates_AllOther_New[Generation capacity charge '[R/POD/day']],MATCH(AS$40,Rates_AllOther_New[Code],0))","v":11.9},{"$f":"INDEX(Rates_AllOther_New[Generation capacity charge '[R/POD/day']],MATCH(AT$40,Rates_AllOther_New[Code],0))","v":23.28},{"$f":"INDEX(Rates_AllOther_New[Generation capacity charge '[R/POD/day']],MATCH(AU$40,Rates_AllOther_New[Code],0))","v":3.94},{"$f":"INDEX(Rates_AllOther_New[Generation capacity charge '[R/POD/day']],MATCH(AV$40,Rates_AllOther_New[Code],0))","v":0},{"$f":"INDEX(Rates_AllOther_New[Generation capacity charge '[R/POD/day']],MATCH(AW$40,Rates_AllOther_New[Code],0))","v":0},{"$f":"INDEX(Rates_AllOther_New[Generation capacity charge '[R/POD/day']],MATCH(AX$40,Rates_AllOther_New[Code],0))","v":0},{"$f":"INDEX(Rates_AllOther_New[Generation capacity charge '[R/POD/day']],MATCH(AY$40,Rates_AllOther_New[Code],0))","v":0},{"$f":"INDEX(Rates_AllOther_New[Generation capacity charge '[R/POD/day']],MATCH(AZ$40,Rates_AllOther_New[Code],0))","v":0},{"$f":"INDEX(Rates_AllOther_New[Generation capacity charge '[R/POD/day']],MATCH(BA$40,Rates_AllOther_New[Code],0))","v":0},{"$f":"INDEX(Rates_AllOther_New[Generation capacity charge '[R/POD/day']],MATCH(BB$40,Rates_AllOther_New[Code],0))","v":3.2},{"$f":"INDEX(Rates_AllOther_New[Generation capacity charge '[R/POD/day']],MATCH(BC$40,Rates_AllOther_New[Code],0))","v":5.65},{"$f":"INDEX(Rates_AllOther_New[Generation capacity charge '[R/POD/day']],MATCH(BD$40,Rates_AllOther_New[Code],0))","v":13.74},{"$f":"INDEX(Rates_AllOther_New[Generation capacity charge '[R/POD/day']],MATCH(BE$40,Rates_AllOther_New[Code],0))","v":2.09}]
[null,null,"Legacy charge","c/kWh",null,null,null,null,null,null,null,null,null,null,null,null,null,null,null,null,null,null,null,null,null,null,null,null,null,null,null,0,{"$f":"INDEX(Rates_AllOther_New[Legacy charge '[c/kWh']],MATCH(AG$40,Rates_AllOther_New[Code],0))","v":0},{"$f":"INDEX(Rates_AllOther_New[Legacy charge '[c/kWh']],MATCH(AH$40,Rates_AllOther_New[Code],0))","v":0},{"$f":"INDEX(Rates_AllOther_New[Legacy charge '[c/kWh']],MATCH(AI$40,Rates_AllOther_New[Code],0))","v":0},{"$f":"INDEX(Rates_AllOther_New[Legacy charge '[c/kWh']],MATCH(AJ$40,Rates_AllOther_New[Code],0))","v":0},{"$f":"INDEX(Rates_AllOther_New[Legacy charge '[c/kWh']],MATCH(AK$40,Rates_AllOther_New[Code],0))","v":0},{"$f":"INDEX(Rates_AllOther_New[Legacy charge '[c/kWh']],MATCH(AL$40,Rates_AllOther_New[Code],0))","v":0},{"$f":"INDEX(Rates_AllOther_New[Legacy charge '[c/kWh']],MATCH(AM$40,Rates_AllOther_New[Code],0))","v":0},{"$f":"INDEX(Rates_AllOther_New[Legacy charge '[c/kWh']],MATCH(AN$40,Rates_AllOther_New[Code],0))","v":0},{"$f":"INDEX(Rates_AllOther_New[Legacy charge '[c/kWh']],MATCH(AO$40,Rates_AllOther_New[Code],0))","v":0},{"$f":"INDEX(Rates_AllOther_New[Legacy charge '[c/kWh']],MATCH(AP$40,Rates_AllOther_New[Code],0))","v":0},{"$f":"INDEX(Rates_AllOther_New[Legacy charge '[c/kWh']],MATCH(AQ$40,Rates_AllOther_New[Code],0))","v":0},{"$f":"INDEX(Rates_AllOther_New[Legacy charge '[c/kWh']],MATCH(AR$40,Rates_AllOther_New[Code],0))","v":0},{"$f":"INDEX(Rates_AllOther_New[Legacy charge '[c/kWh']],MATCH(AS$40,Rates_AllOther_New[Code],0))","v":0},{"$f":"INDEX(Rates_AllOther_New[Legacy charge '[c/kWh']],MATCH(AT$40,Rates_AllOther_New[Code],0))","v":0},{"$f":"INDEX(Rates_AllOther_New[Legacy charge '[c/kWh']],MATCH(AU$40,Rates_AllOther_New[Code],0))","v":0},{"$f":"INDEX(Rates_AllOther_New[Legacy charge '[c/kWh']],MATCH(AV$40,Rates_AllOther_New[Code],0))","v":0},{"$f":"INDEX(Rates_AllOther_New[Legacy charge '[c/kWh']],MATCH(AW$40,Rates_AllOther_New[Code],0))","v":0},{"$f":"INDEX(Rates_AllOther_New[Legacy charge '[c/kWh']],MATCH(AX$40,Rates_AllOther_New[Code],0))","v":0},{"$f":"INDEX(Rates_AllOther_New[Legacy charge '[c/kWh']],MATCH(AY$40,Rates_AllOther_New[Code],0))","v":0},{"$f":"INDEX(Rates_AllOther_New[Legacy charge '[c/kWh']],MATCH(AZ$40,Rates_AllOther_New[Code],0))","v":0},{"$f":"INDEX(Rates_AllOther_New[Legacy charge '[c/kWh']],MATCH(BA$40,Rates_AllOther_New[Code],0))","v":0},{"$f":"INDEX(Rates_AllOther_New[Legacy charge '[c/kWh']],MATCH(BB$40,Rates_AllOther_New[Code],0))","v":20.21},{"$f":"INDEX(Rates_AllOther_New[Legacy charge '[c/kWh']],MATCH(BC$40,Rates_AllOther_New[Code],0))","v":20.21},{"$f":"INDEX(Rates_AllOther_New[Legacy charge '[c/kWh']],MATCH(BD$40,Rates_AllOther_New[Code],0))","v":20.21},{"$f":"INDEX(Rates_AllOther_New[Legacy charge '[c/kWh']],MATCH(BE$40,Rates_AllOther_New[Code],0))","v":20.21}]
[]
[null,"Total energy charges"]
[]
[null,"Other charges",null,"Units",{"$f":"E$8","v":"2024/25 Tariff Book Rates"},{"$f":"F$8","v":"2024/25 Tariff Book Rates"},"2024/25 Tariff Book Rates","2024/25 Tariff Book Rates","2024/25 Tariff Book Rates","2024/25 Tariff Book Rates","2024/25 Tariff Book Rates","2024/25 Tariff Book Rates","2024/25 Tariff Book Rates","2024/25 Tariff Book Rates","2024/25 Tariff Book Rates","2024/25 Tariff Book Rates","2024/25 Tariff Book Rates","2024/25 Tariff Book Rates","2024/25 Tariff Book Rates","2024/25 Tariff Book Rates","2024/25 Tariff Book Rates","2024/25 Tariff Book Rates","2024/25 Tariff Book Rates","2024/25 Tariff Book Rates","2024/25 Tariff Book Rates","2024/25 Tariff Book Rates","2024/25 Tariff Book Rates","2024/25 Tariff Book Rates","2024/25 Tariff Book Rates","2024/25 Tariff Book Rates",null,{"$f":"AF$8","v":"2024/25 RTP Rates"},{"$f":"AG$8","v":"2024/25 RTP Rates"},"2024/25 RTP Rates","2024/25 RTP Rates","2024/25 RTP Rates","2024/25 RTP Rates","2024/25 RTP Rates","2024/25 RTP Rates","2024/25 RTP Rates","2024/25 RTP Rates","2024/25 RTP Rates","2024/25 RTP Rates","2024/25 RTP Rates","2024/25 RTP Rates","2024/25 RTP Rates","2024/25 RTP Rates","2024/25 RTP Rates","2024/25 RTP Rates","2024/25 RTP Rates","2024/25 RTP Rates","2024/25 RTP Rates","2024/25 RTP Rates","2024/25 RTP Rates","2024/25 RTP Rates","2024/25 RTP Rates","2024/25 RTP Rates"]
[]
[null,null,"Ancillary service charge ","c/kWh",{"$f":"SUMIFS(F31:AD31,$F$7:$AD$7,Selected_Tariff_ID)","v":0.8},{"$f":"INDEX(Rates_AllOther_Current[Ancillary service charge '[c/kWh']],MATCH(F$40,Rates_AllOther_Current[Code],0))","v":0.8},{"$f":"INDEX(Rates_AllOther_Current[Ancillary service charge '[c/kWh']],MATCH(G$40,Rates_AllOther_Current[Code],0))","v":0.8},{"$f":"INDEX(Rates_AllOther_Current[Ancillary service charge '[c/kWh']],MATCH(H$40,Rates_AllOther_Current[Code],0))","v":0.8},{"$f":"INDEX(Rates_AllOther_Current[Ancillary service charge '[c/kWh']],MATCH(I$40,Rates_AllOther_Current[Code],0))","v":0.8},{"$f":"INDEX(Rates_AllOther_Current[Ancillary service charge '[c/kWh']],MATCH(J$40,Rates_AllOther_Current[Code],0))","v":0},{"$f":"INDEX(Rates_AllOther_Current[Ancillary service charge '[c/kWh']],MATCH(K$40,Rates_AllOther_Current[Code],0))","v":0},{"$f":"INDEX(Rates_AllOther_Current[Ancillary service charge '[c/kWh']],MATCH(L$40,Rates_AllOther_Current[Code],0))","v":0},{"$f":"INDEX(Rates_AllOther_Current[Ancillary service charge '[c/kWh']],MATCH(M$40,Rates_AllOther_Current[Code],0))","v":0},{"$f":"INDEX(Rates_AllOther_Current[Ancillary service charge '[c/kWh']],MATCH(N$40,Rates_AllOther_Current[Code],0))","v":0},{"$f":"INDEX(Rates_AllOther_Current[Ancillary service charge '[c/kWh']],MATCH(O$40,Rates_AllOther_Current[Code],0))","v":0},{"$f":"INDEX(Rates_AllOther_Current[Ancillary service charge '[c/kWh']],MATCH(P$40,Rates_AllOther_Current[Code],0))","v":0},{"$f":"INDEX(Rates_AllOther_Current[Ancillary service charge '[c/kWh']],MATCH(Q$40,Rates_AllOther_Current[Code],0))","v":0.8},{"$f":"INDEX(Rates_AllOther_Current[Ancillary service charge '[c/kWh']],MATCH(R$40,Rates_AllOther_Current[Code],0))","v":0.8},{"$f":"INDEX(Rates_AllOther_Current[Ancillary service charge '[c/kWh']],MATCH(S$40,Rates_AllOther_Current[Code],0))","v":0.8},{"$f":"INDEX(Rates_AllOther_Current[Ancillary service charge '[c/kWh']],MATCH(T$40,Rates_AllOther_Current[Code],0))","v":0.8},{"$f":"INDEX(Rates_AllOther_Current[Ancillary service charge '[c/kWh']],MATCH(U$40,Rates_AllOther_Current[Code],0))","v":0},{"$f":"INDEX(Rates_AllOther_Current[Ancillary service charge '[c/kWh']],MATCH(V$40,Rates_AllOther_Current[Code],0))","v":0},{"$f":"INDEX(Rates_AllOther_Current[Ancillary service charge '[c/kWh']],MATCH(W$40,Rates_AllOther_Current[Code],0))","v":0},{"$f":"INDEX(Rates_AllOther_Current[Ancillary service charge '[c/kWh']],MATCH(X$40,Rates_AllOther_Current[Code],0))","v":0},{"$f":"INDEX(Rates_AllOther_Current[Ancillary service charge '[c/kWh']],MATCH(Y$40,Rates_AllOther_Current[Code],0))","v":0},{"$f":"INDEX(Rates_AllOther_Current[Ancillary service charge '[c/kWh']],MATCH(Z$40,Rates_AllOther_Current[Code],0))","v":0},{"$f":"INDEX(Rates_AllOther_Current[Ancillary service charge '[c/kWh']],MATCH(AA$40,Rates_AllOther_Current[Code],0))","v":0},{"$f":"INDEX(Rates_AllOther_Current[Ancillary service charge '[c/kWh']],MATCH(AB$40,Rates_AllOther_Current[Code],0))","v":0},{"$f":"INDEX(Rates_AllOther_Current[Ancillary service charge '[c/kWh']],MATCH(AC$40,Rates_AllOther_Current[Code],0))","v":0},{"$f":"INDEX(Rates_AllOther_Current[Ancillary service charge '[c/kWh']],MATCH(AD$40,Rates_AllOther_Current[Code],0))","v":0},null,{"$f":"SUMIFS(AG31:BE31,$F$7:$AD$7,Selected_Tariff_ID)","v":0.36},{"$f":"INDEX(Rates_AllOther_New[Ancillary service charge '[c/kWh']],MATCH(AG$40,Rates_AllOther_New[Code],0))","v":0.36},{"$f":"INDEX(Rates_AllOther_New[Ancillary service charge '[c/kWh']],MATCH(AH$40,Rates_AllOther_New[Code],0))","v":0.36},{"$f":"INDEX(Rates_AllOther_New[Ancillary service charge '[c/kWh']],MATCH(AI$40,Rates_AllOther_New[Code],0))","v":0.36},{"$f":"INDEX(Rates_AllOther_New[Ancillary service charge '[c/kWh']],MATCH(AJ$40,Rates_AllOther_New[Code],0))","v":0.36},{"$f":"INDEX(Rates_AllOther_New[Ancillary service charge '[c/kWh']],MATCH(AK$40,Rates_AllOther_New[Code],0))","v":0},{"$f":"INDEX(Rates_AllOther_New[Ancillary service charge '[c/kWh']],MATCH(AL$40,Rates_AllOther_New[Code],0))","v":0},{"$f":"INDEX(Rates_AllOther_New[Ancillary service charge '[c/kWh']],MATCH(AM$40,Rates_AllOther_New[Code],0))","v":0.36},{"$f":"INDEX(Rates_AllOther_New[Ancillary service charge '[c/kWh']],MATCH(AN$40,Rates_AllOther_New[Code],0))","v":0.36},{"$f":"INDEX(Rates_AllOther_New[Ancillary service charge '[c/kWh']],MATCH(AO$40,Rates_AllOther_New[Code],0))","v":0.36},{"$f":"INDEX(Rates_AllOther_New[Ancillary service charge '[c/kWh']],MATCH(AP$40,Rates_AllOther_New[Code],0))","v":0.36},{"$f":"INDEX(Rates_AllOther_New[Ancillary service charge '[c/kWh']],MATCH(AQ$40,Rates_AllOther_New[Code],0))","v":0.36},{"$f":"INDEX(Rates_AllOther_New[Ancillary service charge '[c/kWh']],MATCH(AR$40,Rates_AllOther_New[Code],0))","v":0.36},{"$f":"INDEX(Rates_AllOther_New[Ancillary service charge '[c/kWh']],MATCH(AS$40,Rates_AllOther_New[Code],0))","v":0.36},{"$f":"INDEX(Rates_AllOther_New[Ancillary service charge '[c/kWh']],MATCH(AT$40,Rates_AllOther_New[Code],0))","v":0.36},{"$f":"INDEX(Rates_AllOther_New[Ancillary service charge '[c/kWh']],MATCH(AU$40,Rates_AllOther_New[Code],0))","v":0.36},{"$f":"INDEX(Rates_AllOther_New[Ancillary service charge '[c/kWh']],MATCH(AV$40,Rates_AllOther_New[Code],0))","v":0},{"$f":"INDEX(Rates_AllOther_New[Ancillary service charge '[c/kWh']],MATCH(AW$40,Rates_AllOther_New[Code],0))","v":0},{"$f":"INDEX(Rates_AllOther_New[Ancillary service charge '[c/kWh']],MATCH(AX$40,Rates_AllOther_New[Code],0))","v":0},{"$f":"INDEX(Rates_AllOther_New[Ancillary service charge '[c/kWh']],MATCH(AY$40,Rates_AllOther_New[Code],0))","v":0},{"$f":"INDEX(Rates_AllOther_New[Ancillary service charge '[c/kWh']],MATCH(AZ$40,Rates_AllOther_New[Code],0))","v":0},{"$f":"INDEX(Rates_AllOther_New[Ancillary service charge '[c/kWh']],MATCH(BA$40,Rates_AllOther_New[Code],0))","v":0},{"$f":"INDEX(Rates_AllOther_New[Ancillary service charge '[c/kWh']],MATCH(BB$40,Rates_AllOther_New[Code],0))","v":0.36},{"$f":"INDEX(Rates_AllOther_New[Ancillary service charge '[c/kWh']],MATCH(BC$40,Rates_AllOther_New[Code],0))","v":0.36},{"$f":"INDEX(Rates_AllOther_New[Ancillary service charge '[c/kWh']],MATCH(BD$40,Rates_AllOther_New[Code],0))","v":0.36},{"$f":"INDEX(Rates_AllOther_New[Ancillary service charge '[c/kWh']],MATCH(BE$40,Rates_AllOther_New[Code],0))","v":0.36}]
[null,null,"Service charge",{"$f":"IF(Table_1=1,\"R/day\",\"R/day\")","v":"R/day"},{"$f":"SUMIFS(F32:AD32,$F$7:$AD$7,Selected_Tariff_ID)","v":46.25},{"$f":"INDEX(Rates_AllOther_Current[Service and administration charge '[R/POD/day']],MATCH(F$40,Rates_AllOther_Current[Code],0))","v":36.71},{"$f":"INDEX(Rates_AllOther_Current[Service and administration charge '[R/POD/day']],MATCH(G$40,Rates_AllOther_Current[Code],0))","v":36.71},{"$f":"INDEX(Rates_AllOther_Current[Service and administration charge '[R/POD/day']],MATCH(H$40,Rates_AllOther_Current[Code],0))","v":36.71},{"$f":"INDEX(Rates_AllOther_Current[Service and administration charge '[R/POD/day']],MATCH(I$40,Rates_AllOther_Current[Code],0))","v":0},{"$f":"INDEX(Rates_AllOther_Current[Service and administration charge '[R/POD/day']],MATCH(J$40,Rates_AllOther_Current[Code],0))","v":0},{"$f":"INDEX(Rates_AllOther_Current[Service and administration charge '[R/POD/day']],MATCH(K$40,Rates_AllOther_Current[Code],0))","v":0},{"$f":"INDEX(Rates_AllOther_Current[Service and administration charge '[R/POD/day']],MATCH(L$40,Rates_AllOther_Current[Code],0))","v":0},{"$f":"INDEX(Rates_AllOther_Current[Service and administration charge '[R/POD/day']],MATCH(M$40,Rates_AllOther_Current[Code],0))","v":0},{"$f":"INDEX(Rates_AllOther_Current[Service and administration charge '[R/POD/day']],MATCH(N$40,Rates_AllOther_Current[Code],0))","v":0},{"$f":"INDEX(Rates_AllOther_Current[Service and administration charge '[R/POD/day']],MATCH(O$40,Rates_AllOther_Current[Code],0))","v":0},{"$f":"INDEX(Rates_AllOther_Current[Service and administration charge '[R/POD/day']],MATCH(P$40,Rates_AllOther_Current[Code],0))","v":0},{"$f":"INDEX(Rates_AllOther_Current[Service and administration charge '[R/POD/day']],MATCH(Q$40,Rates_AllOther_Current[Code],0))","v":46.25},{"$f":"INDEX(Rates_AllOther_Current[Service and administration charge '[R/POD/day']],MATCH(R$40,Rates_AllOther_Current[Code],0))","v":46.25},{"$f":"INDEX(Rates_AllOther_Current[Service and administration charge '[R/POD/day']],MATCH(S$40,Rates_AllOther_Current[Code],0))","v":46.25},{"$f":"INDEX(Rates_AllOther_Current[Service and administration charge '[R/POD/day']],MATCH(T$40,Rates_AllOther_Current[Code],0))","v":0},{"$f":"INDEX(Rates_AllOther_Current[Service and administration charge '[R/POD/day']],MATCH(U$40,Rates_AllOther_Current[Code],0))","v":99.18},{"$f":"INDEX(Rates_AllOther_Current[Service and administration charge '[R/POD/day']],MATCH(V$40,Rates_AllOther_Current[Code],0))","v":0},{"$f":"INDEX(Rates_AllOther_Current[Service and administration charge '[R/POD/day']],MATCH(W$40,Rates_AllOther_Current[Code],0))","v":0},{"$f":"INDEX(Rates_AllOther_Current[Service and administration charge '[R/POD/day']],MATCH(X$40,Rates_AllOther_Current[Code],0))","v":0},{"$f":"INDEX(Rates_AllOther_Current[Service and administration charge '[R/POD/day']],MATCH(Y$40,Rates_AllOther_Current[Code],0))","v":0},{"$f":"INDEX(Rates_AllOther_Current[Service and administration charge '[R/POD/day']],MATCH(Z$40,Rates_AllOther_Current[Code],0))","v":10.96},{"$f":"INDEX(Rates_AllOther_Current[Service and administration charge '[R/POD/day']],MATCH(AA$40,Rates_AllOther_Current[Code],0))","v":0},{"$f":"INDEX(Rates_AllOther_Current[Service and administration charge '[R/POD/day']],MATCH(AB$40,Rates_AllOther_Current[Code],0))","v":0},{"$f":"INDEX(Rates_AllOther_Current[Service and administration charge '[R/POD/day']],MATCH(AC$40,Rates_AllOther_Current[Code],0))","v":0},{"$f":"INDEX(Rates_AllOther_Current[Service and administration charge '[R/POD/day']],MATCH(AD$40,Rates_AllOther_Current[Code],0))","v":0},null,{"$f":"SUMIFS(AG32:BE32,$F$7:$AD$7,Selected_Tariff_ID)","v":21.73},{"$f":"INDEX(Rates_AllOther_New[Service and administration charge '[R/POD/day']],MATCH(AG$40,Rates_AllOther_New[Code],0))","v":13.04},{"$f":"INDEX(Rates_AllOther_New[Service and administration charge '[R/POD/day']],MATCH(AH$40,Rates_AllOther_New[Code],0))","v":13.04},{"$f":"INDEX(Rates_AllOther_New[Service and administration charge '[R/POD/day']],MATCH(AI$40,Rates_AllOther_New[Code],0))","v":13.04},{"$f":"INDEX(Rates_AllOther_New[Service and administration charge '[R/POD/day']],MATCH(AJ$40,Rates_AllOther_New[Code],0))","v":0},{"$f":"INDEX(Rates_AllOther_New[Service and administration charge '[R/POD/day']],MATCH(AK$40,Rates_AllOther_New[Code],0))","v":0},{"$f":"INDEX(Rates_AllOther_New[Service and administration charge '[R/POD/day']],MATCH(AL$40,Rates_AllOther_New[Code],0))","v":0},{"$f":"INDEX(Rates_AllOther_New[Service and administration charge '[R/POD/day']],MATCH(AM$40,Rates_AllOther_New[Code],0))","v":8.7200000000000006},{"$f":"INDEX(Rates_AllOther_New[Service and administration charge '[R/POD/day']],MATCH(AN$40,Rates_AllOther_New[Code],0))","v":8.7200000000000006},{"$f":"INDEX(Rates_AllOther_New[Service and administration charge '[R/POD/day']],MATCH(AO$40,Rates_AllOther_New[Code],0))","v":8.7200000000000006},{"$f":"INDEX(Rates_AllOther_New[Service and administration charge '[R/POD/day']],MATCH(AP$40,Rates_AllOther_New[Code],0))","v":8.7200000000000006},{"$f":"INDEX(Rates_AllOther_New[Service and administration charge '[R/POD/day']],MATCH(AQ$40,Rates_AllOther_New[Code],0))","v":12.84},{"$f":"INDEX(Rates_AllOther_New[Service and administration charge '[R/POD/day']],MATCH(AR$40,Rates_AllOther_New[Code],0))","v":21.73},{"$f":"INDEX(Rates_AllOther_New[Service and administration charge '[R/POD/day']],MATCH(AS$40,Rates_AllOther_New[Code],0))","v":21.73},{"$f":"INDEX(Rates_AllOther_New[Service and administration charge '[R/POD/day']],MATCH(AT$40,Rates_AllOther_New[Code],0))","v":21.73},{"$f":"INDEX(Rates_AllOther_New[Service and administration charge '[R/POD/day']],MATCH(AU$40,Rates_AllOther_New[Code],0))","v":0},{"$f":"INDEX(Rates_AllOther_New[Service and administration charge '[R/POD/day']],MATCH(AV$40,Rates_AllOther_New[Code],0))","v":79.739999999999995},{"$f":"INDEX(Rates_AllOther_New[Service and administration charge '[R/POD/day']],MATCH(AW$40,Rates_AllOther_New[Code],0))","v":0},{"$f":"INDEX(Rates_AllOther_New[Service and administration charge '[R/POD/day']],MATCH(AX$40,Rates_AllOther_New[Code],0))","v":0},{"$f":"INDEX(Rates_AllOther_New[Service and administration charge '[R/POD/day']],MATCH(AY$40,Rates_AllOther_New[Code],0))","v":0},{"$f":"INDEX(Rates_AllOther_New[Service and administration charge '[R/POD/day']],MATCH(AZ$40,Rates_AllOther_New[Code],0))","v":0},{"$f":"INDEX(Rates_AllOther_New[Service and administration charge '[R/POD/day']],MATCH(BA$40,Rates_AllOther_New[Code],0))","v":28.1},{"$f":"INDEX(Rates_AllOther_New[Service and administration charge '[R/POD/day']],MATCH(BB$40,Rates_AllOther_New[Code],0))","v":8.7200000000000006},{"$f":"INDEX(Rates_AllOther_New[Service and administration charge '[R/POD/day']],MATCH(BC$40,Rates_AllOther_New[Code],0))","v":8.7200000000000006},{"$f":"INDEX(Rates_AllOther_New[Service and administration charge '[R/POD/day']],MATCH(BD$40,Rates_AllOther_New[Code],0))","v":8.7200000000000006},{"$f":"INDEX(Rates_AllOther_New[Service and administration charge '[R/POD/day']],MATCH(BE$40,Rates_AllOther_New[Code],0))","v":8.7200000000000006}]
[null,null,"Electrification and rural subsidy ","c/kWh",{"$f":"SUMIFS(F33:AD33,$F$7:$AD$7,Selected_Tariff_ID)","v":0},null,null,null,null,null,null,null,null,null,null,null,null,null,null,null,null,null,null,null,null,null,null,null,null,null,null,{"$f":"SUMIFS(AG33:BE33,$F$7:$AD$7,Selected_Tariff_ID)","v":0},{"$f":"INDEX(Rates_AllOther_New[Electrification and rural subsidy '[c/kWh']],MATCH(AG$40,Rates_AllOther_New[Code],0))","v":4.63},{"$f":"INDEX(Rates_AllOther_New[Electrification and rural subsidy '[c/kWh']],MATCH(AH$40,Rates_AllOther_New[Code],0))","v":4.63},{"$f":"INDEX(Rates_AllOther_New[Electrification and rural subsidy '[c/kWh']],MATCH(AI$40,Rates_AllOther_New[Code],0))","v":4.63},{"$f":"INDEX(Rates_AllOther_New[Electrification and rural subsidy '[c/kWh']],MATCH(AJ$40,Rates_AllOther_New[Code],0))","v":4.63},{"$f":"INDEX(Rates_AllOther_New[Electrification and rural subsidy '[c/kWh']],MATCH(AK$40,Rates_AllOther_New[Code],0))","v":0},{"$f":"INDEX(Rates_AllOther_New[Electrification and rural subsidy '[c/kWh']],MATCH(AL$40,Rates_AllOther_New[Code],0))","v":0},{"$f":"INDEX(Rates_AllOther_New[Electrification and rural subsidy '[c/kWh']],MATCH(AM$40,Rates_AllOther_New[Code],0))","v":0},{"$f":"INDEX(Rates_AllOther_New[Electrification and rural subsidy '[c/kWh']],MATCH(AN$40,Rates_AllOther_New[Code],0))","v":0},{"$f":"INDEX(Rates_AllOther_New[Electrification and rural subsidy '[c/kWh']],MATCH(AO$40,Rates_AllOther_New[Code],0))","v":0},{"$f":"INDEX(Rates_AllOther_New[Electrification and rural subsidy '[c/kWh']],MATCH(AP$40,Rates_AllOther_New[Code],0))","v":0},{"$f":"INDEX(Rates_AllOther_New[Electrification and rural subsidy '[c/kWh']],MATCH(AQ$40,Rates_AllOther_New[Code],0))","v":0},{"$f":"INDEX(Rates_AllOther_New[Electrification and rural subsidy '[c/kWh']],MATCH(AR$40,Rates_AllOther_New[Code],0))","v":0},{"$f":"INDEX(Rates_AllOther_New[Electrification and rural subsidy '[c/kWh']],MATCH(AS$40,Rates_AllOther_New[Code],0))","v":0},{"$f":"INDEX(Rates_AllOther_New[Electrification and rural subsidy '[c/kWh']],MATCH(AT$40,Rates_AllOther_New[Code],0))","v":0},{"$f":"INDEX(Rates_AllOther_New[Electrification and rural subsidy '[c/kWh']],MATCH(AU$40,Rates_AllOther_New[Code],0))","v":0},{"$f":"INDEX(Rates_AllOther_New[Electrification and rural subsidy '[c/kWh']],MATCH(AV$40,Rates_AllOther_New[Code],0))","v":0},{"$f":"INDEX(Rates_AllOther_New[Electrification and rural subsidy '[c/kWh']],MATCH(AW$40,Rates_AllOther_New[Code],0))","v":0},{"$f":"INDEX(Rates_AllOther_New[Electrification and rural subsidy '[c/kWh']],MATCH(AX$40,Rates_AllOther_New[Code],0))","v":0},{"$f":"INDEX(Rates_AllOther_New[Electrification and rural subsidy '[c/kWh']],MATCH(AY$40,Rates_AllOther_New[Code],0))","v":0},{"$f":"INDEX(Rates_AllOther_New[Electrification and rural subsidy '[c/kWh']],MATCH(AZ$40,Rates_AllOther_New[Code],0))","v":0},{"$f":"INDEX(Rates_AllOther_New[Electrification and rural subsidy '[c/kWh']],MATCH(BA$40,Rates_AllOther_New[Code],0))","v":0},{"$f":"INDEX(Rates_AllOther_New[Electrification and rural subsidy '[c/kWh']],MATCH(BB$40,Rates_AllOther_New[Code],0))","v":0},{"$f":"INDEX(Rates_AllOther_New[Electrification and rural subsidy '[c/kWh']],MATCH(BC$40,Rates_AllOther_New[Code],0))","v":0},{"$f":"INDEX(Rates_AllOther_New[Electrification and rural subsidy '[c/kWh']],MATCH(BD$40,Rates_AllOther_New[Code],0))","v":0},{"$f":"INDEX(Rates_AllOther_New[Electrification and rural subsidy '[c/kWh']],MATCH(BE$40,Rates_AllOther_New[Code],0))","v":0}]
[]
[null,"Total other charges"]
[]
[null,"Lookup values"]
[null,null,"Rates LPU Energy Table",null,{"$f":"SUMIFS(F38:AD38,$F$7:$AD$7,Selected_Tariff_ID)","v":0},{"$f":"F6&\"_\"&$D51&\"_\"&$D50&\"_\"&$D49","v":"Businessrate 1_Non-Local Authority_Not Applicable_< 500V"},"Businessrate 2_Non-Local Authority_Not Applicable_< 500V","Businessrate 3_Non-Local Authority_Not Applicable_< 500V","Businessrate 4_Non-Local Authority_Not Applicable_< 500V","Homelight 20A_Non-Local Authority_Not Applicable_< 500V","Homelight 60A_Non-Local Authority_Not Applicable_< 500V","Homepower 1_Non-Local Authority_Not Applicable_< 500V","Homepower 2_Non-Local Authority_Not Applicable_< 500V","Homepower 3_Non-Local Authority_Not Applicable_< 500V","Homepower 4_Non-Local Authority_Not Applicable_< 500V","Homepower Bulk_Non-Local Authority_Not Applicable_< 500V","Landrate 1_Non-Local Authority_Not Applicable_< 500V","Landrate 2_Non-Local Authority_Not Applicable_< 500V","Landrate 3_Non-Local Authority_Not Applicable_< 500V","Landrate 4_Non-Local Authority_Not Applicable_< 500V","Landrate Dx_Non-Local Authority_Not Applicable_< 500V","Landlight 20A_Non-Local Authority_Not Applicable_< 500V","Landlight 60A_Non-Local Authority_Not Applicable_< 500V","Public Lighting All Night_Non-Local Authority_Not Applicable_< 500V","Public Lighting 24 Hours_Non-Local Authority_Not Applicable_< 500V",{"$f":"Z6&\"_\"&$D51&\"_\"&$D50&\"_\"&$D49","v":"Public Lighting Urban Fixed_Non-Local Authority_Not Applicable_< 500V"},"Homeflex 1_Non-Local Authority_Not Applicable_< 500V","Homeflex 2_Non-Local Authority_Not Applicable_< 500V","Homeflex 3_Non-Local Authority_Not Applicable_< 500V","Homeflex 4_Non-Local Authority_Not Applicable_< 500V",null,{"$f":"SUMIFS(AG38:BE38,$F$7:$AD$7,Selected_Tariff_ID)","v":0},{"$f":"F38","v":"Businessrate 1_Non-Local Authority_Not Applicable_< 500V"},"Businessrate 2_Non-Local Authority_Not Applicable_< 500V","Businessrate 3_Non-Local Authority_Not Applicable_< 500V","Businessrate 4_Non-Local Authority_Not Applicable_< 500V","Homelight 20A_Non-Local Authority_Not Applicable_< 500V","Homelight 60A_Non-Local Authority_Not Applicable_< 500V","Homepower 1_Non-Local Authority_Not Applicable_< 500V","Homepower 2_Non-Local Authority_Not Applicable_< 500V","Homepower 3_Non-Local Authority_Not Applicable_< 500V","Homepower 4_Non-Local Authority_Not Applicable_< 500V",{"$f":"P38","v":"Homepower Bulk_Non-Local Authority_Not Applicable_< 500V"},"Landrate 1_Non-Local Authority_Not Applicable_< 500V","Landrate 2_Non-Local Authority_Not Applicable_< 500V","Landrate 3_Non-Local Authority_Not Applicable_< 500V","Landrate 4_Non-Local Authority_Not Applicable_< 500V","Landrate Dx_Non-Local Authority_Not Applicable_< 500V","Landlight 20A_Non-Local Authority_Not Applicable_< 500V","Landlight 60A_Non-Local Authority_Not Applicable_< 500V","Public Lighting All Night_Non-Local Authority_Not Applicable_< 500V","Public Lighting 24 Hours_Non-Local Authority_Not Applicable_< 500V",{"$f":"Z38","v":"Public Lighting Urban Fixed_Non-Local Authority_Not Applicable_< 500V"},{"$f":"AA38","v":"Homeflex 1_Non-Local Authority_Not Applicable_< 500V"},"Homeflex 2_Non-Local Authority_Not Applicable_< 500V","Homeflex 3_Non-Local Authority_Not Applicable_< 500V","Homeflex 4_Non-Local Authority_Not Applicable_< 500V"]
[null,null,"Rates LPU by Voltage",null,0,{"$f":"F6&\"_\"&$D51&\"_\"&$D49","v":"Businessrate 1_Non-Local Authority_< 500V"},"Businessrate 2_Non-Local Authority_< 500V","Businessrate 3_Non-Local Authority_< 500V","Businessrate 4_Non-Local Authority_< 500V","Homelight 20A_Non-Local Authority_< 500V","Homelight 60A_Non-Local Authority_< 500V","Homepower 1_Non-Local Authority_< 500V","Homepower 2_Non-Local Authority_< 500V","Homepower 3_Non-Local Authority_< 500V","Homepower 4_Non-Local Authority_< 500V","Homepower Bulk_Non-Local Authority_< 500V","Landrate 1_Non-Local Authority_< 500V","Landrate 2_Non-Local Authority_< 500V","Landrate 3_Non-Local Authority_< 500V","Landrate 4_Non-Local Authority_< 500V","Landrate Dx_Non-Local Authority_< 500V","Landlight 20A_Non-Local Authority_< 500V","Landlight 60A_Non-Local Authority_< 500V","Public Lighting All Night_Non-Local Authority_< 500V","Public Lighting 24 Hours_Non-Local Authority_< 500V",{"$f":"Z6&\"_\"&$D51&\"_\"&$D49","v":"Public Lighting Urban Fixed_Non-Local Authority_< 500V"},"Homeflex 1_Non-Local Authority_< 500V","Homeflex 2_Non-Local Authority_< 500V","Homeflex 3_Non-Local Authority_< 500V","Homeflex 4_Non-Local Authority_< 500V",null,0,"Businessrate 1_Non-Local Authority_< 500V","Businessrate 2_Non-Local Authority_< 500V","Businessrate 3_Non-Local Authority_< 500V","Businessrate 4_Non-Local Authority_< 500V","Homelight 20A_Non-Local Authority_< 500V","Homelight 60A_Non-Local Authority_< 500V","Homepower 1_Non-Local Authority_< 500V","Homepower 2_Non-Local Authority_< 500V","Homepower 3_Non-Local Authority_< 500V","Homepower 4_Non-Local Authority_< 500V","Homepower Bulk_Non-Local Authority_< 500V","Landrate 1_Non-Local Authority_< 500V","Landrate 2_Non-Local Authority_< 500V","Landrate 3_Non-Local Authority_< 500V","Landrate 4_Non-Local Authority_< 500V","Landrate Dx_Non-Local Authority_< 500V","Landlight 20A_Non-Local Authority_< 500V","Landlight 60A_Non-Local Authority_< 500V","Public Lighting All Night_Non-Local Authority_< 500V","Public Lighting 24 Hours_Non-Local Authority_< 500V",{"$f":"Z39","v":"Public Lighting Urban Fixed_Non-Local Authority_< 500V"},"Homeflex 1_Non-Local Authority_< 500V","Homeflex 2_Non-Local Authority_< 500V","Homeflex 3_Non-Local Authority_< 500V","Homeflex 4_Non-Local Authority_< 500V"]
[null,null,"Rates SPU",null,0,{"$f":"F6&\"_\"&$D51","v":"Businessrate 1_Non-Local Authority"},"Businessrate 2_Non-Local Authority","Businessrate 3_Non-Local Authority","Businessrate 4_Non-Local Authority","Homelight 20A_Non-Local Authority","Homelight 60A_Non-Local Authority","Homepower 1_Non-Local Authority","Homepower 2_Non-Local Authority","Homepower 3_Non-Local Authority","Homepower 4_Non-Local Authority","Homepower Bulk_Non-Local Authority","Landrate 1_Non-Local Authority","Landrate 2_Non-Local Authority","Landrate 3_Non-Local Authority","Landrate 4_Non-Local Authority","Landrate Dx_Non-Local Authority","Landlight 20A_Non-Local Authority","Landlight 60A_Non-Local Authority","Public Lighting All Night_Non-Local Authority","Public Lighting 24 Hours_Non-Local Authority",{"$f":"Z6&\"_\"&$D51","v":"Public Lighting Urban Fixed_Non-Local Authority"},"Homeflex 1_Non-Local Authority","Homeflex 2_Non-Local Authority","Homeflex 3_Non-Local Authority","Homeflex 4_Non-Local Authority",null,0,"Businessrate 1_Non-Local Authority","Businessrate 2_Non-Local Authority","Businessrate 3_Non-Local Authority","Businessrate 4_Non-Local Authority","Homelight 20A_Non-Local Authority","Homelight 60A_Non-Local Authority","Homepower 1_Non-Local Authority","Homepower 2_Non-Local Authority","Homepower 3_Non-Local Authority","Homepower 4_Non-Local Authority","Homepower Bulk_Non-Local Authority","Landrate 1_Non-Local Authority","Landrate 2_Non-Local Authority","Landrate 3_Non-Local Authority","Landrate 4_Non-Local Authority","Landrate Dx_Non-Local Authority","Landlight 20A_Non-Local Authority","Landlight 60A_Non-Local Authority","Public Lighting All Night_Non-Local Authority","Public Lighting 24 Hours_Non-Local Authority",{"$f":"Z40","v":"Public Lighting Urban Fixed_Non-Local Authority"},"Homeflex 1_Non-Local Authority","Homeflex 2_Non-Local Authority","Homeflex 3_Non-Local Authority","Homeflex 4_Non-Local Authority"]
[null,null,"Admin & Service Charges",null,0,{"$f":"$D48&\"_\"&$D51&\"_\"&$D53","v":"Rural_Non-Local Authority_≤100kVA"},"Rural_Non-Local Authority_≤100kVA","Rural_Non-Local Authority_≤100kVA","Rural_Non-Local Authority_≤100kVA","Rural_Non-Local Authority_≤100kVA","Rural_Non-Local Authority_≤100kVA","Rural_Non-Local Authority_≤100kVA","Rural_Non-Local Authority_≤100kVA","Rural_Non-Local Authority_≤100kVA","Rural_Non-Local Authority_≤100kVA","Rural_Non-Local Authority_≤100kVA","Rural_Non-Local Authority_≤100kVA","Rural_Non-Local Authority_≤100kVA","Rural_Non-Local Authority_≤100kVA","Rural_Non-Local Authority_≤100kVA",{"$f":"$D48&\"_\"&$D51&\"_\"&$D53","v":"Rural_Non-Local Authority_≤100kVA"},"Rural_Non-Local Authority_≤100kVA","Rural_Non-Local Authority_≤100kVA","Rural_Non-Local Authority_≤100kVA","Rural_Non-Local Authority_≤100kVA",{"$f":"$D48&\"_\"&$D51&\"_\"&$D53","v":"Rural_Non-Local Authority_≤100kVA"},"Rural_Non-Local Authority_≤100kVA","Rural_Non-Local Authority_≤100kVA","Rural_Non-Local Authority_≤100kVA","Rural_Non-Local Authority_≤100kVA",null,0,"Rural_Non-Local Authority_≤100kVA","Rural_Non-Local Authority_≤100kVA","Rural_Non-Local Authority_≤100kVA","Rural_Non-Local Authority_≤100kVA","Rural_Non-Local Authority_≤100kVA","Rural_Non-Local Authority_≤100kVA","Rural_Non-Local Authority_≤100kVA","Rural_Non-Local Authority_≤100kVA","Rural_Non-Local Authority_≤100kVA","Rural_Non-Local Authority_≤100kVA","Rural_Non-Local Authority_≤100kVA","Rural_Non-Local Authority_≤100kVA","Rural_Non-Local Authority_≤100kVA","Rural_Non-Local Authority_≤100kVA","Rural_Non-Local Authority_≤100kVA","Rural_Non-Local Authority_≤100kVA","Rural_Non-Local Authority_≤100kVA","Rural_Non-Local Authority_≤100kVA","Rural_Non-Local Authority_≤100kVA","Rural_Non-Local Authority_≤100kVA",{"$f":"Z41","v":"Rural_Non-Local Authority_≤100kVA"},"Rural_Non-Local Authority_≤100kVA","Rural_Non-Local Authority_≤100kVA","Rural_Non-Local Authority_≤100kVA","Rural_Non-Local Authority_≤100kVA"]
[null,null,null,null,0,null,null,null,null,null,null,null,null,null,null,null,null,null,null,null,null,null,null,null,null,null,null,null,null,null,null,0]
[null,"Check tables",null,null,0,null,null,null,null,null,null,null,null,null,null,null,null,null,null,null,null,null,null,null,null,null,null,null,null,null,null,0]
[null,null,"Table 1: 1 = LPU, 0 = SPU",null,0,0,0,0,0,0,0,0,0,0,0,0,0,0,0,0,0,0,0,0,0,0,0,0,0,0,null,0,{"$f":"F44","v":0},0,0,0,0,0,0,0,0,0,0,0,0,0,0,{"$f":"U44","v":0},0,0,0,0,0,{"$f":"AA44","v":0},{"$f":"AB44","v":0},{"$f":"AC44","v":0},{"$f":"AD44","v":0}]
[]
[null,"Assumptions"]
[null,null,"Tariff:",{"$f":"Selected_Base_Tariff","v":"Landrate 1"}]
[null,null,"Type",{"$f":"INDEX(Full_Tariff_Type,MATCH(D47,Full_Tariff_List,0))","v":"Rural"}]
[null,null,"Supply voltage",{"$f":"Selected_Supply_Voltage","v":"< 500V"}]
[null,null,"Transmission zone",{"$f":"Selected_Transmission","v":"Not Applicable"}]
[null,null,"Tariff Category",{"$f":"Selected_Tariff_Category","v":"Non-Local Authority"}]
[null,null,"No of PODS",{"$f":"PODs","v":1}]
[null,null,"Size of supply",{"$f":"IF(Selected_Customer_Category_ID=1,Lists!O21,Selected_Supply_Size)","v":"≤100kVA"}]

{"sheet":"Workings High","index":6,"n_rows":46,"n_cols":57,"rows_kept":46,"cut":false,"hidden":true,"merged":[]}
[]
[]
[]
[null,"Calculations by Tariff"]
[]
[null,"Tariffs",null,null,{"$f":"Selected_Base_Tariff","v":"Landrate 1"},{"$f":"INDEX(Full_Tariff_List,F$7,)","v":"Businessrate 1"},"Businessrate 2","Businessrate 3","Businessrate 4","Homelight 20A","Homelight 60A","Homepower 1","Homepower 2","Homepower 3","Homepower 4","Homepower Bulk","Landrate 1","Landrate 2","Landrate 3","Landrate 4","Landrate Dx","Landlight 20A","Landlight 60A","Public Lighting All Night","Public Lighting 24 Hours","Public Lighting Urban Fixed","Homeflex 1","Homeflex 2","Homeflex 3","Homeflex 4",null,{"$f":"E6","v":"Landrate 1"},"Businessrate 1","Businessrate 2","Businessrate 3","Businessrate 4","Homelight 20A","Homelight 60A","Homepower 1","Homepower 2","Homepower 3",{"$f":"O6","v":"Homepower 4"},"Homepower Bulk","Landrate 1","Landrate 2","Landrate 3","Landrate 4","Landrate Dx","Landlight 20A","Landlight 60A","Public Lighting All Night",{"$f":"Y6","v":"Public Lighting 24 Hours"},"Public Lighting Urban Fixed","Homeflex 1","Homeflex 2","Homeflex 3","Homeflex 4"]
[null,null,null,null,null,1,{"$f":"F7+1","v":2},{"$f":"G7+1","v":3},4,5,6,7,8,9,10,11,12,13,14,15,{"$f":"T7+1","v":16},17,18,19,20,21,33,{"$f":"AA7+1","v":34},{"$f":"AB7+1","v":35},{"$f":"AC7+1","v":36},null,0,1,2,3,4,5,6,7,8,9,10,11,12,13,14,15,16,17,18,19,20,21,33,34,35,36]
[null,"Network charges",null,"Units",{"$f":"Current_Period&\" Rates\"","v":"2024/25 Tariff Book Rates"},{"$f":"E8","v":"2024/25 Tariff Book Rates"},{"$f":"F8","v":"2024/25 Tariff Book Rates"},"2024/25 Tariff Book Rates","2024/25 Tariff Book Rates","2024/25 Tariff Book Rates","2024/25 Tariff Book Rates","2024/25 Tariff Book Rates","2024/25 Tariff Book Rates","2024/25 Tariff Book Rates","2024/25 Tariff Book Rates","2024/25 Tariff Book Rates","2024/25 Tariff Book Rates","2024/25 Tariff Book Rates","2024/25 Tariff Book Rates","2024/25 Tariff Book Rates",{"$f":"T8","v":"2024/25 Tariff Book Rates"},"2024/25 Tariff Book Rates","2024/25 Tariff Book Rates","2024/25 Tariff Book Rates","2024/25 Tariff Book Rates","2024/25 Tariff Book Rates",{"$f":"Y8","v":"2024/25 Tariff Book Rates"},"2024/25 Tariff Book Rates","2024/25 Tariff Book Rates","2024/25 Tariff Book Rates",null,{"$f":"New_Period&\" Rates\"","v":"2024/25 RTP Rates"},{"$f":"AF8","v":"2024/25 RTP Rates"},{"$f":"AG8","v":"2024/25 RTP Rates"},"2024/25 RTP Rates","2024/25 RTP Rates","2024/25 RTP Rates","2024/25 RTP Rates","2024/25 RTP Rates","2024/25 RTP Rates","2024/25 RTP Rates","2024/25 RTP Rates","2024/25 RTP Rates","2024/25 RTP Rates","2024/25 RTP Rates","2024/25 RTP Rates","2024/25 RTP Rates",{"$f":"AU8","v":"2024/25 RTP Rates"},"2024/25 RTP Rates","2024/25 RTP Rates","2024/25 RTP Rates","2024/25 RTP Rates","2024/25 RTP Rates",{"$f":"AZ8","v":"2024/25 RTP Rates"},"2024/25 RTP Rates","2024/25 RTP Rates","2024/25 RTP Rates"]
[]
[null,null,"Distribution network demand charge","c/kWh",{"$f":"SUMIFS(F10:AD10,$F$7:$AD$7,Selected_Tariff_ID)","v":0},{"$f":"IFERROR('Rates Table'!F10*SPU_Annual_Total_Energy,0)/100","v":0},{"$f":"IFERROR('Rates Table'!G10*SPU_Annual_Total_Energy,0)/100","v":0},{"$f":"IFERROR('Rates Table'!H10*SPU_Annual_Total_Energy,0)/100","v":0},{"$f":"IFERROR('Rates Table'!I10*SPU_Annual_Total_Energy,0)/100","v":0},{"$f":"IFERROR('Rates Table'!J10*SPU_Annual_Total_Energy,0)/100","v":0},{"$f":"IFERROR('Rates Table'!K10*SPU_Annual_Total_Energy,0)/100","v":0},{"$f":"IFERROR('Rates Table'!L10*SPU_Annual_Total_Energy,0)/100","v":0},{"$f":"IFERROR('Rates Table'!M10*SPU_Annual_Total_Energy,0)/100","v":0},{"$f":"IFERROR('Rates Table'!N10*SPU_Annual_Total_Energy,0)/100","v":0},{"$f":"IFERROR('Rates Table'!O10*SPU_Annual_Total_Energy,0)/100","v":0},{"$f":"IFERROR('Rates Table'!P10*SPU_Annual_Total_Energy,0)/100","v":0},{"$f":"IFERROR('Rates Table'!Q10*SPU_Annual_Total_Energy,0)/100","v":0},{"$f":"IFERROR('Rates Table'!R10*SPU_Annual_Total_Energy,0)/100","v":0},{"$f":"IFERROR('Rates Table'!S10*SPU_Annual_Total_Energy,0)/100","v":0},{"$f":"IFERROR('Rates Table'!T10*SPU_Annual_Total_Energy,0)/100","v":0},{"$f":"IFERROR('Rates Table'!U10*SPU_Annual_Total_Energy,0)/100","v":0},{"$f":"IFERROR('Rates Table'!V10*SPU_Annual_Total_Energy,0)/100","v":0},{"$f":"IFERROR('Rates Table'!W10*SPU_Annual_Total_Energy,0)/100","v":0},{"$f":"IFERROR('Rates Table'!X10*SPU_Annual_Total_Energy,0)/100","v":0},{"$f":"IFERROR('Rates Table'!Y10*SPU_Annual_Total_Energy,0)/100","v":0},{"$f":"IFERROR('Rates Table'!Z10*SPU_Annual_Total_Energy,0)/100","v":0},{"$f":"IFERROR('Rates Table'!AA10*Homeflex_Total_Energy,0)/100","v":0},{"$f":"IFERROR('Rates Table'!AB10*Homeflex_Total_Energy,0)/100","v":0},{"$f":"IFERROR('Rates Table'!AC10*Homeflex_Total_Energy,0)/100","v":0},{"$f":"IFERROR('Rates Table'!AD10*Homeflex_Total_Energy,0)/100","v":0},null,{"$f":"SUMIFS(AG10:BE10,$F$7:$AD$7,Selected_Tariff_ID)","v":0},{"$f":"IFERROR('Rates Table'!AG10*SPU_Annual_Total_Energy,0)/100","v":0},{"$f":"IFERROR('Rates Table'!AH10*SPU_Annual_Total_Energy,0)/100","v":0},{"$f":"IFERROR('Rates Table'!AI10*SPU_Annual_Total_Energy,0)/100","v":0},{"$f":"IFERROR('Rates Table'!AJ10*SPU_Annual_Total_Energy,0)/100","v":0},{"$f":"IFERROR('Rates Table'!AK10*SPU_Annual_Total_Energy,0)/100","v":0},{"$f":"IFERROR('Rates Table'!AL10*SPU_Annual_Total_Energy,0)/100","v":0},{"$f":"IFERROR('Rates Table'!AM10*SPU_Annual_Total_Energy,0)/100","v":0},{"$f":"IFERROR('Rates Table'!AN10*SPU_Annual_Total_Energy,0)/100","v":0},{"$f":"IFERROR('Rates Table'!AO10*SPU_Annual_Total_Energy,0)/100","v":0},{"$f":"IFERROR('Rates Table'!AP10*SPU_Annual_Total_Energy,0)/100","v":0},{"$f":"IFERROR('Rates Table'!AQ10*SPU_Annual_Total_Energy,0)/100","v":0},{"$f":"IFERROR('Rates Table'!AR10*SPU_Annual_Total_Energy,0)/100","v":0},{"$f":"IFERROR('Rates Table'!AS10*SPU_Annual_Total_Energy,0)/100","v":0},{"$f":"IFERROR('Rates Table'!AT10*SPU_Annual_Total_Energy,0)/100","v":0},{"$f":"IFERROR('Rates Table'!AU10*SPU_Annual_Total_Energy,0)/100","v":0},{"$f":"IFERROR('Rates Table'!AV10*SPU_Annual_Total_Energy,0)/100","v":0},{"$f":"IFERROR('Rates Table'!AW10*SPU_Annual_Total_Energy,0)/100","v":0},{"$f":"IFERROR('Rates Table'!AX10*SPU_Annual_Total_Energy,0)/100","v":0},{"$f":"IFERROR('Rates Table'!AY10*SPU_Annual_Total_Energy,0)/100","v":0},{"$f":"IFERROR('Rates Table'!AZ10*SPU_Annual_Total_Energy,0)/100","v":0},{"$f":"IFERROR('Rates Table'!BA10*SPU_Annual_Total_Energy,0)/100","v":0},{"$f":"IFERROR('Rates Table'!BB10*Homeflex_Total_Energy,0)/100","v":0},{"$f":"IFERROR('Rates Table'!BC10*Homeflex_Total_Energy,0)/100","v":0},{"$f":"IFERROR('Rates Table'!BD10*Homeflex_Total_Energy,0)/100","v":0},{"$f":"IFERROR('Rates Table'!BE10*Homeflex_Total_Energy,0)/100","v":0}]
[null,null,"Network demand charge, Ancillary service charge and retail","c/kWh",{"$f":"SUMIFS(F11:AD11,$F$7:$AD$7,Selected_Tariff_ID)","v":0},null,null,null,null,null,null,null,null,null,null,null,null,null,null,null,null,null,null,null,null,null,{"$f":"IFERROR('Rates Table'!AA11*Homeflex_Total_Energy,0)/100","v":0},{"$f":"IFERROR('Rates Table'!AB11*Homeflex_Total_Energy,0)/100","v":0},{"$f":"IFERROR('Rates Table'!AC11*Homeflex_Total_Energy,0)/100","v":0},{"$f":"IFERROR('Rates Table'!AD11*Homeflex_Total_Energy,0)/100","v":0},null,{"$f":"SUMIFS(AG11:BE11,$F$7:$AD$7,Selected_Tariff_ID)","v":0},null,null,null,null,null,null,null,null,null,null,null,null,null,null,null,null,null,null,null,null,null,{"$f":"IFERROR('Rates Table'!BB11*Homeflex_Total_Energy,0)/100","v":0},{"$f":"IFERROR('Rates Table'!BC11*Homeflex_Total_Energy,0)/100","v":0},{"$f":"IFERROR('Rates Table'!BD11*Homeflex_Total_Energy,0)/100","v":0},{"$f":"IFERROR('Rates Table'!BE11*Homeflex_Total_Energy,0)/100","v":0}]
[null,null,"Network capacity charge",{"$f":"IF(Table_1=1,\"R/kVA\",\"R/day\")","v":"R/day"},{"$f":"SUMIFS(F12:AD12,$F$7:$AD$7,Selected_Tariff_ID)","v":1693.6000000000001},{"$f":"IFERROR('Rates Table'!F12*PODs*ESKOM_Total_days,0)","v":1291.7958333333333},{"$f":"IFERROR('Rates Table'!G12*PODs*ESKOM_Total_days,0)","v":2176.9208333333331},{"$f":"IFERROR('Rates Table'!H12*PODs*ESKOM_Total_days,0)","v":3760.7166666666667},{"$f":"IFERROR('Rates Table'!I12*PODs*ESKOM_Total_days,0)","v":0},{"$f":"IFERROR('Rates Table'!J12*PODs*ESKOM_Total_days,0)","v":0},{"$f":"IFERROR('Rates Table'!K12*PODs*ESKOM_Total_days,0)","v":0},{"$f":"IFERROR('Rates Table'!L12*PODs*ESKOM_Total_days,0)","v":319.98333333333335},{"$f":"IFERROR('Rates Table'!M12*PODs*ESKOM_Total_days,0)","v":599.51250000000005},{"$f":"IFERROR('Rates Table'!N12*PODs*ESKOM_Total_days,0)","v":1237.6541666666667},{"$f":"IFERROR('Rates Table'!O12*PODs*ESKOM_Total_days,0)","v":195.57916666666665},{"$f":"IFERROR('Rates Table'!P12*PODs*ESKOM_Total_days,0)","v":2029.4},{"$f":"IFERROR('Rates Table'!Q12*PODs*ESKOM_Total_days,0)","v":1693.6000000000001},{"$f":"IFERROR('Rates Table'!R12*PODs*ESKOM_Total_days,0)","v":2603.3625000000002},{"$f":"IFERROR('Rates Table'!S12*PODs*ESKOM_Total_days,0)","v":4162.2166666666672},{"$f":"IFERROR('Rates Table'!T12*PODs*ESKOM_Total_days,0)","v":1348.6750000000002},{"$f":"IFERROR('Rates Table'!U12*PODs*ESKOM_Total_days,0)","v":0},{"$f":"IFERROR('Rates Table'!V12*PODs*ESKOM_Total_days,0)","v":0},{"$f":"IFERROR('Rates Table'!W12*PODs*ESKOM_Total_days,0)","v":0},{"$f":"IFERROR('Rates Table'!X12*PODs*ESKOM_Total_days,0)","v":0},{"$f":"IFERROR('Rates Table'!Y12*PODs*ESKOM_Total_days,0)","v":0},{"$f":"IFERROR('Rates Table'!Z12*PODs*ESKOM_Total_days,0)","v":0},{"$f":"IFERROR('Rates Table'!AA12*PODs*ESKOM_Total_days,0)","v":319.98333333333335},{"$f":"IFERROR('Rates Table'!AB12*PODs*ESKOM_Total_days,0)","v":599.51250000000005},{"$f":"IFERROR('Rates Table'!AC12*PODs*ESKOM_Total_days,0)","v":1237.6541666666667},{"$f":"IFERROR('Rates Table'!AD12*PODs*ESKOM_Total_days,0)","v":195.57916666666665},null,{"$f":"SUMIFS(AG12:BE12,$F$7:$AD$7,Selected_Tariff_ID)","v":1678.0875000000001},{"$f":"IFERROR('Rates Table'!AG12*PODs*ESKOM_Total_days,0)","v":548.7166666666667},{"$f":"IFERROR('Rates Table'!AH12*PODs*ESKOM_Total_days,0)","v":815.16666666666674},{"$f":"IFERROR('Rates Table'!AI12*PODs*ESKOM_Total_days,0)","v":2033.6583333333333},{"$f":"IFERROR('Rates Table'!AJ12*PODs*ESKOM_Total_days,0)","v":0},{"$f":"IFERROR('Rates Table'!AK12*PODs*ESKOM_Total_days,0)","v":0},{"$f":"IFERROR('Rates Table'!AL12*PODs*ESKOM_Total_days,0)","v":0},{"$f":"IFERROR('Rates Table'!AM12*PODs*ESKOM_Total_days,0)","v":327.28333333333336},{"$f":"IFERROR('Rates Table'!AN12*PODs*ESKOM_Total_days,0)","v":730.30416666666679},{"$f":"IFERROR('Rates Table'!AO12*PODs*ESKOM_Total_days,0)","v":1560.0708333333334},{"$f":"IFERROR('Rates Table'!AP12*PODs*ESKOM_Total_days,0)","v":225.38750000000002},{"$f":"IFERROR('Rates Table'!AQ12*PODs*ESKOM_Total_days,0)","v":0},{"$f":"IFERROR('Rates Table'!AR12*PODs*ESKOM_Total_days,0)","v":1678.0875000000001},{"$f":"IFERROR('Rates Table'!AS12*PODs*ESKOM_Total_days,0)","v":2616.7458333333334},{"$f":"IFERROR('Rates Table'!AT12*PODs*ESKOM_Total_days,0)","v":4190.5041666666675},{"$f":"IFERROR('Rates Table'!AU12*PODs*ESKOM_Total_days,0)","v":1238.8708333333334},{"$f":"IFERROR('Rates Table'!AV12*PODs*ESKOM_Total_days,0)","v":0},{"$f":"IFERROR('Rates Table'!AW12*PODs*ESKOM_Total_days,0)","v":0},{"$f":"IFERROR('Rates Table'!AX12*PODs*ESKOM_Total_days,0)","v":0},{"$f":"IFERROR('Rates Table'!AY12*PODs*ESKOM_Total_days,0)","v":0},{"$f":"IFERROR('Rates Table'!AZ12*PODs*ESKOM_Total_days,0)","v":0},{"$f":"IFERROR('Rates Table'!BA12*PODs*ESKOM_Total_days,0)","v":0},{"$f":"IFERROR('Rates Table'!BB12*PODs*ESKOM_Total_days,0)","v":327.28333333333336},{"$f":"IFERROR('Rates Table'!BC12*PODs*ESKOM_Total_days,0)","v":730.30416666666679},{"$f":"IFERROR('Rates Table'!BD12*PODs*ESKOM_Total_days,0)","v":1560.0708333333334},{"$f":"IFERROR('Rates Table'!BE12*PODs*ESKOM_Total_days,0)","v":225.38750000000002}]
[]
[null,"Total network charges",null,null,{"$f":"SUM(E10:E12)","v":1693.6000000000001},1291.7958333333333,2176.9208333333331,3760.7166666666667,0,0,0,319.98333333333335,599.51250000000005,1237.6541666666667,195.57916666666665,2029.4,1693.6000000000001,2603.3625000000002,4162.2166666666672,1348.6750000000002,{"$f":"SUM(U10:U12)","v":0},0,0,0,0,{"$f":"SUM(Z10:Z12)","v":0},319.98333333333335,{"$f":"SUM(AB10:AB12)","v":599.51250000000005},{"$f":"SUM(AC10:AC12)","v":1237.6541666666667},{"$f":"SUM(AD10:AD12)","v":195.57916666666665},null,{"$f":"SUM(AF10:AF12)","v":1678.0875000000001},{"$f":"SUM(AG10:AG12)","v":548.7166666666667},815.16666666666674,2033.6583333333333,0,0,0,327.28333333333336,730.30416666666679,1560.0708333333334,225.38750000000002,0,1678.0875000000001,2616.7458333333334,4190.5041666666675,1238.8708333333334,{"$f":"SUM(AV10:AV12)","v":0},0,0,0,0,{"$f":"SUM(BA10:BA12)","v":0},327.28333333333336,{"$f":"SUM(BC10:BC12)","v":730.30416666666679},{"$f":"SUM(BD10:BD12)","v":1560.0708333333334},{"$f":"SUM(BE10:BE12)","v":225.38750000000002}]
[]
[null,"Energy charges",null,"Units",{"$f":"E$8","v":"2024/25 Tariff Book Rates"},{"$f":"F$8","v":"2024/25 Tariff Book Rates"},"2024/25 Tariff Book Rates","2024/25 Tariff Book Rates","2024/25 Tariff Book Rates","2024/25 Tariff Book Rates","2024/25 Tariff Book Rates","2024/25 Tariff Book Rates","2024/25 Tariff Book Rates","2024/25 Tariff Book Rates","2024/25 Tariff Book Rates","2024/25 Tariff Book Rates","2024/25 Tariff Book Rates","2024/25 Tariff Book Rates","2024/25 Tariff Book Rates","2024/25 Tariff Book Rates","2024/25 Tariff Book Rates","2024/25 Tariff Book Rates","2024/25 Tariff Book Rates","2024/25 Tariff Book Rates","2024/25 Tariff Book Rates","2024/25 Tariff Book Rates","2024/25 Tariff Book Rates","2024/25 Tariff Book Rates","2024/25 Tariff Book Rates","2024/25 Tariff Book Rates",null,{"$f":"AF$8","v":"2024/25 RTP Rates"},{"$f":"AG$8","v":"2024/25 RTP Rates"},"2024/25 RTP Rates","2024/25 RTP Rates","2024/25 RTP Rates","2024/25 RTP Rates","2024/25 RTP Rates","2024/25 RTP Rates","2024/25 RTP Rates","2024/25 RTP Rates","2024/25 RTP Rates","2024/25 RTP Rates","2024/25 RTP Rates","2024/25 RTP Rates","2024/25 RTP Rates","2024/25 RTP Rates","2024/25 RTP Rates","2024/25 RTP Rates","2024/25 RTP Rates","2024/25 RTP Rates","2024/25 RTP Rates","2024/25 RTP Rates","2024/25 RTP Rates","2024/25 RTP Rates","2024/25 RTP Rates","2024/25 RTP Rates"]
[]
[null,null,"Energy","c/kWh",{"$f":"SUMIFS(F18:AD18,$F$7:$AD$7,Selected_Tariff_ID)","v":0},{"$f":"IFERROR('Rates Table'!F18*(SPU_Annual_Total_Energy),0)/100","v":0},{"$f":"IFERROR('Rates Table'!G18*(SPU_Annual_Total_Energy),0)/100","v":0},{"$f":"IFERROR('Rates Table'!H18*(SPU_Annual_Total_Energy),0)/100","v":0},{"$f":"IFERROR('Rates Table'!I18*(SPU_Annual_Total_Energy),0)/100","v":0},{"$f":"IFERROR('Rates Table'!J18*(SPU_Annual_Total_Energy),0)/100","v":0},{"$f":"IFERROR('Rates Table'!K18*(SPU_Annual_Total_Energy),0)/100","v":0},{"$f":"IFERROR('Rates Table'!L18*(SPU_Annual_Total_Energy),0)/100","v":0},{"$f":"IFERROR('Rates Table'!M18*(SPU_Annual_Total_Energy),0)/100","v":0},{"$f":"IFERROR('Rates Table'!N18*(SPU_Annual_Total_Energy),0)/100","v":0},{"$f":"IFERROR('Rates Table'!O18*(SPU_Annual_Total_Energy),0)/100","v":0},{"$f":"IFERROR('Rates Table'!P18*(SPU_Annual_Total_Energy),0)/100","v":0},{"$f":"IFERROR('Rates Table'!Q18*(SPU_Annual_Total_Energy),0)/100","v":0},{"$f":"IFERROR('Rates Table'!R18*(SPU_Annual_Total_Energy),0)/100","v":0},{"$f":"IFERROR('Rates Table'!S18*(SPU_Annual_Total_Energy),0)/100","v":0},{"$f":"IFERROR('Rates Table'!T18*(SPU_Annual_Total_Energy),0)/100","v":0},{"$f":"IFERROR('Rates Table'!U18*(SPU_Annual_Total_Energy),0)/100","v":0},{"$f":"IFERROR('Rates Table'!V18*(SPU_Annual_Total_Energy),0)/100","v":0},{"$f":"IFERROR('Rates Table'!W18*(SPU_Annual_Total_Energy),0)/100","v":0},{"$f":"IFERROR('Rates Table'!X18*(SPU_Annual_Total_Energy),0)/100","v":0},{"$f":"IFERROR('Rates Table'!Y18*(SPU_Annual_Total_Energy),0)/100","v":0},{"$f":"IFERROR('Rates Table'!Z18*(SPU_Annual_Total_Energy),0)/100","v":0},{"$f":"IFERROR('Rates Table'!AA18*(Homeflex_Total_Energy),0)/100","v":0},{"$f":"IFERROR('Rates Table'!AB18*(Homeflex_Total_Energy),0)/100","v":0},{"$f":"IFERROR('Rates Table'!AC18*(Homeflex_Total_Energy),0)/100","v":0},{"$f":"IFERROR('Rates Table'!AD18*(Homeflex_Total_Energy),0)/100","v":0},null,{"$f":"SUMIFS(AG18:BE18,$F$7:$AD$7,Selected_Tariff_ID)","v":0},{"$f":"IFERROR('Rates Table'!AG18*(SPU_Annual_Total_Energy),0)/100","v":0},{"$f":"IFERROR('Rates Table'!AH18*(SPU_Annual_Total_Energy),0)/100","v":0},{"$f":"IFERROR('Rates Table'!AI18*(SPU_Annual_Total_Energy),0)/100","v":0},{"$f":"IFERROR('Rates Table'!AJ18*(SPU_Annual_Total_Energy),0)/100","v":0},{"$f":"IFERROR('Rates Table'!AK18*(SPU_Annual_Total_Energy),0)/100","v":0},{"$f":"IFERROR('Rates Table'!AL18*(SPU_Annual_Total_Energy),0)/100","v":0},{"$f":"IFERROR('Rates Table'!AM18*(SPU_Annual_Total_Energy),0)/100","v":0},{"$f":"IFERROR('Rates Table'!AN18*(SPU_Annual_Total_Energy),0)/100","v":0},{"$f":"IFERROR('Rates Table'!AO18*(SPU_Annual_Total_Energy),0)/100","v":0},{"$f":"IFERROR('Rates Table'!AP18*(SPU_Annual_Total_Energy),0)/100","v":0},{"$f":"IFERROR('Rates Table'!AQ18*(SPU_Annual_Total_Energy),0)/100","v":0},{"$f":"IFERROR('Rates Table'!AR18*(SPU_Annual_Total_Energy),0)/100","v":0},{"$f":"IFERROR('Rates Table'!AS18*(SPU_Annual_Total_Energy),0)/100","v":0},{"$f":"IFERROR('Rates Table'!AT18*(SPU_Annual_Total_Energy),0)/100","v":0},{"$f":"IFERROR('Rates Table'!AU18*(SPU_Annual_Total_Energy),0)/100","v":0},{"$f":"IFERROR('Rates Table'!AV18*(SPU_Annual_Total_Energy),0)/100","v":0},{"$f":"IFERROR('Rates Table'!AW18*(SPU_Annual_Total_Energy),0)/100","v":0},{"$f":"IFERROR('Rates Table'!AX18*(SPU_Annual_Total_Energy),0)/100","v":0},{"$f":"IFERROR('Rates Table'!AY18*(SPU_Annual_Total_Energy),0)/100","v":0},{"$f":"IFERROR('Rates Table'!AZ18*(SPU_Annual_Total_Energy),0)/100","v":0},{"$f":"IFERROR('Rates Table'!BA18*(SPU_Annual_Total_Energy),0)/100","v":0},{"$f":"IFERROR('Rates Table'!BB18*(Homeflex_Total_Energy),0)/100","v":0},{"$f":"IFERROR('Rates Table'!BC18*(Homeflex_Total_Energy),0)/100","v":0},{"$f":"IFERROR('Rates Table'!BD18*(Homeflex_Total_Energy),0)/100","v":0},{"$f":"IFERROR('Rates Table'!BE18*(Homeflex_Total_Energy),0)/100","v":0}]
[null,null,"Peak consumption","c/kWh",0,null,null,null,null,null,null,null,null,null,null,null,null,null,null,null,null,null,null,null,null,null,{"$f":"IFERROR('Rates Table'!AA19*(Homeflex_Peak_Energy_High),0)/100","v":0},{"$f":"IFERROR('Rates Table'!AB19*(Homeflex_Peak_Energy_High),0)/100","v":0},{"$f":"IFERROR('Rates Table'!AC19*(Homeflex_Peak_Energy_High),0)/100","v":0},{"$f":"IFERROR('Rates Table'!AD19*(Homeflex_Peak_Energy_High),0)/100","v":0},null,0,null,null,null,null,null,null,null,null,null,null,null,null,null,null,null,null,null,null,null,null,null,{"$f":"IFERROR('Rates Table'!BB19*(Homeflex_Peak_Energy_High),0)/100","v":0},{"$f":"IFERROR('Rates Table'!BC19*(Homeflex_Peak_Energy_High),0)/100","v":0},{"$f":"IFERROR('Rates Table'!BD19*(Homeflex_Peak_Energy_High),0)/100","v":0},{"$f":"IFERROR('Rates Table'!BE19*(Homeflex_Peak_Energy_High),0)/100","v":0}]
[null,null,"Standard consumption","c/kWh",0,null,null,null,null,null,null,null,null,null,null,null,null,null,null,null,null,null,null,null,null,null,{"$f":"IFERROR('Rates Table'!AA20*(Homeflex_Standard_Energy_High),0)/100","v":0},{"$f":"IFERROR('Rates Table'!AB20*(Homeflex_Standard_Energy_High),0)/100","v":0},{"$f":"IFERROR('Rates Table'!AC20*(Homeflex_Standard_Energy_High),0)/100","v":0},{"$f":"IFERROR('Rates Table'!AD20*(Homeflex_Standard_Energy_High),0)/100","v":0},null,0,null,null,null,null,null,null,null,null,null,null,null,null,null,null,null,null,null,null,null,null,null,{"$f":"IFERROR('Rates Table'!BB20*(Homeflex_Standard_Energy_High),0)/100","v":0},{"$f":"IFERROR('Rates Table'!BC20*(Homeflex_Standard_Energy_High),0)/100","v":0},{"$f":"IFERROR('Rates Table'!BD20*(Homeflex_Standard_Energy_High),0)/100","v":0},{"$f":"IFERROR('Rates Table'!BE20*(Homeflex_Standard_Energy_High),0)/100","v":0}]
[null,null,"Off-Peak consumption","c/kWh",0,null,null,null,null,null,null,null,null,null,null,null,null,null,null,null,null,null,null,null,null,null,{"$f":"IFERROR('Rates Table'!AA21*(Homeflex_OffPeak_Energy_High),0)/100","v":0},{"$f":"IFERROR('Rates Table'!AB21*(Homeflex_OffPeak_Energy_High),0)/100","v":0},{"$f":"IFERROR('Rates Table'!AC21*(Homeflex_OffPeak_Energy_High),0)/100","v":0},{"$f":"IFERROR('Rates Table'!AD21*(Homeflex_OffPeak_Energy_High),0)/100","v":0},null,0,null,null,null,null,null,null,null,null,null,null,null,null,null,null,null,null,null,null,null,null,null,{"$f":"IFERROR('Rates Table'!BB21*(Homeflex_OffPeak_Energy_High),0)/100","v":0},{"$f":"IFERROR('Rates Table'!BC21*(Homeflex_OffPeak_Energy_High),0)/100","v":0},{"$f":"IFERROR('Rates Table'!BD21*(Homeflex_OffPeak_Energy_High),0)/100","v":0},{"$f":"IFERROR('Rates Table'!BE21*(Homeflex_OffPeak_Energy_High),0)/100","v":0}]
[null,null,"Energy - Block 1","c/kWh",0,{"$f":"IFERROR('Rates Table'!F22*(SPU_Block_1),0)/100","v":0},{"$f":"IFERROR('Rates Table'!G22*(SPU_Block_1),0)/100","v":0},{"$f":"IFERROR('Rates Table'!H22*(SPU_Block_1),0)/100","v":0},{"$f":"IFERROR('Rates Table'!I22*(SPU_Block_1),0)/100","v":0},{"$f":"IFERROR('Rates Table'!J22*(SPU_Block_1),0)/100","v":0},{"$f":"IFERROR('Rates Table'!K22*(SPU_Block_1),0)/100","v":0},{"$f":"IFERROR('Rates Table'!L22*(SPU_Block_1),0)/100","v":0},{"$f":"IFERROR('Rates Table'!M22*(SPU_Block_1),0)/100","v":0},{"$f":"IFERROR('Rates Table'!N22*(SPU_Block_1),0)/100","v":0},{"$f":"IFERROR('Rates Table'!O22*(SPU_Block_1),0)/100","v":0},{"$f":"IFERROR('Rates Table'!P22*(SPU_Block_1),0)/100","v":0},{"$f":"IFERROR('Rates Table'!Q22*(SPU_Block_1),0)/100","v":0},{"$f":"IFERROR('Rates Table'!R22*(SPU_Block_1),0)/100","v":0},{"$f":"IFERROR('Rates Table'!S22*(SPU_Block_1),0)/100","v":0},{"$f":"IFERROR('Rates Table'!T22*(SPU_Block_1),0)/100","v":0},{"$f":"IFERROR('Rates Table'!U22*(SPU_Block_1),0)/100","v":0},{"$f":"IFERROR('Rates Table'!V22*(SPU_Block_1),0)/100","v":0},{"$f":"IFERROR('Rates Table'!W22*(SPU_Block_1),0)/100","v":0},{"$f":"IFERROR('Rates Table'!X22*(SPU_Block_1),0)/100","v":0},{"$f":"IFERROR('Rates Table'!Y22*(SPU_Block_1),0)/100","v":0},{"$f":"IFERROR('Rates Table'!Z22*(SPU_Block_1),0)/100","v":0},{"$f":"IFERROR('Rates Table'!AA22*(SPU_Block_1),0)/100","v":0},{"$f":"IFERROR('Rates Table'!AB22*(SPU_Block_1),0)/100","v":0},{"$f":"IFERROR('Rates Table'!AC22*(SPU_Block_1),0)/100","v":0},{"$f":"IFERROR('Rates Table'!AD22*(SPU_Block_1),0)/100","v":0},null,0,{"$f":"IFERROR('Rates Table'!AG22*(SPU_Block_1),0)/100","v":0},{"$f":"IFERROR('Rates Table'!AH22*(SPU_Block_1),0)/100","v":0},{"$f":"IFERROR('Rates Table'!AI22*(SPU_Block_1),0)/100","v":0},{"$f":"IFERROR('Rates Table'!AJ22*(SPU_Block_1),0)/100","v":0},{"$f":"IFERROR('Rates Table'!AK22*(SPU_Block_1),0)/100","v":0},{"$f":"IFERROR('Rates Table'!AL22*(SPU_Block_1),0)/100","v":0},{"$f":"IFERROR('Rates Table'!AM22*(SPU_Block_1),0)/100","v":0},{"$f":"IFERROR('Rates Table'!AN22*(SPU_Block_1),0)/100","v":0},{"$f":"IFERROR('Rates Table'!AO22*(SPU_Block_1),0)/100","v":0},{"$f":"IFERROR('Rates Table'!AP22*(SPU_Block_1),0)/100","v":0},{"$f":"IFERROR('Rates Table'!AQ22*(SPU_Block_1),0)/100","v":0},{"$f":"IFERROR('Rates Table'!AR22*(SPU_Block_1),0)/100","v":0},{"$f":"IFERROR('Rates Table'!AS22*(SPU_Block_1),0)/100","v":0},{"$f":"IFERROR('Rates Table'!AT22*(SPU_Block_1),0)/100","v":0},{"$f":"IFERROR('Rates Table'!AU22*(SPU_Block_1),0)/100","v":0},{"$f":"IFERROR('Rates Table'!AV22*(SPU_Block_1),0)/100","v":0},{"$f":"IFERROR('Rates Table'!AW22*(SPU_Block_1),0)/100","v":0},{"$f":"IFERROR('Rates Table'!AX22*(SPU_Block_1),0)/100","v":0},{"$f":"IFERROR('Rates Table'!AY22*(SPU_Block_1),0)/100","v":0},{"$f":"IFERROR('Rates Table'!AZ22*(SPU_Block_1),0)/100","v":0},{"$f":"IFERROR('Rates Table'!BA22*(SPU_Block_1),0)/100","v":0},{"$f":"IFERROR('Rates Table'!BB22*(SPU_Block_1),0)/100","v":0},{"$f":"IFERROR('Rates Table'!BC22*(SPU_Block_1),0)/100","v":0},{"$f":"IFERROR('Rates Table'!BD22*(SPU_Block_1),0)/100","v":0},{"$f":"IFERROR('Rates Table'!BE22*(SPU_Block_1),0)/100","v":0}]
[null,null,"Energy - Block 2","c/kWh",0,{"$f":"IFERROR('Rates Table'!F23*(SPU_Block_2),0)/100","v":0},{"$f":"IFERROR('Rates Table'!G23*(SPU_Block_2),0)/100","v":0},{"$f":"IFERROR('Rates Table'!H23*(SPU_Block_2),0)/100","v":0},{"$f":"IFERROR('Rates Table'!I23*(SPU_Block_2),0)/100","v":0},{"$f":"IFERROR('Rates Table'!J23*(SPU_Block_2),0)/100","v":0},{"$f":"IFERROR('Rates Table'!K23*(SPU_Block_2),0)/100","v":0},{"$f":"IFERROR('Rates Table'!L23*(SPU_Block_2),0)/100","v":0},{"$f":"IFERROR('Rates Table'!M23*(SPU_Block_2),0)/100","v":0},{"$f":"IFERROR('Rates Table'!N23*(SPU_Block_2),0)/100","v":0},{"$f":"IFERROR('Rates Table'!O23*(SPU_Block_2),0)/100","v":0},{"$f":"IFERROR('Rates Table'!P23*(SPU_Block_2),0)/100","v":0},{"$f":"IFERROR('Rates Table'!Q23*(SPU_Block_2),0)/100","v":0},{"$f":"IFERROR('Rates Table'!R23*(SPU_Block_2),0)/100","v":0},{"$f":"IFERROR('Rates Table'!S23*(SPU_Block_2),0)/100","v":0},{"$f":"IFERROR('Rates Table'!T23*(SPU_Block_2),0)/100","v":0},{"$f":"IFERROR('Rates Table'!U23*(SPU_Block_2),0)/100","v":0},{"$f":"IFERROR('Rates Table'!V23*(SPU_Block_2),0)/100","v":0},{"$f":"IFERROR('Rates Table'!W23*(SPU_Block_2),0)/100","v":0},{"$f":"IFERROR('Rates Table'!X23*(SPU_Block_2),0)/100","v":0},{"$f":"IFERROR('Rates Table'!Y23*(SPU_Block_2),0)/100","v":0},{"$f":"IFERROR('Rates Table'!Z23*(SPU_Block_2),0)/100","v":0},{"$f":"IFERROR('Rates Table'!AA23*(SPU_Block_2),0)/100","v":0},{"$f":"IFERROR('Rates Table'!AB23*(SPU_Block_2),0)/100","v":0},{"$f":"IFERROR('Rates Table'!AC23*(SPU_Block_2),0)/100","v":0},{"$f":"IFERROR('Rates Table'!AD23*(SPU_Block_2),0)/100","v":0},null,0,{"$f":"IFERROR('Rates Table'!AG23*(SPU_Block_2),0)/100","v":0},{"$f":"IFERROR('Rates Table'!AH23*(SPU_Block_2),0)/100","v":0},{"$f":"IFERROR('Rates Table'!AI23*(SPU_Block_2),0)/100","v":0},{"$f":"IFERROR('Rates Table'!AJ23*(SPU_Block_2),0)/100","v":0},{"$f":"IFERROR('Rates Table'!AK23*(SPU_Block_2),0)/100","v":0},{"$f":"IFERROR('Rates Table'!AL23*(SPU_Block_2),0)/100","v":0},{"$f":"IFERROR('Rates Table'!AM23*(SPU_Block_2),0)/100","v":0},{"$f":"IFERROR('Rates Table'!AN23*(SPU_Block_2),0)/100","v":0},{"$f":"IFERROR('Rates Table'!AO23*(SPU_Block_2),0)/100","v":0},{"$f":"IFERROR('Rates Table'!AP23*(SPU_Block_2),0)/100","v":0},{"$f":"IFERROR('Rates Table'!AQ23*(SPU_Block_2),0)/100","v":0},{"$f":"IFERROR('Rates Table'!AR23*(SPU_Block_2),0)/100","v":0},{"$f":"IFERROR('Rates Table'!AS23*(SPU_Block_2),0)/100","v":0},{"$f":"IFERROR('Rates Table'!AT23*(SPU_Block_2),0)/100","v":0},{"$f":"IFERROR('Rates Table'!AU23*(SPU_Block_2),0)/100","v":0},{"$f":"IFERROR('Rates Table'!AV23*(SPU_Block_2),0)/100","v":0},{"$f":"IFERROR('Rates Table'!AW23*(SPU_Block_2),0)/100","v":0},{"$f":"IFERROR('Rates Table'!AX23*(SPU_Block_2),0)/100","v":0},{"$f":"IFERROR('Rates Table'!AY23*(SPU_Block_2),0)/100","v":0},{"$f":"IFERROR('Rates Table'!AZ23*(SPU_Block_2),0)/100","v":0},{"$f":"IFERROR('Rates Table'!BA23*(SPU_Block_2),0)/100","v":0},{"$f":"IFERROR('Rates Table'!BB23*(SPU_Block_2),0)/100","v":0},{"$f":"IFERROR('Rates Table'!BC23*(SPU_Block_2),0)/100","v":0},{"$f":"IFERROR('Rates Table'!BD23*(SPU_Block_2),0)/100","v":0},{"$f":"IFERROR('Rates Table'!BE23*(SPU_Block_2),0)/100","v":0}]
[null,null,"Generation capacity charge","R/POD/day",null,null,null,null,null,null,null,null,null,null,null,null,null,null,null,null,null,null,null,null,null,null,null,null,null,null,null,182.19583333333335,{"$f":"IFERROR('Rates Table'!AG24*PODs*ESKOM_Total_days,0)","v":268.27500000000003},{"$f":"IFERROR('Rates Table'!AH24*PODs*ESKOM_Total_days,0)","v":398.45833333333331},{"$f":"IFERROR('Rates Table'!AI24*PODs*ESKOM_Total_days,0)","v":994.32083333333333},{"$f":"IFERROR('Rates Table'!AJ24*PODs*ESKOM_Total_days,0)","v":0},{"$f":"IFERROR('Rates Table'!AK24*PODs*ESKOM_Total_days,0)","v":0},{"$f":"IFERROR('Rates Table'!AL24*PODs*ESKOM_Total_days,0)","v":0},{"$f":"IFERROR('Rates Table'!AM24*PODs*ESKOM_Total_days,0)","v":97.333333333333343},{"$f":"IFERROR('Rates Table'!AN24*PODs*ESKOM_Total_days,0)","v":171.85416666666669},{"$f":"IFERROR('Rates Table'!AO24*PODs*ESKOM_Total_days,0)","v":417.92500000000001},{"$f":"IFERROR('Rates Table'!AP24*PODs*ESKOM_Total_days,0)","v":63.570833333333333},{"$f":"IFERROR('Rates Table'!AQ24*PODs*ESKOM_Total_days,0)","v":644.5291666666667},{"$f":"IFERROR('Rates Table'!AR24*PODs*ESKOM_Total_days,0)","v":182.19583333333335},{"$f":"IFERROR('Rates Table'!AS24*PODs*ESKOM_Total_days,0)","v":361.95833333333337},{"$f":"IFERROR('Rates Table'!AT24*PODs*ESKOM_Total_days,0)","v":708.1},{"$f":"IFERROR('Rates Table'!AU24*PODs*ESKOM_Total_days,0)","v":119.84166666666667},{"$f":"IFERROR('Rates Table'!AV24*PODs*ESKOM_Total_days,0)","v":0},{"$f":"IFERROR('Rates Table'!AW24*PODs*ESKOM_Total_days,0)","v":0},{"$f":"IFERROR('Rates Table'!AX24*PODs*ESKOM_Total_days,0)","v":0},{"$f":"IFERROR('Rates Table'!AY24*PODs*ESKOM_Total_days,0)","v":0},{"$f":"IFERROR('Rates Table'!AZ24*PODs*ESKOM_Total_days,0)","v":0},{"$f":"IFERROR('Rates Table'!BA24*PODs*ESKOM_Total_days,0)","v":0},{"$f":"IFERROR('Rates Table'!BB24*PODs*ESKOM_Total_days,0)","v":97.333333333333343},{"$f":"IFERROR('Rates Table'!BC24*PODs*ESKOM_Total_days,0)","v":171.85416666666669},{"$f":"IFERROR('Rates Table'!BD24*PODs*ESKOM_Total_days,0)","v":417.92500000000001},{"$f":"IFERROR('Rates Table'!BE24*PODs*ESKOM_Total_days,0)","v":63.570833333333333}]
[null,null,"Legacy charge","c/kWh",null,null,null,null,null,null,null,null,null,null,null,null,null,null,null,null,null,null,null,null,null,null,null,null,null,null,null,0,{"$f":"IFERROR('Rates Table'!AG25*(SPU_Annual_Total_Energy),0)/100","v":0},{"$f":"IFERROR('Rates Table'!AH25*(SPU_Annual_Total_Energy),0)/100","v":0},{"$f":"IFERROR('Rates Table'!AI25*(SPU_Annual_Total_Energy),0)/100","v":0},{"$f":"IFERROR('Rates Table'!AJ25*(SPU_Annual_Total_Energy),0)/100","v":0},{"$f":"IFERROR('Rates Table'!AK25*(SPU_Annual_Total_Energy),0)/100","v":0},{"$f":"IFERROR('Rates Table'!AL25*(SPU_Annual_Total_Energy),0)/100","v":0},{"$f":"IFERROR('Rates Table'!AM25*(SPU_Annual_Total_Energy),0)/100","v":0},{"$f":"IFERROR('Rates Table'!AN25*(SPU_Annual_Total_Energy),0)/100","v":0},{"$f":"IFERROR('Rates Table'!AO25*(SPU_Annual_Total_Energy),0)/100","v":0},{"$f":"IFERROR('Rates Table'!AP25*(SPU_Annual_Total_Energy),0)/100","v":0},{"$f":"IFERROR('Rates Table'!AQ25*(SPU_Annual_Total_Energy),0)/100","v":0},{"$f":"IFERROR('Rates Table'!AR25*(SPU_Annual_Total_Energy),0)/100","v":0},{"$f":"IFERROR('Rates Table'!AS25*(SPU_Annual_Total_Energy),0)/100","v":0},{"$f":"IFERROR('Rates Table'!AT25*(SPU_Annual_Total_Energy),0)/100","v":0},{"$f":"IFERROR('Rates Table'!AU25*(SPU_Annual_Total_Energy),0)/100","v":0},{"$f":"IFERROR('Rates Table'!AV25*(SPU_Annual_Total_Energy),0)/100","v":0},{"$f":"IFERROR('Rates Table'!AW25*(SPU_Annual_Total_Energy),0)/100","v":0},{"$f":"IFERROR('Rates Table'!AX25*(SPU_Annual_Total_Energy),0)/100","v":0},{"$f":"IFERROR('Rates Table'!AY25*(SPU_Annual_Total_Energy),0)/100","v":0},{"$f":"IFERROR('Rates Table'!AZ25*(SPU_Annual_Total_Energy),0)/100","v":0},{"$f":"IFERROR('Rates Table'!BA25*(SPU_Annual_Total_Energy),0)/100","v":0},{"$f":"IFERROR('Rates Table'!BB25*(Homeflex_Total_Energy),0)/100","v":0},{"$f":"IFERROR('Rates Table'!BC25*(Homeflex_Total_Energy),0)/100","v":0},{"$f":"IFERROR('Rates Table'!BD25*(Homeflex_Total_Energy),0)/100","v":0},{"$f":"IFERROR('Rates Table'!BE25*(Homeflex_Total_Energy),0)/100","v":0}]
[]
[null,"Total energy charges",null,null,{"$f":"SUM(E18:E25)","v":0},{"$f":"SUM(F18:F25)","v":0},0,0,0,0,0,0,0,0,0,0,0,0,0,0,0,0,0,0,0,{"$f":"SUM(Z18:Z25)","v":0},0,0,0,0,null,{"$f":"SUM(AF18:AF25)","v":182.19583333333335},{"$f":"SUM(AG18:AG25)","v":268.27500000000003},398.45833333333331,994.32083333333333,0,0,0,97.333333333333343,171.85416666666669,417.92500000000001,63.570833333333333,644.5291666666667,182.19583333333335,361.95833333333337,708.1,119.84166666666667,0,0,0,0,0,{"$f":"SUM(BA18:BA25)","v":0},97.333333333333343,171.85416666666669,417.92500000000001,63.570833333333333]
[]
[null,"Other charges",null,"Units",{"$f":"E$8","v":"2024/25 Tariff Book Rates"},{"$f":"F$8","v":"2024/25 Tariff Book Rates"},"2024/25 Tariff Book Rates","2024/25 Tariff Book Rates","2024/25 Tariff Book Rates","2024/25 Tariff Book Rates","2024/25 Tariff Book Rates","2024/25 Tariff Book Rates","2024/25 Tariff Book Rates","2024/25 Tariff Book Rates","2024/25 Tariff Book Rates","2024/25 Tariff Book Rates","2024/25 Tariff Book Rates","2024/25 Tariff Book Rates","2024/25 Tariff Book Rates","2024/25 Tariff Book Rates","2024/25 Tariff Book Rates","2024/25 Tariff Book Rates","2024/25 Tariff Book Rates","2024/25 Tariff Book Rates","2024/25 Tariff Book Rates","2024/25 Tariff Book Rates","2024/25 Tariff Book Rates","2024/25 Tariff Book Rates","2024/25 Tariff Book Rates","2024/25 Tariff Book Rates",null,{"$f":"AF$8","v":"2024/25 RTP Rates"},{"$f":"AG$8","v":"2024/25 RTP Rates"},"2024/25 RTP Rates","2024/25 RTP Rates","2024/25 RTP Rates","2024/25 RTP Rates","2024/25 RTP Rates","2024/25 RTP Rates","2024/25 RTP Rates","2024/25 RTP Rates","2024/25 RTP Rates","2024/25 RTP Rates","2024/25 RTP Rates","2024/25 RTP Rates","2024/25 RTP Rates","2024/25 RTP Rates","2024/25 RTP Rates","2024/25 RTP Rates","2024/25 RTP Rates","2024/25 RTP Rates","2024/25 RTP Rates","2024/25 RTP Rates","2024/25 RTP Rates","2024/25 RTP Rates","2024/25 RTP Rates","2024/25 RTP Rates"]
[]
[null,null,"Ancillary service charge ","c/kWh",{"$f":"SUMIFS(F31:AD31,$F$7:$AD$7,Selected_Tariff_ID)","v":0},{"$f":"IFERROR(SPU_Annual_Total_Energy*'Rates Table'!F31,0)/100","v":0},{"$f":"IFERROR(SPU_Annual_Total_Energy*'Rates Table'!G31,0)/100","v":0},{"$f":"IFERROR(SPU_Annual_Total_Energy*'Rates Table'!H31,0)/100","v":0},{"$f":"IFERROR(SPU_Annual_Total_Energy*'Rates Table'!I31,0)/100","v":0},{"$f":"IFERROR(SPU_Annual_Total_Energy*'Rates Table'!J31,0)/100","v":0},{"$f":"IFERROR(SPU_Annual_Total_Energy*'Rates Table'!K31,0)/100","v":0},{"$f":"IFERROR(SPU_Annual_Total_Energy*'Rates Table'!L31,0)/100","v":0},{"$f":"IFERROR(SPU_Annual_Total_Energy*'Rates Table'!M31,0)/100","v":0},{"$f":"IFERROR(SPU_Annual_Total_Energy*'Rates Table'!N31,0)/100","v":0},{"$f":"IFERROR(SPU_Annual_Total_Energy*'Rates Table'!O31,0)/100","v":0},{"$f":"IFERROR(SPU_Annual_Total_Energy*'Rates Table'!P31,0)/100","v":0},{"$f":"IFERROR(SPU_Annual_Total_Energy*'Rates Table'!Q31,0)/100","v":0},{"$f":"IFERROR(SPU_Annual_Total_Energy*'Rates Table'!R31,0)/100","v":0},{"$f":"IFERROR(SPU_Annual_Total_Energy*'Rates Table'!S31,0)/100","v":0},{"$f":"IFERROR(SPU_Annual_Total_Energy*'Rates Table'!T31,0)/100","v":0},{"$f":"IFERROR(SPU_Annual_Total_Energy*'Rates Table'!U31,0)/100","v":0},{"$f":"IFERROR(SPU_Annual_Total_Energy*'Rates Table'!V31,0)/100","v":0},{"$f":"IFERROR(SPU_Annual_Total_Energy*'Rates Table'!W31,0)/100","v":0},{"$f":"IFERROR(SPU_Annual_Total_Energy*'Rates Table'!X31,0)/100","v":0},{"$f":"IFERROR(SPU_Annual_Total_Energy*'Rates Table'!Y31,0)/100","v":0},{"$f":"IFERROR(SPU_Annual_Total_Energy*'Rates Table'!Z31,0)/100","v":0},{"$f":"IFERROR(Homeflex_Total_Energy*'Rates Table'!AA31,0)/100","v":0},{"$f":"IFERROR(Homeflex_Total_Energy*'Rates Table'!AB31,0)/100","v":0},{"$f":"IFERROR(Homeflex_Total_Energy*'Rates Table'!AC31,0)/100","v":0},{"$f":"IFERROR(Homeflex_Total_Energy*'Rates Table'!AD31,0)/100","v":0},null,{"$f":"SUMIFS(AG31:BE31,$F$7:$AD$7,Selected_Tariff_ID)","v":0},{"$f":"IFERROR(SPU_Annual_Total_Energy*'Rates Table'!AG31,0)/100","v":0},{"$f":"IFERROR(SPU_Annual_Total_Energy*'Rates Table'!AH31,0)/100","v":0},{"$f":"IFERROR(SPU_Annual_Total_Energy*'Rates Table'!AI31,0)/100","v":0},{"$f":"IFERROR(SPU_Annual_Total_Energy*'Rates Table'!AJ31,0)/100","v":0},{"$f":"IFERROR(SPU_Annual_Total_Energy*'Rates Table'!AK31,0)/100","v":0},{"$f":"IFERROR(SPU_Annual_Total_Energy*'Rates Table'!AL31,0)/100","v":0},{"$f":"IFERROR(SPU_Annual_Total_Energy*'Rates Table'!AM31,0)/100","v":0},{"$f":"IFERROR(SPU_Annual_Total_Energy*'Rates Table'!AN31,0)/100","v":0},{"$f":"IFERROR(SPU_Annual_Total_Energy*'Rates Table'!AO31,0)/100","v":0},{"$f":"IFERROR(SPU_Annual_Total_Energy*'Rates Table'!AP31,0)/100","v":0},{"$f":"IFERROR(SPU_Annual_Total_Energy*'Rates Table'!AQ31,0)/100","v":0},{"$f":"IFERROR(SPU_Annual_Total_Energy*'Rates Table'!AR31,0)/100","v":0},{"$f":"IFERROR(SPU_Annual_Total_Energy*'Rates Table'!AS31,0)/100","v":0},{"$f":"IFERROR(SPU_Annual_Total_Energy*'Rates Table'!AT31,0)/100","v":0},{"$f":"IFERROR(SPU_Annual_Total_Energy*'Rates Table'!AU31,0)/100","v":0},{"$f":"IFERROR(SPU_Annual_Total_Energy*'Rates Table'!AV31,0)/100","v":0},{"$f":"IFERROR(SPU_Annual_Total_Energy*'Rates Table'!AW31,0)/100","v":0},{"$f":"IFERROR(SPU_Annual_Total_Energy*'Rates Table'!AX31,0)/100","v":0},{"$f":"IFERROR(SPU_Annual_Total_Energy*'Rates Table'!AY31,0)/100","v":0},{"$f":"IFERROR(SPU_Annual_Total_Energy*'Rates Table'!AZ31,0)/100","v":0},{"$f":"IFERROR(SPU_Annual_Total_Energy*'Rates Table'!BA31,0)/100","v":0},{"$f":"IFERROR(Homeflex_Total_Energy*'Rates Table'!BB31,0)/100","v":0},{"$f":"IFERROR(Homeflex_Total_Energy*'Rates Table'!BC31,0)/100","v":0},{"$f":"IFERROR(Homeflex_Total_Energy*'Rates Table'!BD31,0)/100","v":0},{"$f":"IFERROR(Homeflex_Total_Energy*'Rates Table'!BE31,0)/100","v":0}]
[null,null,"Service charge",{"$f":"IF(Table_1=1,\"R/day\",\"R/day\")","v":"R/day"},{"$f":"SUMIFS(F32:AD32,$F$7:$AD$7,Selected_Tariff_ID)","v":1406.7708333333335},{"$f":"IFERROR('Rates Table'!F32*PODs*ESKOM_Total_days,0)","v":1116.5958333333333},{"$f":"IFERROR('Rates Table'!G32*PODs*ESKOM_Total_days,0)","v":1116.5958333333333},{"$f":"IFERROR('Rates Table'!H32*PODs*ESKOM_Total_days,0)","v":1116.5958333333333},{"$f":"IFERROR('Rates Table'!I32*PODs*ESKOM_Total_days,0)","v":0},{"$f":"IFERROR('Rates Table'!J32*PODs*ESKOM_Total_days,0)","v":0},{"$f":"IFERROR('Rates Table'!K32*PODs*ESKOM_Total_days,0)","v":0},{"$f":"IFERROR('Rates Table'!L32*PODs*ESKOM_Total_days,0)","v":0},{"$f":"IFERROR('Rates Table'!M32*PODs*ESKOM_Total_days,0)","v":0},{"$f":"IFERROR('Rates Table'!N32*PODs*ESKOM_Total_days,0)","v":0},{"$f":"IFERROR('Rates Table'!O32*PODs*ESKOM_Total_days,0)","v":0},{"$f":"IFERROR('Rates Table'!P32*PODs*ESKOM_Total_days,0)","v":0},{"$f":"IFERROR('Rates Table'!Q32*PODs*ESKOM_Total_days,0)","v":1406.7708333333335},{"$f":"IFERROR('Rates Table'!R32*PODs*ESKOM_Total_days,0)","v":1406.7708333333335},{"$f":"IFERROR('Rates Table'!S32*PODs*ESKOM_Total_days,0)","v":1406.7708333333335},{"$f":"IFERROR('Rates Table'!T32*PODs*ESKOM_Total_days,0)","v":0},{"$f":"IFERROR('Rates Table'!U32*PODs*ESKOM_Total_days,0)","v":3016.7250000000004},{"$f":"IFERROR('Rates Table'!V32*PODs*ESKOM_Total_days,0)","v":0},{"$f":"IFERROR('Rates Table'!W32*PODs*ESKOM_Total_days,0)","v":0},{"$f":"IFERROR('Rates Table'!X32*PODs*ESKOM_Total_days,0)","v":0},{"$f":"IFERROR('Rates Table'!Y32*PODs*ESKOM_Total_days,0)","v":0},{"$f":"IFERROR('Rates Table'!Z32*PODs*ESKOM_Total_days,0)","v":333.36666666666673},{"$f":"IFERROR('Rates Table'!AA32*PODs*ESKOM_Total_days,0)","v":0},{"$f":"IFERROR('Rates Table'!AB32*PODs*ESKOM_Total_days,0)","v":0},{"$f":"IFERROR('Rates Table'!AC32*PODs*ESKOM_Total_days,0)","v":0},{"$f":"IFERROR('Rates Table'!AD32*PODs*ESKOM_Total_days,0)","v":0},null,{"$f":"SUMIFS(AG32:BE32,$F$7:$AD$7,Selected_Tariff_ID)","v":660.95416666666665},{"$f":"IFERROR('Rates Table'!AG32*PODs*ESKOM_Total_days,0)","v":396.63333333333333},{"$f":"IFERROR('Rates Table'!AH32*PODs*ESKOM_Total_days,0)","v":396.63333333333333},{"$f":"IFERROR('Rates Table'!AI32*PODs*ESKOM_Total_days,0)","v":396.63333333333333},{"$f":"IFERROR('Rates Table'!AJ32*PODs*ESKOM_Total_days,0)","v":0},{"$f":"IFERROR('Rates Table'!AK32*PODs*ESKOM_Total_days,0)","v":0},{"$f":"IFERROR('Rates Table'!AL32*PODs*ESKOM_Total_days,0)","v":0},{"$f":"IFERROR('Rates Table'!AM32*PODs*ESKOM_Total_days,0)","v":265.23333333333335},{"$f":"IFERROR('Rates Table'!AN32*PODs*ESKOM_Total_days,0)","v":265.23333333333335},{"$f":"IFERROR('Rates Table'!AO32*PODs*ESKOM_Total_days,0)","v":265.23333333333335},{"$f":"IFERROR('Rates Table'!AP32*PODs*ESKOM_Total_days,0)","v":265.23333333333335},{"$f":"IFERROR('Rates Table'!AQ32*PODs*ESKOM_Total_days,0)","v":390.55},{"$f":"IFERROR('Rates Table'!AR32*PODs*ESKOM_Total_days,0)","v":660.95416666666665},{"$f":"IFERROR('Rates Table'!AS32*PODs*ESKOM_Total_days,0)","v":660.95416666666665},{"$f":"IFERROR('Rates Table'!AT32*PODs*ESKOM_Total_days,0)","v":660.95416666666665},{"$f":"IFERROR('Rates Table'!AU32*PODs*ESKOM_Total_days,0)","v":0},{"$f":"IFERROR('Rates Table'!AV32*PODs*ESKOM_Total_days,0)","v":2425.4249999999997},{"$f":"IFERROR('Rates Table'!AW32*PODs*ESKOM_Total_days,0)","v":0},{"$f":"IFERROR('Rates Table'!AX32*PODs*ESKOM_Total_days,0)","v":0},{"$f":"IFERROR('Rates Table'!AY32*PODs*ESKOM_Total_days,0)","v":0},{"$f":"IFERROR('Rates Table'!AZ32*PODs*ESKOM_Total_days,0)","v":0},{"$f":"IFERROR('Rates Table'!BA32*PODs*ESKOM_Total_days,0)","v":854.70833333333337},{"$f":"IFERROR('Rates Table'!BB32*PODs*ESKOM_Total_days,0)","v":265.23333333333335},{"$f":"IFERROR('Rates Table'!BC32*PODs*ESKOM_Total_days,0)","v":265.23333333333335},{"$f":"IFERROR('Rates Table'!BD32*PODs*ESKOM_Total_days,0)","v":265.23333333333335},{"$f":"IFERROR('Rates Table'!BE32*PODs*ESKOM_Total_days,0)","v":265.23333333333335}]
[null,null,"Electrification and rural subsidy ","c/kWh",{"$f":"SUMIFS(F33:AD33,$F$7:$AD$7,Selected_Tariff_ID)","v":0},null,null,null,null,null,null,null,null,null,null,null,null,null,null,null,null,null,null,null,null,null,null,null,null,null,null,{"$f":"SUMIFS(AG33:BE33,$F$7:$AD$7,Selected_Tariff_ID)","v":0},{"$f":"IFERROR(SPU_Annual_Total_Energy*'Rates Table'!AG33,0)/100","v":0},{"$f":"IFERROR(SPU_Annual_Total_Energy*'Rates Table'!AH33,0)/100","v":0},{"$f":"IFERROR(SPU_Annual_Total_Energy*'Rates Table'!AI33,0)/100","v":0},{"$f":"IFERROR(SPU_Annual_Total_Energy*'Rates Table'!AJ33,0)/100","v":0},{"$f":"IFERROR(SPU_Annual_Total_Energy*'Rates Table'!AK33,0)/100","v":0},{"$f":"IFERROR(SPU_Annual_Total_Energy*'Rates Table'!AL33,0)/100","v":0},{"$f":"IFERROR(SPU_Annual_Total_Energy*'Rates Table'!AM33,0)/100","v":0},{"$f":"IFERROR(SPU_Annual_Total_Energy*'Rates Table'!AN33,0)/100","v":0},{"$f":"IFERROR(SPU_Annual_Total_Energy*'Rates Table'!AO33,0)/100","v":0},{"$f":"IFERROR(SPU_Annual_Total_Energy*'Rates Table'!AP33,0)/100","v":0},{"$f":"IFERROR(SPU_Annual_Total_Energy*'Rates Table'!AQ33,0)/100","v":0},{"$f":"IFERROR(SPU_Annual_Total_Energy*'Rates Table'!AR33,0)/100","v":0},{"$f":"IFERROR(SPU_Annual_Total_Energy*'Rates Table'!AS33,0)/100","v":0},{"$f":"IFERROR(SPU_Annual_Total_Energy*'Rates Table'!AT33,0)/100","v":0},{"$f":"IFERROR(SPU_Annual_Total_Energy*'Rates Table'!AU33,0)/100","v":0},{"$f":"IFERROR(SPU_Annual_Total_Energy*'Rates Table'!AV33,0)/100","v":0},{"$f":"IFERROR(SPU_Annual_Total_Energy*'Rates Table'!AW33,0)/100","v":0},{"$f":"IFERROR(SPU_Annual_Total_Energy*'Rates Table'!AX33,0)/100","v":0},{"$f":"IFERROR(SPU_Annual_Total_Energy*'Rates Table'!AY33,0)/100","v":0},{"$f":"IFERROR(SPU_Annual_Total_Energy*'Rates Table'!AZ33,0)/100","v":0},{"$f":"IFERROR(SPU_Annual_Total_Energy*'Rates Table'!BA33,0)/100","v":0},{"$f":"IFERROR(Homeflex_Total_Energy*'Rates Table'!BB33,0)/100","v":0},{"$f":"IFERROR(Homeflex_Total_Energy*'Rates Table'!BC33,0)/100","v":0},{"$f":"IFERROR(Homeflex_Total_Energy*'Rates Table'!BD33,0)/100","v":0},{"$f":"IFERROR(Homeflex_Total_Energy*'Rates Table'!BE33,0)/100","v":0}]
[]
[null,"Total other charges",null,null,{"$f":"SUM(E30:E33)","v":1406.7708333333335},{"$f":"SUM(F30:F33)","v":1116.5958333333333},1116.5958333333333,1116.5958333333333,0,0,0,0,0,0,0,0,1406.7708333333335,1406.7708333333335,1406.7708333333335,0,3016.7250000000004,0,0,0,0,{"$f":"SUM(Z30:Z33)","v":333.36666666666673},0,0,0,0,null,{"$f":"SUM(AF30:AF33)","v":660.95416666666665},{"$f":"SUM(AG30:AG33)","v":396.63333333333333},396.63333333333333,396.63333333333333,0,0,0,265.23333333333335,265.23333333333335,265.23333333333335,265.23333333333335,390.55,660.95416666666665,660.95416666666665,660.95416666666665,0,2425.4249999999997,0,0,0,0,{"$f":"SUM(BA30:BA33)","v":854.70833333333337},265.23333333333335,265.23333333333335,265.23333333333335,265.23333333333335]
[]
[null,"Total excl VAT",null,null,{"$f":"E35+E27+E14","v":3100.3708333333334},2408.3916666666664,3293.5166666666664,4877.3125,0,0,0,319.98333333333335,599.51250000000005,1237.6541666666667,195.57916666666665,2029.4,3100.3708333333334,4010.1333333333337,5568.9875000000011,1348.6750000000002,{"$f":"U35+U27+U14","v":3016.7250000000004},0,0,0,0,{"$f":"Z35+Z27+Z14","v":333.36666666666673},319.98333333333335,{"$f":"AB35+AB27+AB14","v":599.51250000000005},{"$f":"AC35+AC27+AC14","v":1237.6541666666667},{"$f":"AD35+AD27+AD14","v":195.57916666666665},null,{"$f":"AF35+AF27+AF14","v":2521.2375000000002},{"$f":"AG35+AG27+AG14","v":1213.625},1610.2583333333334,3424.6125000000002,0,0,0,689.85000000000014,1167.3916666666669,2243.229166666667,554.19166666666672,1035.0791666666667,2521.2375000000002,3639.6583333333333,5559.5583333333343,1358.7125000000001,{"$f":"AV35+AV27+AV14","v":2425.4249999999997},0,0,0,0,{"$f":"BA35+BA27+BA14","v":854.70833333333337},689.85000000000014,{"$f":"BC35+BC27+BC14","v":1167.3916666666669},{"$f":"BD35+BD27+BD14","v":2243.229166666667},{"$f":"BE35+BE27+BE14","v":554.19166666666672}]
[null,"VAT",null,{"$f":"'Monthly Average Bill'!D51","v":0.15},{"$f":"E37*$D38","v":465.05562499999996},{"$f":"F37*$D38","v":361.25874999999996},494.02749999999992,731.59687499999995,0,0,0,47.997500000000002,89.92687500000001,185.64812499999999,29.336874999999996,304.41000000000003,465.05562499999996,601.52,835.3481250000001,202.30125000000001,{"$f":"U37*$D38","v":452.50875000000002},0,0,0,0,{"$f":"Z37*$D38","v":50.00500000000001},47.997500000000002,{"$f":"AB37*$D38","v":89.92687500000001},{"$f":"AC37*$D38","v":185.64812499999999},{"$f":"AD37*$D38","v":29.336874999999996},null,{"$f":"AF37*$D38","v":378.18562500000002},182.04374999999999,241.53874999999999,513.69187499999998,0,0,0,103.47750000000002,175.10875000000001,336.48437500000006,83.128750000000011,155.261875,378.18562500000002,545.94875000000002,833.93375000000015,203.80687500000002,{"$f":"AV37*$D38","v":363.81374999999997},0,0,0,0,{"$f":"BA37*$D38","v":128.20625000000001},103.47750000000002,{"$f":"BC37*$D38","v":175.10875000000001},{"$f":"BD37*$D38","v":336.48437500000006},{"$f":"BE37*$D38","v":83.128750000000011}]
[]
[null,"Total account",null,null,{"$f":"SUM(E37:E38)","v":3565.4264583333334},{"$f":"SUM(F37:F38)","v":2769.6504166666664},3787.5441666666666,5608.9093750000002,0,0,0,367.98083333333335,689.43937500000004,1423.3022916666666,224.91604166666664,2333.81,3565.4264583333334,4611.6533333333336,6404.3356250000015,1550.9762500000002,{"$f":"SUM(U37:U38)","v":3469.2337500000003},0,0,0,0,{"$f":"SUM(Z37:Z38)","v":383.37166666666673},367.98083333333335,{"$f":"SUM(AB37:AB38)","v":689.43937500000004},{"$f":"SUM(AC37:AC38)","v":1423.3022916666666},{"$f":"SUM(AD37:AD38)","v":224.91604166666664},null,{"$f":"SUM(AF37:AF38)","v":2899.4231250000003},{"$f":"SUM(AG37:AG38)","v":1395.66875},1851.7970833333334,3938.3043750000002,0,0,0,793.3275000000001,1342.500416666667,2579.713541666667,637.32041666666669,1190.3410416666666,2899.4231250000003,4185.6070833333333,6393.4920833333344,1562.5193750000001,{"$f":"SUM(AV37:AV38)","v":2789.2387499999995},0,0,0,0,{"$f":"SUM(BA37:BA38)","v":982.91458333333344},793.3275000000001,{"$f":"SUM(BC37:BC38)","v":1342.500416666667},{"$f":"SUM(BD37:BD38)","v":2579.713541666667},{"$f":"SUM(BE37:BE38)","v":637.32041666666669}]
[]
[null,"Average price c/kWh",null,null,{"$f":"SUMIFS(F42:AD42,$F$7:$AD$7,Selected_Tariff_ID)","v":{"$error":"#DIV/0!"}},{"$f":"F37/SPU_Annual_Total_Energy*100","v":{"$error":"#DIV/0!"}},{"$error":"#DIV/0!"},{"$f":"H37/SPU_Annual_Total_Energy*100","v":{"$error":"#DIV/0!"}},{"$error":"#DIV/0!"},{"$error":"#DIV/0!"},{"$error":"#DIV/0!"},{"$error":"#DIV/0!"},{"$error":"#DIV/0!"},{"$error":"#DIV/0!"},{"$error":"#DIV/0!"},{"$error":"#DIV/0!"},{"$error":"#DIV/0!"},{"$error":"#DIV/0!"},{"$error":"#DIV/0!"},{"$error":"#DIV/0!"},{"$f":"U37/SPU_Annual_Total_Energy*100","v":{"$error":"#DIV/0!"}},{"$error":"#DIV/0!"},{"$error":"#DIV/0!"},{"$error":"#DIV/0!"},{"$error":"#DIV/0!"},{"$f":"Z37/SPU_Annual_Total_Energy*100","v":{"$error":"#DIV/0!"}},{"$error":"#DIV/0!"},{"$f":"AB37/SPU_Annual_Total_Energy*100","v":{"$error":"#DIV/0!"}},{"$f":"AC37/SPU_Annual_Total_Energy*100","v":{"$error":"#DIV/0!"}},{"$f":"AD37/SPU_Annual_Total_Energy*100","v":{"$error":"#DIV/0!"}},null,{"$f":"SUMIFS(AG42:BE42,$F$7:$AD$7,Selected_Tariff_ID)","v":{"$error":"#DIV/0!"}},{"$f":"AG37/SPU_Annual_Total_Energy*100","v":{"$error":"#DIV/0!"}},{"$error":"#DIV/0!"},{"$error":"#DIV/0!"},{"$error":"#DIV/0!"},{"$error":"#DIV/0!"},{"$error":"#DIV/0!"},{"$error":"#DIV/0!"},{"$error":"#DIV/0!"},{"$error":"#DIV/0!"},{"$error":"#DIV/0!"},{"$error":"#DIV/0!"},{"$error":"#DIV/0!"},{"$error":"#DIV/0!"},{"$error":"#DIV/0!"},{"$error":"#DIV/0!"},{"$f":"AV37/SPU_Annual_Total_Energy*100","v":{"$error":"#DIV/0!"}},{"$error":"#DIV/0!"},{"$error":"#DIV/0!"},{"$error":"#DIV/0!"},{"$error":"#DIV/0!"},{"$f":"BA37/SPU_Annual_Total_Energy*100","v":{"$error":"#DIV/0!"}},{"$error":"#DIV/0!"},{"$f":"BC37/SPU_Annual_Total_Energy*100","v":{"$error":"#DIV/0!"}},{"$f":"BD37/SPU_Annual_Total_Energy*100","v":{"$error":"#DIV/0!"}},{"$f":"BE37/SPU_Annual_Total_Energy*100","v":{"$error":"#DIV/0!"}}]
[]
[null,"Check tables"]
[null,null,"Table 1: 1 = LPU, 0 = SPU",null,{"$f":"SUMIFS(F45:AD45,$F$7:$AD$7,Selected_Tariff_ID)","v":0},{"$f":"'Rates Table'!F44","v":0},{"$f":"'Rates Table'!G44","v":0},{"$f":"'Rates Table'!H44","v":0},{"$f":"'Rates Table'!I44","v":0},{"$f":"'Rates Table'!J44","v":0},{"$f":"'Rates Table'!K44","v":0},{"$f":"'Rates Table'!L44","v":0},{"$f":"'Rates Table'!M44","v":0},{"$f":"'Rates Table'!N44","v":0},{"$f":"'Rates Table'!O44","v":0},{"$f":"'Rates Table'!P44","v":0},{"$f":"'Rates Table'!Q44","v":0},{"$f":"'Rates Table'!R44","v":0},{"$f":"'Rates Table'!S44","v":0},{"$f":"'Rates Table'!T44","v":0},{"$f":"'Rates Table'!U44","v":0},{"$f":"'Rates Table'!V44","v":0},{"$f":"'Rates Table'!W44","v":0},{"$f":"'Rates Table'!X44","v":0},{"$f":"'Rates Table'!Y44","v":0},{"$f":"'Rates Table'!Z44","v":0},{"$f":"'Rates Table'!AA44","v":0},{"$f":"'Rates Table'!AB44","v":0},{"$f":"'Rates Table'!AC44","v":0},{"$f":"'Rates Table'!AD44","v":0},null,{"$f":"SUMIFS(AG45:BE45,$F$7:$AD$7,Selected_Tariff_ID)","v":0},{"$f":"F45","v":0},0,0,0,0,0,0,0,0,0,{"$f":"P45","v":0},0,0,0,0,0,0,0,0,0,{"$f":"Z45","v":0},{"$f":"AA45","v":0},0,0,0]
[null,null,"Tariff Type",null,{"$f":"Selected_Tariff_Type","v":"Rural"},{"$f":"INDEX(Full_Tariff_Type,F$7,)","v":"Urban"},"Urban","Urban","Urban","Urban","Urban","Urban","Urban","Urban","Urban","Urban","Rural","Rural","Rural","Rural","Rural","Rural","Rural","Urban","Urban","Urban","Urban","Urban","Urban","Urban",null,{"$f":"Selected_Tariff_Type","v":"Rural"},"Urban","Urban","Urban","Urban","Urban","Urban","Urban","Urban","Urban","Urban","Urban","Rural","Rural","Rural","Rural","Rural","Rural","Rural","Urban","Urban",{"$f":"Z46","v":"Urban"},"Urban","Urban","Urban","Urban"]

{"sheet":"Workings Low","index":7,"n_rows":46,"n_cols":57,"rows_kept":46,"cut":false,"hidden":true,"merged":[]}
[]
[]
[]
[null,"Calculations by Tariff"]
[]
[null,"Tariffs",null,null,{"$f":"Selected_Base_Tariff","v":"Landrate 1"},{"$f":"INDEX(Full_Tariff_List,F$7,)","v":"Businessrate 1"},"Businessrate 2","Businessrate 3","Businessrate 4","Homelight 20A","Homelight 60A","Homepower 1","Homepower 2","Homepower 3","Homepower 4","Homepower Bulk","Landrate 1","Landrate 2","Landrate 3","Landrate 4","Landrate Dx","Landlight 20A","Landlight 60A","Public Lighting All Night","Public Lighting 24 Hours","Public Lighting Urban Fixed","Homeflex 1","Homeflex 2","Homeflex 3","Homeflex 4",null,{"$f":"E6","v":"Landrate 1"},"Businessrate 1","Businessrate 2","Businessrate 3","Businessrate 4","Homelight 20A","Homelight 60A","Homepower 1","Homepower 2","Homepower 3",{"$f":"O6","v":"Homepower 4"},"Homepower Bulk","Landrate 1","Landrate 2","Landrate 3","Landrate 4","Landrate Dx","Landlight 20A","Landlight 60A","Public Lighting All Night",{"$f":"Y6","v":"Public Lighting 24 Hours"},"Public Lighting Urban Fixed","Homeflex 1","Homeflex 2","Homeflex 3","Homeflex 4"]
[null,null,null,null,null,1,{"$f":"F7+1","v":2},{"$f":"G7+1","v":3},4,5,6,7,8,9,10,11,12,13,14,15,16,17,18,19,20,21,33,{"$f":"AA7+1","v":34},{"$f":"AB7+1","v":35},{"$f":"AC7+1","v":36},null,0,1,2,3,4,5,6,7,8,9,10,11,12,13,14,15,16,17,18,19,20,21,33,34,35,36]
[null,"Network charges",null,"Units",{"$f":"Current_Period&\" Rates\"","v":"2024/25 Tariff Book Rates"},{"$f":"E8","v":"2024/25 Tariff Book Rates"},{"$f":"F8","v":"2024/25 Tariff Book Rates"},"2024/25 Tariff Book Rates","2024/25 Tariff Book Rates","2024/25 Tariff Book Rates","2024/25 Tariff Book Rates","2024/25 Tariff Book Rates","2024/25 Tariff Book Rates","2024/25 Tariff Book Rates","2024/25 Tariff Book Rates","2024/25 Tariff Book Rates","2024/25 Tariff Book Rates","2024/25 Tariff Book Rates","2024/25 Tariff Book Rates","2024/25 Tariff Book Rates","2024/25 Tariff Book Rates","2024/25 Tariff Book Rates","2024/25 Tariff Book Rates","2024/25 Tariff Book Rates","2024/25 Tariff Book Rates","2024/25 Tariff Book Rates",{"$f":"Y8","v":"2024/25 Tariff Book Rates"},"2024/25 Tariff Book Rates","2024/25 Tariff Book Rates","2024/25 Tariff Book Rates",null,{"$f":"New_Period&\" Rates\"","v":"2024/25 RTP Rates"},{"$f":"AF8","v":"2024/25 RTP Rates"},{"$f":"AG8","v":"2024/25 RTP Rates"},"2024/25 RTP Rates","2024/25 RTP Rates","2024/25 RTP Rates","2024/25 RTP Rates","2024/25 RTP Rates","2024/25 RTP Rates","2024/25 RTP Rates","2024/25 RTP Rates","2024/25 RTP Rates","2024/25 RTP Rates","2024/25 RTP Rates","2024/25 RTP Rates","2024/25 RTP Rates","2024/25 RTP Rates","2024/25 RTP Rates","2024/25 RTP Rates","2024/25 RTP Rates","2024/25 RTP Rates","2024/25 RTP Rates",{"$f":"AZ8","v":"2024/25 RTP Rates"},"2024/25 RTP Rates","2024/25 RTP Rates","2024/25 RTP Rates"]
[]
[null,null,"Distribution network demand charge","c/kWh",{"$f":"SUMIFS(F10:AD10,$F$7:$AD$7,Selected_Tariff_ID)","v":0},{"$f":"IFERROR('Rates Table'!F10*SPU_Annual_Total_Energy,0)/100","v":0},{"$f":"IFERROR('Rates Table'!G10*SPU_Annual_Total_Energy,0)/100","v":0},{"$f":"IFERROR('Rates Table'!H10*SPU_Annual_Total_Energy,0)/100","v":0},{"$f":"IFERROR('Rates Table'!I10*SPU_Annual_Total_Energy,0)/100","v":0},{"$f":"IFERROR('Rates Table'!J10*SPU_Annual_Total_Energy,0)/100","v":0},{"$f":"IFERROR('Rates Table'!K10*SPU_Annual_Total_Energy,0)/100","v":0},{"$f":"IFERROR('Rates Table'!L10*SPU_Annual_Total_Energy,0)/100","v":0},{"$f":"IFERROR('Rates Table'!M10*SPU_Annual_Total_Energy,0)/100","v":0},{"$f":"IFERROR('Rates Table'!N10*SPU_Annual_Total_Energy,0)/100","v":0},{"$f":"IFERROR('Rates Table'!O10*SPU_Annual_Total_Energy,0)/100","v":0},{"$f":"IFERROR('Rates Table'!P10*SPU_Annual_Total_Energy,0)/100","v":0},{"$f":"IFERROR('Rates Table'!Q10*SPU_Annual_Total_Energy,0)/100","v":0},{"$f":"IFERROR('Rates Table'!R10*SPU_Annual_Total_Energy,0)/100","v":0},{"$f":"IFERROR('Rates Table'!S10*SPU_Annual_Total_Energy,0)/100","v":0},{"$f":"IFERROR('Rates Table'!T10*SPU_Annual_Total_Energy,0)/100","v":0},{"$f":"IFERROR('Rates Table'!U10*SPU_Annual_Total_Energy,0)/100","v":0},{"$f":"IFERROR('Rates Table'!V10*SPU_Annual_Total_Energy,0)/100","v":0},{"$f":"IFERROR('Rates Table'!W10*SPU_Annual_Total_Energy,0)/100","v":0},{"$f":"IFERROR('Rates Table'!X10*SPU_Annual_Total_Energy,0)/100","v":0},{"$f":"IFERROR('Rates Table'!Y10*SPU_Annual_Total_Energy,0)/100","v":0},{"$f":"IFERROR('Rates Table'!Z10*SPU_Annual_Total_Energy,0)/100","v":0},{"$f":"IFERROR('Rates Table'!AA10*SPU_Annual_Total_Energy,0)/100","v":0},{"$f":"IFERROR('Rates Table'!AB10*SPU_Annual_Total_Energy,0)/100","v":0},{"$f":"IFERROR('Rates Table'!AC10*SPU_Annual_Total_Energy,0)/100","v":0},{"$f":"IFERROR('Rates Table'!AD10*SPU_Annual_Total_Energy,0)/100","v":0},null,{"$f":"SUMIFS(AG10:BE10,$F$7:$AD$7,Selected_Tariff_ID)","v":0},{"$f":"IFERROR('Rates Table'!AG10*SPU_Annual_Total_Energy,0)/100","v":0},{"$f":"IFERROR('Rates Table'!AH10*SPU_Annual_Total_Energy,0)/100","v":0},{"$f":"IFERROR('Rates Table'!AI10*SPU_Annual_Total_Energy,0)/100","v":0},{"$f":"IFERROR('Rates Table'!AJ10*SPU_Annual_Total_Energy,0)/100","v":0},{"$f":"IFERROR('Rates Table'!AK10*SPU_Annual_Total_Energy,0)/100","v":0},{"$f":"IFERROR('Rates Table'!AL10*SPU_Annual_Total_Energy,0)/100","v":0},{"$f":"IFERROR('Rates Table'!AM10*SPU_Annual_Total_Energy,0)/100","v":0},{"$f":"IFERROR('Rates Table'!AN10*SPU_Annual_Total_Energy,0)/100","v":0},{"$f":"IFERROR('Rates Table'!AO10*SPU_Annual_Total_Energy,0)/100","v":0},{"$f":"IFERROR('Rates Table'!AP10*SPU_Annual_Total_Energy,0)/100","v":0},{"$f":"IFERROR('Rates Table'!AQ10*SPU_Annual_Total_Energy,0)/100","v":0},{"$f":"IFERROR('Rates Table'!AR10*SPU_Annual_Total_Energy,0)/100","v":0},{"$f":"IFERROR('Rates Table'!AS10*SPU_Annual_Total_Energy,0)/100","v":0},{"$f":"IFERROR('Rates Table'!AT10*SPU_Annual_Total_Energy,0)/100","v":0},{"$f":"IFERROR('Rates Table'!AU10*SPU_Annual_Total_Energy,0)/100","v":0},{"$f":"IFERROR('Rates Table'!AV10*SPU_Annual_Total_Energy,0)/100","v":0},{"$f":"IFERROR('Rates Table'!AW10*SPU_Annual_Total_Energy,0)/100","v":0},{"$f":"IFERROR('Rates Table'!AX10*SPU_Annual_Total_Energy,0)/100","v":0},{"$f":"IFERROR('Rates Table'!AY10*SPU_Annual_Total_Energy,0)/100","v":0},{"$f":"IFERROR('Rates Table'!AZ10*SPU_Annual_Total_Energy,0)/100","v":0},{"$f":"IFERROR('Rates Table'!BA10*SPU_Annual_Total_Energy,0)/100","v":0},{"$f":"IFERROR('Rates Table'!BB10*Homeflex_Total_Energy,0)/100","v":0},{"$f":"IFERROR('Rates Table'!BC10*Homeflex_Total_Energy,0)/100","v":0},{"$f":"IFERROR('Rates Table'!BD10*Homeflex_Total_Energy,0)/100","v":0},{"$f":"IFERROR('Rates Table'!BE10*Homeflex_Total_Energy,0)/100","v":0}]
[null,null,"Network demand charge, Ancillary service charge and retail","c/kWh",{"$f":"SUMIFS(F11:AD11,$F$7:$AD$7,Selected_Tariff_ID)","v":0},null,null,null,null,null,null,null,null,null,null,null,null,null,null,null,null,null,null,null,null,null,{"$f":"IFERROR('Rates Table'!AA11*SPU_Annual_Total_Energy,0)/100","v":0},{"$f":"IFERROR('Rates Table'!AB11*SPU_Annual_Total_Energy,0)/100","v":0},{"$f":"IFERROR('Rates Table'!AC11*SPU_Annual_Total_Energy,0)/100","v":0},{"$f":"IFERROR('Rates Table'!AD11*SPU_Annual_Total_Energy,0)/100","v":0},null,{"$f":"SUMIFS(AG11:BE11,$F$7:$AD$7,Selected_Tariff_ID)","v":0},null,null,null,null,null,null,null,null,null,null,null,null,null,null,null,null,null,null,null,null,null,{"$f":"IFERROR('Rates Table'!BB11*Homeflex_Total_Energy,0)/100","v":0},{"$f":"IFERROR('Rates Table'!BC11*Homeflex_Total_Energy,0)/100","v":0},{"$f":"IFERROR('Rates Table'!BD11*Homeflex_Total_Energy,0)/100","v":0},{"$f":"IFERROR('Rates Table'!BE11*Homeflex_Total_Energy,0)/100","v":0}]
[null,null,"Network capacity charge",{"$f":"IF(Table_1=1,\"R/kVA\",\"R/day\")","v":"R/day"},{"$f":"SUMIFS(F12:AD12,$F$7:$AD$7,Selected_Tariff_ID)","v":1693.6000000000001},{"$f":"IFERROR('Rates Table'!F12*PODs*ESKOM_Total_days,0)","v":1291.7958333333333},{"$f":"IFERROR('Rates Table'!G12*PODs*ESKOM_Total_days,0)","v":2176.9208333333331},{"$f":"IFERROR('Rates Table'!H12*PODs*ESKOM_Total_days,0)","v":3760.7166666666667},{"$f":"IFERROR('Rates Table'!I12*PODs*ESKOM_Total_days,0)","v":0},{"$f":"IFERROR('Rates Table'!J12*PODs*ESKOM_Total_days,0)","v":0},{"$f":"IFERROR('Rates Table'!K12*PODs*ESKOM_Total_days,0)","v":0},{"$f":"IFERROR('Rates Table'!L12*PODs*ESKOM_Total_days,0)","v":319.98333333333335},{"$f":"IFERROR('Rates Table'!M12*PODs*ESKOM_Total_days,0)","v":599.51250000000005},{"$f":"IFERROR('Rates Table'!N12*PODs*ESKOM_Total_days,0)","v":1237.6541666666667},{"$f":"IFERROR('Rates Table'!O12*PODs*ESKOM_Total_days,0)","v":195.57916666666665},{"$f":"IFERROR('Rates Table'!P12*PODs*ESKOM_Total_days,0)","v":2029.4},{"$f":"IFERROR('Rates Table'!Q12*PODs*ESKOM_Total_days,0)","v":1693.6000000000001},{"$f":"IFERROR('Rates Table'!R12*PODs*ESKOM_Total_days,0)","v":2603.3625000000002},{"$f":"IFERROR('Rates Table'!S12*PODs*ESKOM_Total_days,0)","v":4162.2166666666672},{"$f":"IFERROR('Rates Table'!T12*PODs*ESKOM_Total_days,0)","v":1348.6750000000002},{"$f":"IFERROR('Rates Table'!U12*PODs*ESKOM_Total_days,0)","v":0},{"$f":"IFERROR('Rates Table'!V12*PODs*ESKOM_Total_days,0)","v":0},{"$f":"IFERROR('Rates Table'!W12*PODs*ESKOM_Total_days,0)","v":0},{"$f":"IFERROR('Rates Table'!X12*PODs*ESKOM_Total_days,0)","v":0},{"$f":"IFERROR('Rates Table'!Y12*PODs*ESKOM_Total_days,0)","v":0},{"$f":"IFERROR('Rates Table'!Z12*PODs*ESKOM_Total_days,0)","v":0},{"$f":"IFERROR('Rates Table'!AA12*PODs*ESKOM_Total_days,0)","v":319.98333333333335},{"$f":"IFERROR('Rates Table'!AB12*PODs*ESKOM_Total_days,0)","v":599.51250000000005},{"$f":"IFERROR('Rates Table'!AC12*PODs*ESKOM_Total_days,0)","v":1237.6541666666667},{"$f":"IFERROR('Rates Table'!AD12*PODs*ESKOM_Total_days,0)","v":195.57916666666665},null,{"$f":"SUMIFS(AG12:BE12,$F$7:$AD$7,Selected_Tariff_ID)","v":1678.0875000000001},{"$f":"IFERROR('Rates Table'!AG12*PODs*ESKOM_Total_days,0)","v":548.7166666666667},{"$f":"IFERROR('Rates Table'!AH12*PODs*ESKOM_Total_days,0)","v":815.16666666666674},{"$f":"IFERROR('Rates Table'!AI12*PODs*ESKOM_Total_days,0)","v":2033.6583333333333},{"$f":"IFERROR('Rates Table'!AJ12*PODs*ESKOM_Total_days,0)","v":0},{"$f":"IFERROR('Rates Table'!AK12*PODs*ESKOM_Total_days,0)","v":0},{"$f":"IFERROR('Rates Table'!AL12*PODs*ESKOM_Total_days,0)","v":0},{"$f":"IFERROR('Rates Table'!AM12*PODs*ESKOM_Total_days,0)","v":327.28333333333336},{"$f":"IFERROR('Rates Table'!AN12*PODs*ESKOM_Total_days,0)","v":730.30416666666679},{"$f":"IFERROR('Rates Table'!AO12*PODs*ESKOM_Total_days,0)","v":1560.0708333333334},{"$f":"IFERROR('Rates Table'!AP12*PODs*ESKOM_Total_days,0)","v":225.38750000000002},{"$f":"IFERROR('Rates Table'!AQ12*PODs*ESKOM_Total_days,0)","v":0},{"$f":"IFERROR('Rates Table'!AR12*PODs*ESKOM_Total_days,0)","v":1678.0875000000001},{"$f":"IFERROR('Rates Table'!AS12*PODs*ESKOM_Total_days,0)","v":2616.7458333333334},{"$f":"IFERROR('Rates Table'!AT12*PODs*ESKOM_Total_days,0)","v":4190.5041666666675},{"$f":"IFERROR('Rates Table'!AU12*PODs*ESKOM_Total_days,0)","v":1238.8708333333334},{"$f":"IFERROR('Rates Table'!AV12*PODs*ESKOM_Total_days,0)","v":0},{"$f":"IFERROR('Rates Table'!AW12*PODs*ESKOM_Total_days,0)","v":0},{"$f":"IFERROR('Rates Table'!AX12*PODs*ESKOM_Total_days,0)","v":0},{"$f":"IFERROR('Rates Table'!AY12*PODs*ESKOM_Total_days,0)","v":0},{"$f":"IFERROR('Rates Table'!AZ12*PODs*ESKOM_Total_days,0)","v":0},{"$f":"IFERROR('Rates Table'!BA12*PODs*ESKOM_Total_days,0)","v":0},{"$f":"IFERROR('Rates Table'!BB12*PODs*ESKOM_Total_days,0)","v":327.28333333333336},{"$f":"IFERROR('Rates Table'!BC12*PODs*ESKOM_Total_days,0)","v":730.30416666666679},{"$f":"IFERROR('Rates Table'!BD12*PODs*ESKOM_Total_days,0)","v":1560.0708333333334},{"$f":"IFERROR('Rates Table'!BE12*PODs*ESKOM_Total_days,0)","v":225.38750000000002}]
[]
[null,"Total network charges",null,null,{"$f":"SUM(E10:E12)","v":1693.6000000000001},1291.7958333333333,2176.9208333333331,3760.7166666666667,0,0,0,319.98333333333335,599.51250000000005,1237.6541666666667,195.57916666666665,2029.4,1693.6000000000001,2603.3625000000002,4162.2166666666672,1348.6750000000002,0,0,0,0,0,{"$f":"SUM(Z10:Z12)","v":0},319.98333333333335,599.51250000000005,1237.6541666666667,195.57916666666665,null,{"$f":"SUM(AF10:AF12)","v":1678.0875000000001},548.7166666666667,815.16666666666674,2033.6583333333333,0,0,0,327.28333333333336,730.30416666666679,1560.0708333333334,225.38750000000002,0,1678.0875000000001,2616.7458333333334,4190.5041666666675,1238.8708333333334,0,0,0,0,0,{"$f":"SUM(BA10:BA12)","v":0},327.28333333333336,730.30416666666679,1560.0708333333334,225.38750000000002]
[]
[null,"Energy charges",null,"Units",{"$f":"E$8","v":"2024/25 Tariff Book Rates"},{"$f":"F$8","v":"2024/25 Tariff Book Rates"},"2024/25 Tariff Book Rates","2024/25 Tariff Book Rates","2024/25 Tariff Book Rates","2024/25 Tariff Book Rates","2024/25 Tariff Book Rates","2024/25 Tariff Book Rates","2024/25 Tariff Book Rates","2024/25 Tariff Book Rates","2024/25 Tariff Book Rates","2024/25 Tariff Book Rates","2024/25 Tariff Book Rates","2024/25 Tariff Book Rates","2024/25 Tariff Book Rates","2024/25 Tariff Book Rates","2024/25 Tariff Book Rates","2024/25 Tariff Book Rates","2024/25 Tariff Book Rates","2024/25 Tariff Book Rates","2024/25 Tariff Book Rates","2024/25 Tariff Book Rates","2024/25 Tariff Book Rates","2024/25 Tariff Book Rates","2024/25 Tariff Book Rates","2024/25 Tariff Book Rates",null,{"$f":"AF$8","v":"2024/25 RTP Rates"},{"$f":"AG$8","v":"2024/25 RTP Rates"},"2024/25 RTP Rates","2024/25 RTP Rates","2024/25 RTP Rates","2024/25 RTP Rates","2024/25 RTP Rates","2024/25 RTP Rates","2024/25 RTP Rates","2024/25 RTP Rates","2024/25 RTP Rates","2024/25 RTP Rates","2024/25 RTP Rates","2024/25 RTP Rates","2024/25 RTP Rates","2024/25 RTP Rates","2024/25 RTP Rates","2024/25 RTP Rates","2024/25 RTP Rates","2024/25 RTP Rates","2024/25 RTP Rates","2024/25 RTP Rates","2024/25 RTP Rates","2024/25 RTP Rates","2024/25 RTP Rates","2024/25 RTP Rates"]
[]
[null,null,"Energy","c/kWh",{"$f":"SUMIFS(F18:AD18,$F$7:$AD$7,Selected_Tariff_ID)","v":0},{"$f":"IFERROR('Rates Table'!F18*(SPU_Annual_Total_Energy),0)/100","v":0},{"$f":"IFERROR('Rates Table'!G18*(SPU_Annual_Total_Energy),0)/100","v":0},{"$f":"IFERROR('Rates Table'!H18*(SPU_Annual_Total_Energy),0)/100","v":0},{"$f":"IFERROR('Rates Table'!I18*(SPU_Annual_Total_Energy),0)/100","v":0},{"$f":"IFERROR('Rates Table'!J18*(SPU_Annual_Total_Energy),0)/100","v":0},{"$f":"IFERROR('Rates Table'!K18*(SPU_Annual_Total_Energy),0)/100","v":0},{"$f":"IFERROR('Rates Table'!L18*(SPU_Annual_Total_Energy),0)/100","v":0},{"$f":"IFERROR('Rates Table'!M18*(SPU_Annual_Total_Energy),0)/100","v":0},{"$f":"IFERROR('Rates Table'!N18*(SPU_Annual_Total_Energy),0)/100","v":0},{"$f":"IFERROR('Rates Table'!O18*(SPU_Annual_Total_Energy),0)/100","v":0},{"$f":"IFERROR('Rates Table'!P18*(SPU_Annual_Total_Energy),0)/100","v":0},{"$f":"IFERROR('Rates Table'!Q18*(SPU_Annual_Total_Energy),0)/100","v":0},{"$f":"IFERROR('Rates Table'!R18*(SPU_Annual_Total_Energy),0)/100","v":0},{"$f":"IFERROR('Rates Table'!S18*(SPU_Annual_Total_Energy),0)/100","v":0},{"$f":"IFERROR('Rates Table'!T18*(SPU_Annual_Total_Energy),0)/100","v":0},{"$f":"IFERROR('Rates Table'!U18*(SPU_Annual_Total_Energy),0)/100","v":0},{"$f":"IFERROR('Rates Table'!V18*(SPU_Annual_Total_Energy),0)/100","v":0},{"$f":"IFERROR('Rates Table'!W18*(SPU_Annual_Total_Energy),0)/100","v":0},{"$f":"IFERROR('Rates Table'!X18*(SPU_Annual_Total_Energy),0)/100","v":0},{"$f":"IFERROR('Rates Table'!Y18*(SPU_Annual_Total_Energy),0)/100","v":0},{"$f":"IFERROR('Rates Table'!Z18*(SPU_Annual_Total_Energy),0)/100","v":0},{"$f":"IFERROR('Rates Table'!AA18*(SPU_Annual_Total_Energy),0)/100","v":0},{"$f":"IFERROR('Rates Table'!AB18*(SPU_Annual_Total_Energy),0)/100","v":0},{"$f":"IFERROR('Rates Table'!AC18*(SPU_Annual_Total_Energy),0)/100","v":0},{"$f":"IFERROR('Rates Table'!AD18*(SPU_Annual_Total_Energy),0)/100","v":0},null,{"$f":"SUMIFS(AG18:BE18,$F$7:$AD$7,Selected_Tariff_ID)","v":0},{"$f":"IFERROR('Rates Table'!AG18*(SPU_Annual_Total_Energy),0)/100","v":0},{"$f":"IFERROR('Rates Table'!AH18*(SPU_Annual_Total_Energy),0)/100","v":0},{"$f":"IFERROR('Rates Table'!AI18*(SPU_Annual_Total_Energy),0)/100","v":0},{"$f":"IFERROR('Rates Table'!AJ18*(SPU_Annual_Total_Energy),0)/100","v":0},{"$f":"IFERROR('Rates Table'!AK18*(SPU_Annual_Total_Energy),0)/100","v":0},{"$f":"IFERROR('Rates Table'!AL18*(SPU_Annual_Total_Energy),0)/100","v":0},{"$f":"IFERROR('Rates Table'!AM18*(SPU_Annual_Total_Energy),0)/100","v":0},{"$f":"IFERROR('Rates Table'!AN18*(SPU_Annual_Total_Energy),0)/100","v":0},{"$f":"IFERROR('Rates Table'!AO18*(SPU_Annual_Total_Energy),0)/100","v":0},{"$f":"IFERROR('Rates Table'!AP18*(SPU_Annual_Total_Energy),0)/100","v":0},{"$f":"IFERROR('Rates Table'!AQ18*(SPU_Annual_Total_Energy),0)/100","v":0},{"$f":"IFERROR('Rates Table'!AR18*(SPU_Annual_Total_Energy),0)/100","v":0},{"$f":"IFERROR('Rates Table'!AS18*(SPU_Annual_Total_Energy),0)/100","v":0},{"$f":"IFERROR('Rates Table'!AT18*(SPU_Annual_Total_Energy),0)/100","v":0},{"$f":"IFERROR('Rates Table'!AU18*(SPU_Annual_Total_Energy),0)/100","v":0},{"$f":"IFERROR('Rates Table'!AV18*(SPU_Annual_Total_Energy),0)/100","v":0},{"$f":"IFERROR('Rates Table'!AW18*(SPU_Annual_Total_Energy),0)/100","v":0},{"$f":"IFERROR('Rates Table'!AX18*(SPU_Annual_Total_Energy),0)/100","v":0},{"$f":"IFERROR('Rates Table'!AY18*(SPU_Annual_Total_Energy),0)/100","v":0},{"$f":"IFERROR('Rates Table'!AZ18*(SPU_Annual_Total_Energy),0)/100","v":0},{"$f":"IFERROR('Rates Table'!BA18*(SPU_Annual_Total_Energy),0)/100","v":0},{"$f":"IFERROR('Rates Table'!BB18*(Homeflex_Total_Energy),0)/100","v":0},{"$f":"IFERROR('Rates Table'!BC18*(Homeflex_Total_Energy),0)/100","v":0},{"$f":"IFERROR('Rates Table'!BD18*(Homeflex_Total_Energy),0)/100","v":0},{"$f":"IFERROR('Rates Table'!BE18*(Homeflex_Total_Energy),0)/100","v":0}]
[null,null,"Peak consumption","c/kWh",0,null,null,null,null,null,null,null,null,null,null,null,null,null,null,null,null,null,null,null,null,null,{"$f":"IFERROR('Rates Table'!AA19*(Homeflex_Peak_Energy_Low),0)/100","v":0},{"$f":"IFERROR('Rates Table'!AB19*(Homeflex_Peak_Energy_Low),0)/100","v":0},{"$f":"IFERROR('Rates Table'!AC19*(Homeflex_Peak_Energy_Low),0)/100","v":0},{"$f":"IFERROR('Rates Table'!AD19*(Homeflex_Peak_Energy_Low),0)/100","v":0},null,0,null,null,null,null,null,null,null,null,null,null,null,null,null,null,null,null,null,null,null,null,null,{"$f":"IFERROR('Rates SPU - New'!$L$29*(Homeflex_Peak_Energy_Low),0)/100","v":0},{"$f":"IFERROR('Rates SPU - New'!$L$29*(Homeflex_Peak_Energy_Low),0)/100","v":0},{"$f":"IFERROR('Rates SPU - New'!$L$29*(Homeflex_Peak_Energy_Low),0)/100","v":0},{"$f":"IFERROR('Rates SPU - New'!$L$29*(Homeflex_Peak_Energy_Low),0)/100","v":0}]
[null,null,"Standard consumption","c/kWh",0,null,null,null,null,null,null,null,null,null,null,null,null,null,null,null,null,null,null,null,null,null,{"$f":"IFERROR('Rates Table'!AA20*(Homeflex_Standard_Energy_Low),0)/100","v":0},{"$f":"IFERROR('Rates Table'!AB20*(Homeflex_Standard_Energy_Low),0)/100","v":0},{"$f":"IFERROR('Rates Table'!AC20*(Homeflex_Standard_Energy_Low),0)/100","v":0},{"$f":"IFERROR('Rates Table'!AD20*(Homeflex_Standard_Energy_Low),0)/100","v":0},null,0,null,null,null,null,null,null,null,null,null,null,null,null,null,null,null,null,null,null,null,null,null,{"$f":"IFERROR('Rates SPU - New'!$M$30*(Homeflex_Standard_Energy_Low),0)/100","v":0},{"$f":"IFERROR('Rates SPU - New'!$M$30*(Homeflex_Standard_Energy_Low),0)/100","v":0},{"$f":"IFERROR('Rates SPU - New'!$M$30*(Homeflex_Standard_Energy_Low),0)/100","v":0},{"$f":"IFERROR('Rates SPU - New'!$M$30*(Homeflex_Standard_Energy_Low),0)/100","v":0}]
[null,null,"Off-Peak consumption","c/kWh",0,null,null,null,null,null,null,null,null,null,null,null,null,null,null,null,null,null,null,null,null,null,{"$f":"IFERROR('Rates Table'!AA21*(Homeflex_OffPeak_Energy_Low),0)/100","v":0},{"$f":"IFERROR('Rates Table'!AB21*(Homeflex_OffPeak_Energy_Low),0)/100","v":0},{"$f":"IFERROR('Rates Table'!AC21*(Homeflex_OffPeak_Energy_Low),0)/100","v":0},{"$f":"IFERROR('Rates Table'!AD21*(Homeflex_OffPeak_Energy_Low),0)/100","v":0},null,0,null,null,null,null,null,null,null,null,null,null,null,null,null,null,null,null,null,null,null,null,null,{"$f":"IFERROR('Rates SPU - New'!$N$30*(Homeflex_OffPeak_Energy_Low),0)/100","v":0},{"$f":"IFERROR('Rates SPU - New'!$N$30*(Homeflex_OffPeak_Energy_Low),0)/100","v":0},{"$f":"IFERROR('Rates SPU - New'!$N$30*(Homeflex_OffPeak_Energy_Low),0)/100","v":0},{"$f":"IFERROR('Rates SPU - New'!$N$30*(Homeflex_OffPeak_Energy_Low),0)/100","v":0}]
[null,null,"Energy - Block 1","c/kWh",0,{"$f":"IFERROR('Rates Table'!F22*(SPU_Block_1),0)/100","v":0},{"$f":"IFERROR('Rates Table'!G22*(SPU_Block_1),0)/100","v":0},{"$f":"IFERROR('Rates Table'!H22*(SPU_Block_1),0)/100","v":0},{"$f":"IFERROR('Rates Table'!I22*(SPU_Block_1),0)/100","v":0},{"$f":"IFERROR('Rates Table'!J22*(SPU_Block_1),0)/100","v":0},{"$f":"IFERROR('Rates Table'!K22*(SPU_Block_1),0)/100","v":0},{"$f":"IFERROR('Rates Table'!L22*(SPU_Block_1),0)/100","v":0},{"$f":"IFERROR('Rates Table'!M22*(SPU_Block_1),0)/100","v":0},{"$f":"IFERROR('Rates Table'!N22*(SPU_Block_1),0)/100","v":0},{"$f":"IFERROR('Rates Table'!O22*(SPU_Block_1),0)/100","v":0},{"$f":"IFERROR('Rates Table'!P22*(SPU_Block_1),0)/100","v":0},{"$f":"IFERROR('Rates Table'!Q22*(SPU_Block_1),0)/100","v":0},{"$f":"IFERROR('Rates Table'!R22*(SPU_Block_1),0)/100","v":0},{"$f":"IFERROR('Rates Table'!S22*(SPU_Block_1),0)/100","v":0},{"$f":"IFERROR('Rates Table'!T22*(SPU_Block_1),0)/100","v":0},{"$f":"IFERROR('Rates Table'!U22*(SPU_Block_1),0)/100","v":0},{"$f":"IFERROR('Rates Table'!V22*(SPU_Block_1),0)/100","v":0},{"$f":"IFERROR('Rates Table'!W22*(SPU_Block_1),0)/100","v":0},{"$f":"IFERROR('Rates Table'!X22*(SPU_Block_1),0)/100","v":0},{"$f":"IFERROR('Rates Table'!Y22*(SPU_Block_1),0)/100","v":0},{"$f":"IFERROR('Rates Table'!Z22*(SPU_Block_1),0)/100","v":0},{"$f":"IFERROR('Rates Table'!AA22*(SPU_Block_1),0)/100","v":0},{"$f":"IFERROR('Rates Table'!AB22*(SPU_Block_1),0)/100","v":0},{"$f":"IFERROR('Rates Table'!AC22*(SPU_Block_1),0)/100","v":0},{"$f":"IFERROR('Rates Table'!AD22*(SPU_Block_1),0)/100","v":0},null,0,{"$f":"IFERROR('Rates Table'!AG22*(SPU_Block_1),0)/100","v":0},{"$f":"IFERROR('Rates Table'!AH22*(SPU_Block_1),0)/100","v":0},{"$f":"IFERROR('Rates Table'!AI22*(SPU_Block_1),0)/100","v":0},{"$f":"IFERROR('Rates Table'!AJ22*(SPU_Block_1),0)/100","v":0},{"$f":"IFERROR('Rates Table'!AK22*(SPU_Block_1),0)/100","v":0},{"$f":"IFERROR('Rates Table'!AL22*(SPU_Block_1),0)/100","v":0},{"$f":"IFERROR('Rates Table'!AM22*(SPU_Block_1),0)/100","v":0},{"$f":"IFERROR('Rates Table'!AN22*(SPU_Block_1),0)/100","v":0},{"$f":"IFERROR('Rates Table'!AO22*(SPU_Block_1),0)/100","v":0},{"$f":"IFERROR('Rates Table'!AP22*(SPU_Block_1),0)/100","v":0},{"$f":"IFERROR('Rates Table'!AQ22*(SPU_Block_1),0)/100","v":0},{"$f":"IFERROR('Rates Table'!AR22*(SPU_Block_1),0)/100","v":0},{"$f":"IFERROR('Rates Table'!AS22*(SPU_Block_1),0)/100","v":0},{"$f":"IFERROR('Rates Table'!AT22*(SPU_Block_1),0)/100","v":0},{"$f":"IFERROR('Rates Table'!AU22*(SPU_Block_1),0)/100","v":0},{"$f":"IFERROR('Rates Table'!AV22*(SPU_Block_1),0)/100","v":0},{"$f":"IFERROR('Rates Table'!AW22*(SPU_Block_1),0)/100","v":0},{"$f":"IFERROR('Rates Table'!AX22*(SPU_Block_1),0)/100","v":0},{"$f":"IFERROR('Rates Table'!AY22*(SPU_Block_1),0)/100","v":0},{"$f":"IFERROR('Rates Table'!AZ22*(SPU_Block_1),0)/100","v":0},{"$f":"IFERROR('Rates Table'!BA22*(SPU_Block_1),0)/100","v":0},{"$f":"IFERROR('Rates Table'!BB22*(SPU_Block_1),0)/100","v":0},{"$f":"IFERROR('Rates Table'!BC22*(SPU_Block_1),0)/100","v":0},{"$f":"IFERROR('Rates Table'!BD22*(SPU_Block_1),0)/100","v":0},{"$f":"IFERROR('Rates Table'!BE22*(SPU_Block_1),0)/100","v":0}]
[null,null,"Energy - Block 2","c/kWh",0,{"$f":"IFERROR('Rates Table'!F23*(SPU_Block_2),0)/100","v":0},{"$f":"IFERROR('Rates Table'!G23*(SPU_Block_2),0)/100","v":0},{"$f":"IFERROR('Rates Table'!H23*(SPU_Block_2),0)/100","v":0},{"$f":"IFERROR('Rates Table'!I23*(SPU_Block_2),0)/100","v":0},{"$f":"IFERROR('Rates Table'!J23*(SPU_Block_2),0)/100","v":0},{"$f":"IFERROR('Rates Table'!K23*(SPU_Block_2),0)/100","v":0},{"$f":"IFERROR('Rates Table'!L23*(SPU_Block_2),0)/100","v":0},{"$f":"IFERROR('Rates Table'!M23*(SPU_Block_2),0)/100","v":0},{"$f":"IFERROR('Rates Table'!N23*(SPU_Block_2),0)/100","v":0},{"$f":"IFERROR('Rates Table'!O23*(SPU_Block_2),0)/100","v":0},{"$f":"IFERROR('Rates Table'!P23*(SPU_Block_2),0)/100","v":0},{"$f":"IFERROR('Rates Table'!Q23*(SPU_Block_2),0)/100","v":0},{"$f":"IFERROR('Rates Table'!R23*(SPU_Block_2),0)/100","v":0},{"$f":"IFERROR('Rates Table'!S23*(SPU_Block_2),0)/100","v":0},{"$f":"IFERROR('Rates Table'!T23*(SPU_Block_2),0)/100","v":0},{"$f":"IFERROR('Rates Table'!U23*(SPU_Block_2),0)/100","v":0},{"$f":"IFERROR('Rates Table'!V23*(SPU_Block_2),0)/100","v":0},{"$f":"IFERROR('Rates Table'!W23*(SPU_Block_2),0)/100","v":0},{"$f":"IFERROR('Rates Table'!X23*(SPU_Block_2),0)/100","v":0},{"$f":"IFERROR('Rates Table'!Y23*(SPU_Block_2),0)/100","v":0},{"$f":"IFERROR('Rates Table'!Z23*(SPU_Block_2),0)/100","v":0},{"$f":"IFERROR('Rates Table'!AA23*(SPU_Block_2),0)/100","v":0},{"$f":"IFERROR('Rates Table'!AB23*(SPU_Block_2),0)/100","v":0},{"$f":"IFERROR('Rates Table'!AC23*(SPU_Block_2),0)/100","v":0},{"$f":"IFERROR('Rates Table'!AD23*(SPU_Block_2),0)/100","v":0},null,0,{"$f":"IFERROR('Rates Table'!AG23*(SPU_Block_2),0)/100","v":0},{"$f":"IFERROR('Rates Table'!AH23*(SPU_Block_2),0)/100","v":0},{"$f":"IFERROR('Rates Table'!AI23*(SPU_Block_2),0)/100","v":0},{"$f":"IFERROR('Rates Table'!AJ23*(SPU_Block_2),0)/100","v":0},{"$f":"IFERROR('Rates Table'!AK23*(SPU_Block_2),0)/100","v":0},{"$f":"IFERROR('Rates Table'!AL23*(SPU_Block_2),0)/100","v":0},{"$f":"IFERROR('Rates Table'!AM23*(SPU_Block_2),0)/100","v":0},{"$f":"IFERROR('Rates Table'!AN23*(SPU_Block_2),0)/100","v":0},{"$f":"IFERROR('Rates Table'!AO23*(SPU_Block_2),0)/100","v":0},{"$f":"IFERROR('Rates Table'!AP23*(SPU_Block_2),0)/100","v":0},{"$f":"IFERROR('Rates Table'!AQ23*(SPU_Block_2),0)/100","v":0},{"$f":"IFERROR('Rates Table'!AR23*(SPU_Block_2),0)/100","v":0},{"$f":"IFERROR('Rates Table'!AS23*(SPU_Block_2),0)/100","v":0},{"$f":"IFERROR('Rates Table'!AT23*(SPU_Block_2),0)/100","v":0},{"$f":"IFERROR('Rates Table'!AU23*(SPU_Block_2),0)/100","v":0},{"$f":"IFERROR('Rates Table'!AV23*(SPU_Block_2),0)/100","v":0},{"$f":"IFERROR('Rates Table'!AW23*(SPU_Block_2),0)/100","v":0},{"$f":"IFERROR('Rates Table'!AX23*(SPU_Block_2),0)/100","v":0},{"$f":"IFERROR('Rates Table'!AY23*(SPU_Block_2),0)/100","v":0},{"$f":"IFERROR('Rates Table'!AZ23*(SPU_Block_2),0)/100","v":0},{"$f":"IFERROR('Rates Table'!BA23*(SPU_Block_2),0)/100","v":0},{"$f":"IFERROR('Rates Table'!BB23*(SPU_Block_2),0)/100","v":0},{"$f":"IFERROR('Rates Table'!BC23*(SPU_Block_2),0)/100","v":0},{"$f":"IFERROR('Rates Table'!BD23*(SPU_Block_2),0)/100","v":0},{"$f":"IFERROR('Rates Table'!BE23*(SPU_Block_2),0)/100","v":0}]
[null,null,"Generation capacity charge","R/POD/day",null,null,null,null,null,null,null,null,null,null,null,null,null,null,null,null,null,null,null,null,null,null,null,null,null,null,null,null,{"$f":"IFERROR('Rates Table'!AG24*PODs*ESKOM_Total_days,0)","v":268.27500000000003},{"$f":"IFERROR('Rates Table'!AH24*PODs*ESKOM_Total_days,0)","v":398.45833333333331},{"$f":"IFERROR('Rates Table'!AI24*PODs*ESKOM_Total_days,0)","v":994.32083333333333},{"$f":"IFERROR('Rates Table'!AJ24*PODs*ESKOM_Total_days,0)","v":0},{"$f":"IFERROR('Rates Table'!AK24*PODs*ESKOM_Total_days,0)","v":0},{"$f":"IFERROR('Rates Table'!AL24*PODs*ESKOM_Total_days,0)","v":0},{"$f":"IFERROR('Rates Table'!AM24*PODs*ESKOM_Total_days,0)","v":97.333333333333343},{"$f":"IFERROR('Rates Table'!AN24*PODs*ESKOM_Total_days,0)","v":171.85416666666669},{"$f":"IFERROR('Rates Table'!AO24*PODs*ESKOM_Total_days,0)","v":417.92500000000001},{"$f":"IFERROR('Rates Table'!AP24*PODs*ESKOM_Total_days,0)","v":63.570833333333333},{"$f":"IFERROR('Rates Table'!AQ24*PODs*ESKOM_Total_days,0)","v":644.5291666666667},{"$f":"IFERROR('Rates Table'!AR24*PODs*ESKOM_Total_days,0)","v":182.19583333333335},{"$f":"IFERROR('Rates Table'!AS24*PODs*ESKOM_Total_days,0)","v":361.95833333333337},{"$f":"IFERROR('Rates Table'!AT24*PODs*ESKOM_Total_days,0)","v":708.1},{"$f":"IFERROR('Rates Table'!AU24*PODs*ESKOM_Total_days,0)","v":119.84166666666667},{"$f":"IFERROR('Rates Table'!AV24*PODs*ESKOM_Total_days,0)","v":0},{"$f":"IFERROR('Rates Table'!AW24*PODs*ESKOM_Total_days,0)","v":0},{"$f":"IFERROR('Rates Table'!AX24*PODs*ESKOM_Total_days,0)","v":0},{"$f":"IFERROR('Rates Table'!AY24*PODs*ESKOM_Total_days,0)","v":0},{"$f":"IFERROR('Rates Table'!AZ24*PODs*ESKOM_Total_days,0)","v":0},{"$f":"IFERROR('Rates Table'!BA24*PODs*ESKOM_Total_days,0)","v":0},{"$f":"IFERROR('Rates Table'!BB24*PODs*ESKOM_Total_days,0)","v":97.333333333333343},{"$f":"IFERROR('Rates Table'!BC24*PODs*ESKOM_Total_days,0)","v":171.85416666666669},{"$f":"IFERROR('Rates Table'!BD24*PODs*ESKOM_Total_days,0)","v":417.92500000000001},{"$f":"IFERROR('Rates Table'!BE24*PODs*ESKOM_Total_days,0)","v":63.570833333333333}]
[null,null,"Legacy charge","c/kWh",null,null,null,null,null,null,null,null,null,null,null,null,null,null,null,null,null,null,null,null,null,null,null,null,null,null,null,null,{"$f":"IFERROR('Rates Table'!AG25*(SPU_Annual_Total_Energy),0)/100","v":0},{"$f":"IFERROR('Rates Table'!AH25*(SPU_Annual_Total_Energy),0)/100","v":0},{"$f":"IFERROR('Rates Table'!AI25*(SPU_Annual_Total_Energy),0)/100","v":0},{"$f":"IFERROR('Rates Table'!AJ25*(SPU_Annual_Total_Energy),0)/100","v":0},{"$f":"IFERROR('Rates Table'!AK25*(SPU_Annual_Total_Energy),0)/100","v":0},{"$f":"IFERROR('Rates Table'!AL25*(SPU_Annual_Total_Energy),0)/100","v":0},{"$f":"IFERROR('Rates Table'!AM25*(SPU_Annual_Total_Energy),0)/100","v":0},{"$f":"IFERROR('Rates Table'!AN25*(SPU_Annual_Total_Energy),0)/100","v":0},{"$f":"IFERROR('Rates Table'!AO25*(SPU_Annual_Total_Energy),0)/100","v":0},{"$f":"IFERROR('Rates Table'!AP25*(SPU_Annual_Total_Energy),0)/100","v":0},{"$f":"IFERROR('Rates Table'!AQ25*(SPU_Annual_Total_Energy),0)/100","v":0},{"$f":"IFERROR('Rates Table'!AR25*(SPU_Annual_Total_Energy),0)/100","v":0},{"$f":"IFERROR('Rates Table'!AS25*(SPU_Annual_Total_Energy),0)/100","v":0},{"$f":"IFERROR('Rates Table'!AT25*(SPU_Annual_Total_Energy),0)/100","v":0},{"$f":"IFERROR('Rates Table'!AU25*(SPU_Annual_Total_Energy),0)/100","v":0},{"$f":"IFERROR('Rates Table'!AV25*(SPU_Annual_Total_Energy),0)/100","v":0},{"$f":"IFERROR('Rates Table'!AW25*(SPU_Annual_Total_Energy),0)/100","v":0},{"$f":"IFERROR('Rates Table'!AX25*(SPU_Annual_Total_Energy),0)/100","v":0},{"$f":"IFERROR('Rates Table'!AY25*(SPU_Annual_Total_Energy),0)/100","v":0},{"$f":"IFERROR('Rates Table'!AZ25*(SPU_Annual_Total_Energy),0)/100","v":0},{"$f":"IFERROR('Rates Table'!BA25*(SPU_Annual_Total_Energy),0)/100","v":0},{"$f":"IFERROR('Rates Table'!BB25*(Homeflex_Total_Energy),0)/100","v":0},{"$f":"IFERROR('Rates Table'!BC25*(Homeflex_Total_Energy),0)/100","v":0},{"$f":"IFERROR('Rates Table'!BD25*(Homeflex_Total_Energy),0)/100","v":0},{"$f":"IFERROR('Rates Table'!BE25*(Homeflex_Total_Energy),0)/100","v":0}]
[]
[null,"Total energy charges",null,null,{"$f":"SUM(E18:E25)","v":0},{"$f":"SUM(F18:F25)","v":0},0,0,0,0,0,0,0,0,0,0,0,0,0,0,0,0,0,0,0,{"$f":"SUM(Z18:Z25)","v":0},0,0,0,0,null,{"$f":"SUM(AF18:AF25)","v":0},{"$f":"SUM(AG18:AG25)","v":268.27500000000003},398.45833333333331,994.32083333333333,0,0,0,97.333333333333343,171.85416666666669,417.92500000000001,63.570833333333333,644.5291666666667,182.19583333333335,361.95833333333337,708.1,119.84166666666667,0,0,0,0,0,{"$f":"SUM(BA18:BA25)","v":0},97.333333333333343,171.85416666666669,417.92500000000001,63.570833333333333]
[]
[null,"Other charges",null,"Units",{"$f":"E$8","v":"2024/25 Tariff Book Rates"},{"$f":"F$8","v":"2024/25 Tariff Book Rates"},"2024/25 Tariff Book Rates","2024/25 Tariff Book Rates","2024/25 Tariff Book Rates","2024/25 Tariff Book Rates","2024/25 Tariff Book Rates","2024/25 Tariff Book Rates","2024/25 Tariff Book Rates","2024/25 Tariff Book Rates","2024/25 Tariff Book Rates","2024/25 Tariff Book Rates","2024/25 Tariff Book Rates","2024/25 Tariff Book Rates","2024/25 Tariff Book Rates","2024/25 Tariff Book Rates","2024/25 Tariff Book Rates","2024/25 Tariff Book Rates","2024/25 Tariff Book Rates","2024/25 Tariff Book Rates","2024/25 Tariff Book Rates","2024/25 Tariff Book Rates","2024/25 Tariff Book Rates","2024/25 Tariff Book Rates","2024/25 Tariff Book Rates","2024/25 Tariff Book Rates",null,{"$f":"AF$8","v":"2024/25 RTP Rates"},{"$f":"AG$8","v":"2024/25 RTP Rates"},"2024/25 RTP Rates","2024/25 RTP Rates","2024/25 RTP Rates","2024/25 RTP Rates","2024/25 RTP Rates","2024/25 RTP Rates","2024/25 RTP Rates","2024/25 RTP Rates","2024/25 RTP Rates","2024/25 RTP Rates","2024/25 RTP Rates","2024/25 RTP Rates","2024/25 RTP Rates","2024/25 RTP Rates","2024/25 RTP Rates","2024/25 RTP Rates","2024/25 RTP Rates","2024/25 RTP Rates","2024/25 RTP Rates","2024/25 RTP Rates","2024/25 RTP Rates","2024/25 RTP Rates","2024/25 RTP Rates","2024/25 RTP Rates"]
[]
[null,null,"Ancillary service charge ","c/kWh",{"$f":"SUMIFS(F31:AD31,$F$7:$AD$7,Selected_Tariff_ID)","v":0},{"$f":"IFERROR(SPU_Annual_Total_Energy*'Rates Table'!F31,0)/100","v":0},{"$f":"IFERROR(SPU_Annual_Total_Energy*'Rates Table'!G31,0)/100","v":0},{"$f":"IFERROR(SPU_Annual_Total_Energy*'Rates Table'!H31,0)/100","v":0},{"$f":"IFERROR(SPU_Annual_Total_Energy*'Rates Table'!I31,0)/100","v":0},{"$f":"IFERROR(SPU_Annual_Total_Energy*'Rates Table'!J31,0)/100","v":0},{"$f":"IFERROR(SPU_Annual_Total_Energy*'Rates Table'!K31,0)/100","v":0},{"$f":"IFERROR(SPU_Annual_Total_Energy*'Rates Table'!L31,0)/100","v":0},{"$f":"IFERROR(SPU_Annual_Total_Energy*'Rates Table'!M31,0)/100","v":0},{"$f":"IFERROR(SPU_Annual_Total_Energy*'Rates Table'!N31,0)/100","v":0},{"$f":"IFERROR(SPU_Annual_Total_Energy*'Rates Table'!O31,0)/100","v":0},{"$f":"IFERROR(SPU_Annual_Total_Energy*'Rates Table'!P31,0)/100","v":0},{"$f":"IFERROR(SPU_Annual_Total_Energy*'Rates Table'!Q31,0)/100","v":0},{"$f":"IFERROR(SPU_Annual_Total_Energy*'Rates Table'!R31,0)/100","v":0},{"$f":"IFERROR(SPU_Annual_Total_Energy*'Rates Table'!S31,0)/100","v":0},{"$f":"IFERROR(SPU_Annual_Total_Energy*'Rates Table'!T31,0)/100","v":0},{"$f":"IFERROR(SPU_Annual_Total_Energy*'Rates Table'!U31,0)/100","v":0},{"$f":"IFERROR(SPU_Annual_Total_Energy*'Rates Table'!V31,0)/100","v":0},{"$f":"IFERROR(SPU_Annual_Total_Energy*'Rates Table'!W31,0)/100","v":0},{"$f":"IFERROR(SPU_Annual_Total_Energy*'Rates Table'!X31,0)/100","v":0},{"$f":"IFERROR(SPU_Annual_Total_Energy*'Rates Table'!Y31,0)/100","v":0},{"$f":"IFERROR(SPU_Annual_Total_Energy*'Rates Table'!Z31,0)/100","v":0},{"$f":"IFERROR(SPU_Annual_Total_Energy*'Rates Table'!AA31,0)/100","v":0},{"$f":"IFERROR(SPU_Annual_Total_Energy*'Rates Table'!AB31,0)/100","v":0},{"$f":"IFERROR(SPU_Annual_Total_Energy*'Rates Table'!AC31,0)/100","v":0},{"$f":"IFERROR(SPU_Annual_Total_Energy*'Rates Table'!AD31,0)/100","v":0},null,{"$f":"SUMIFS(AG31:BE31,$F$7:$AD$7,Selected_Tariff_ID)","v":0},{"$f":"IFERROR(SPU_Annual_Total_Energy*'Rates Table'!AG31,0)/100","v":0},{"$f":"IFERROR(SPU_Annual_Total_Energy*'Rates Table'!AH31,0)/100","v":0},{"$f":"IFERROR(SPU_Annual_Total_Energy*'Rates Table'!AI31,0)/100","v":0},{"$f":"IFERROR(SPU_Annual_Total_Energy*'Rates Table'!AJ31,0)/100","v":0},{"$f":"IFERROR(SPU_Annual_Total_Energy*'Rates Table'!AK31,0)/100","v":0},{"$f":"IFERROR(SPU_Annual_Total_Energy*'Rates Table'!AL31,0)/100","v":0},{"$f":"IFERROR(SPU_Annual_Total_Energy*'Rates Table'!AM31,0)/100","v":0},{"$f":"IFERROR(SPU_Annual_Total_Energy*'Rates Table'!AN31,0)/100","v":0},{"$f":"IFERROR(SPU_Annual_Total_Energy*'Rates Table'!AO31,0)/100","v":0},{"$f":"IFERROR(SPU_Annual_Total_Energy*'Rates Table'!AP31,0)/100","v":0},{"$f":"IFERROR(SPU_Annual_Total_Energy*'Rates Table'!AQ31,0)/100","v":0},{"$f":"IFERROR(SPU_Annual_Total_Energy*'Rates Table'!AR31,0)/100","v":0},{"$f":"IFERROR(SPU_Annual_Total_Energy*'Rates Table'!AS31,0)/100","v":0},{"$f":"IFERROR(SPU_Annual_Total_Energy*'Rates Table'!AT31,0)/100","v":0},{"$f":"IFERROR(SPU_Annual_Total_Energy*'Rates Table'!AU31,0)/100","v":0},{"$f":"IFERROR(SPU_Annual_Total_Energy*'Rates Table'!AV31,0)/100","v":0},{"$f":"IFERROR(SPU_Annual_Total_Energy*'Rates Table'!AW31,0)/100","v":0},{"$f":"IFERROR(SPU_Annual_Total_Energy*'Rates Table'!AX31,0)/100","v":0},{"$f":"IFERROR(SPU_Annual_Total_Energy*'Rates Table'!AY31,0)/100","v":0},{"$f":"IFERROR(SPU_Annual_Total_Energy*'Rates Table'!AZ31,0)/100","v":0},{"$f":"IFERROR(SPU_Annual_Total_Energy*'Rates Table'!BA31,0)/100","v":0},{"$f":"IFERROR(Homeflex_Total_Energy*'Rates Table'!BB31,0)/100","v":0},{"$f":"IFERROR(Homeflex_Total_Energy*'Rates Table'!BC31,0)/100","v":0},{"$f":"IFERROR(Homeflex_Total_Energy*'Rates Table'!BD31,0)/100","v":0},{"$f":"IFERROR(Homeflex_Total_Energy*'Rates Table'!BE31,0)/100","v":0}]
[null,null,"Service charge",{"$f":"IF(Table_1=1,\"R/day\",\"R/day\")","v":"R/day"},{"$f":"SUMIFS(F32:AD32,$F$7:$AD$7,Selected_Tariff_ID)","v":1406.7708333333335},{"$f":"IFERROR('Rates Table'!F32*PODs*ESKOM_Total_days,0)","v":1116.5958333333333},{"$f":"IFERROR('Rates Table'!G32*PODs*ESKOM_Total_days,0)","v":1116.5958333333333},{"$f":"IFERROR('Rates Table'!H32*PODs*ESKOM_Total_days,0)","v":1116.5958333333333},{"$f":"IFERROR('Rates Table'!I32*PODs*ESKOM_Total_days,0)","v":0},{"$f":"IFERROR('Rates Table'!J32*PODs*ESKOM_Total_days,0)","v":0},{"$f":"IFERROR('Rates Table'!K32*PODs*ESKOM_Total_days,0)","v":0},{"$f":"IFERROR('Rates Table'!L32*PODs*ESKOM_Total_days,0)","v":0},{"$f":"IFERROR('Rates Table'!M32*PODs*ESKOM_Total_days,0)","v":0},{"$f":"IFERROR('Rates Table'!N32*PODs*ESKOM_Total_days,0)","v":0},{"$f":"IFERROR('Rates Table'!O32*PODs*ESKOM_Total_days,0)","v":0},{"$f":"IFERROR('Rates Table'!P32*PODs*ESKOM_Total_days,0)","v":0},{"$f":"IFERROR('Rates Table'!Q32*PODs*ESKOM_Total_days,0)","v":1406.7708333333335},{"$f":"IFERROR('Rates Table'!R32*PODs*ESKOM_Total_days,0)","v":1406.7708333333335},{"$f":"IFERROR('Rates Table'!S32*PODs*ESKOM_Total_days,0)","v":1406.7708333333335},{"$f":"IFERROR('Rates Table'!T32*PODs*ESKOM_Total_days,0)","v":0},{"$f":"IFERROR('Rates Table'!U32*PODs*ESKOM_Total_days,0)","v":3016.7250000000004},{"$f":"IFERROR('Rates Table'!V32*PODs*ESKOM_Total_days,0)","v":0},{"$f":"IFERROR('Rates Table'!W32*PODs*ESKOM_Total_days,0)","v":0},{"$f":"IFERROR('Rates Table'!X32*PODs*ESKOM_Total_days,0)","v":0},{"$f":"IFERROR('Rates Table'!Y32*PODs*ESKOM_Total_days,0)","v":0},{"$f":"IFERROR('Rates Table'!Z32*PODs*ESKOM_Total_days,0)","v":333.36666666666673},{"$f":"IFERROR('Rates Table'!AA32*PODs*ESKOM_Total_days,0)","v":0},{"$f":"IFERROR('Rates Table'!AB32*PODs*ESKOM_Total_days,0)","v":0},{"$f":"IFERROR('Rates Table'!AC32*PODs*ESKOM_Total_days,0)","v":0},{"$f":"IFERROR('Rates Table'!AD32*PODs*ESKOM_Total_days,0)","v":0},null,{"$f":"SUMIFS(AG32:BE32,$F$7:$AD$7,Selected_Tariff_ID)","v":660.95416666666665},{"$f":"IFERROR('Rates Table'!AG32*PODs*ESKOM_Total_days,0)","v":396.63333333333333},{"$f":"IFERROR('Rates Table'!AH32*PODs*ESKOM_Total_days,0)","v":396.63333333333333},{"$f":"IFERROR('Rates Table'!AI32*PODs*ESKOM_Total_days,0)","v":396.63333333333333},{"$f":"IFERROR('Rates Table'!AJ32*PODs*ESKOM_Total_days,0)","v":0},{"$f":"IFERROR('Rates Table'!AK32*PODs*ESKOM_Total_days,0)","v":0},{"$f":"IFERROR('Rates Table'!AL32*PODs*ESKOM_Total_days,0)","v":0},{"$f":"IFERROR('Rates Table'!AM32*PODs*ESKOM_Total_days,0)","v":265.23333333333335},{"$f":"IFERROR('Rates Table'!AN32*PODs*ESKOM_Total_days,0)","v":265.23333333333335},{"$f":"IFERROR('Rates Table'!AO32*PODs*ESKOM_Total_days,0)","v":265.23333333333335},{"$f":"IFERROR('Rates Table'!AP32*PODs*ESKOM_Total_days,0)","v":265.23333333333335},{"$f":"IFERROR('Rates Table'!AQ32*PODs*ESKOM_Total_days,0)","v":390.55},{"$f":"IFERROR('Rates Table'!AR32*PODs*ESKOM_Total_days,0)","v":660.95416666666665},{"$f":"IFERROR('Rates Table'!AS32*PODs*ESKOM_Total_days,0)","v":660.95416666666665},{"$f":"IFERROR('Rates Table'!AT32*PODs*ESKOM_Total_days,0)","v":660.95416666666665},{"$f":"IFERROR('Rates Table'!AU32*PODs*ESKOM_Total_days,0)","v":0},{"$f":"IFERROR('Rates Table'!AV32*PODs*ESKOM_Total_days,0)","v":2425.4249999999997},{"$f":"IFERROR('Rates Table'!AW32*PODs*ESKOM_Total_days,0)","v":0},{"$f":"IFERROR('Rates Table'!AX32*PODs*ESKOM_Total_days,0)","v":0},{"$f":"IFERROR('Rates Table'!AY32*PODs*ESKOM_Total_days,0)","v":0},{"$f":"IFERROR('Rates Table'!AZ32*PODs*ESKOM_Total_days,0)","v":0},{"$f":"IFERROR('Rates Table'!BA32*PODs*ESKOM_Total_days,0)","v":854.70833333333337},{"$f":"IFERROR('Rates Table'!BB32*PODs*ESKOM_Total_days,0)","v":265.23333333333335},{"$f":"IFERROR('Rates Table'!BC32*PODs*ESKOM_Total_days,0)","v":265.23333333333335},{"$f":"IFERROR('Rates Table'!BD32*PODs*ESKOM_Total_days,0)","v":265.23333333333335},{"$f":"IFERROR('Rates Table'!BE32*PODs*ESKOM_Total_days,0)","v":265.23333333333335}]
[null,null,"Electrification and rural subsidy ","c/kWh",{"$f":"SUMIFS(F33:AD33,$F$7:$AD$7,Selected_Tariff_ID)","v":0},null,null,null,null,null,null,null,null,null,null,null,null,null,null,null,null,null,null,null,null,null,null,null,null,null,null,{"$f":"SUMIFS(AG33:BE33,$F$7:$AD$7,Selected_Tariff_ID)","v":0},{"$f":"IFERROR(SPU_Annual_Total_Energy*'Rates Table'!AG33,0)/100","v":0},{"$f":"IFERROR(SPU_Annual_Total_Energy*'Rates Table'!AH33,0)/100","v":0},{"$f":"IFERROR(SPU_Annual_Total_Energy*'Rates Table'!AI33,0)/100","v":0},{"$f":"IFERROR(SPU_Annual_Total_Energy*'Rates Table'!AJ33,0)/100","v":0},{"$f":"IFERROR(SPU_Annual_Total_Energy*'Rates Table'!AK33,0)/100","v":0},{"$f":"IFERROR(SPU_Annual_Total_Energy*'Rates Table'!AL33,0)/100","v":0},{"$f":"IFERROR(SPU_Annual_Total_Energy*'Rates Table'!AM33,0)/100","v":0},{"$f":"IFERROR(SPU_Annual_Total_Energy*'Rates Table'!AN33,0)/100","v":0},{"$f":"IFERROR(SPU_Annual_Total_Energy*'Rates Table'!AO33,0)/100","v":0},{"$f":"IFERROR(SPU_Annual_Total_Energy*'Rates Table'!AP33,0)/100","v":0},{"$f":"IFERROR(SPU_Annual_Total_Energy*'Rates Table'!AQ33,0)/100","v":0},{"$f":"IFERROR(SPU_Annual_Total_Energy*'Rates Table'!AR33,0)/100","v":0},{"$f":"IFERROR(SPU_Annual_Total_Energy*'Rates Table'!AS33,0)/100","v":0},{"$f":"IFERROR(SPU_Annual_Total_Energy*'Rates Table'!AT33,0)/100","v":0},{"$f":"IFERROR(SPU_Annual_Total_Energy*'Rates Table'!AU33,0)/100","v":0},{"$f":"IFERROR(SPU_Annual_Total_Energy*'Rates Table'!AV33,0)/100","v":0},{"$f":"IFERROR(SPU_Annual_Total_Energy*'Rates Table'!AW33,0)/100","v":0},{"$f":"IFERROR(SPU_Annual_Total_Energy*'Rates Table'!AX33,0)/100","v":0},{"$f":"IFERROR(SPU_Annual_Total_Energy*'Rates Table'!AY33,0)/100","v":0},{"$f":"IFERROR(SPU_Annual_Total_Energy*'Rates Table'!AZ33,0)/100","v":0},{"$f":"IFERROR(SPU_Annual_Total_Energy*'Rates Table'!BA33,0)/100","v":0},{"$f":"IFERROR(Homeflex_Total_Energy*'Rates Table'!BB33,0)/100","v":0},{"$f":"IFERROR(Homeflex_Total_Energy*'Rates Table'!BC33,0)/100","v":0},{"$f":"IFERROR(Homeflex_Total_Energy*'Rates Table'!BD33,0)/100","v":0},{"$f":"IFERROR(Homeflex_Total_Energy*'Rates Table'!BE33,0)/100","v":0}]
[]
[null,"Total other charges",null,null,{"$f":"SUM(E30:E33)","v":1406.7708333333335},{"$f":"SUM(F30:F33)","v":1116.5958333333333},1116.5958333333333,1116.5958333333333,0,0,0,0,0,0,0,0,1406.7708333333335,1406.7708333333335,1406.7708333333335,0,3016.7250000000004,0,0,0,0,{"$f":"SUM(Z30:Z33)","v":333.36666666666673},0,0,0,0,null,{"$f":"SUM(AF30:AF33)","v":660.95416666666665},{"$f":"SUM(AG30:AG33)","v":396.63333333333333},396.63333333333333,396.63333333333333,0,0,0,265.23333333333335,265.23333333333335,265.23333333333335,265.23333333333335,390.55,660.95416666666665,660.95416666666665,660.95416666666665,0,2425.4249999999997,0,0,0,0,{"$f":"SUM(BA30:BA33)","v":854.70833333333337},265.23333333333335,265.23333333333335,265.23333333333335,265.23333333333335]
[]
[null,"Total excl VAT",null,null,{"$f":"E35+E27+E14","v":3100.3708333333334},2408.3916666666664,3293.5166666666664,4877.3125,0,0,0,319.98333333333335,599.51250000000005,1237.6541666666667,195.57916666666665,2029.4,3100.3708333333334,4010.1333333333337,5568.9875000000011,1348.6750000000002,3016.7250000000004,0,0,0,0,{"$f":"Z35+Z27+Z14","v":333.36666666666673},319.98333333333335,599.51250000000005,1237.6541666666667,195.57916666666665,null,{"$f":"AF35+AF27+AF14","v":2339.041666666667},1213.625,1610.2583333333334,3424.6125000000002,0,0,0,689.85000000000014,1167.3916666666669,2243.229166666667,554.19166666666672,1035.0791666666667,2521.2375000000002,3639.6583333333333,5559.5583333333343,1358.7125000000001,2425.4249999999997,0,0,0,0,{"$f":"BA35+BA27+BA14","v":854.70833333333337},689.85000000000014,1167.3916666666669,2243.229166666667,554.19166666666672]
[null,"VAT",null,{"$f":"'Monthly Average Bill'!D51","v":0.15},{"$f":"E37*$D38","v":465.05562499999996},{"$f":"F37*$D38","v":361.25874999999996},494.02749999999992,731.59687499999995,0,0,0,47.997500000000002,89.92687500000001,185.64812499999999,29.336874999999996,304.41000000000003,465.05562499999996,601.52,835.3481250000001,202.30125000000001,452.50875000000002,0,0,0,0,{"$f":"Z37*$D38","v":50.00500000000001},47.997500000000002,89.92687500000001,185.64812499999999,29.336874999999996,null,{"$f":"AF37*$D38","v":350.85625000000005},{"$f":"AG37*$D38","v":182.04374999999999},241.53874999999999,513.69187499999998,0,0,0,103.47750000000002,175.10875000000001,336.48437500000006,83.128750000000011,155.261875,378.18562500000002,545.94875000000002,833.93375000000015,203.80687500000002,363.81374999999997,0,0,0,0,{"$f":"BA37*$D38","v":128.20625000000001},103.47750000000002,175.10875000000001,336.48437500000006,83.128750000000011]
[]
[null,"Total account",null,null,{"$f":"SUM(E37:E38)","v":3565.4264583333334},{"$f":"SUM(F37:F38)","v":2769.6504166666664},3787.5441666666666,5608.9093750000002,0,0,0,367.98083333333335,689.43937500000004,1423.3022916666666,224.91604166666664,2333.81,3565.4264583333334,4611.6533333333336,6404.3356250000015,1550.9762500000002,3469.2337500000003,0,0,0,0,{"$f":"SUM(Z37:Z38)","v":383.37166666666673},367.98083333333335,689.43937500000004,1423.3022916666666,224.91604166666664,null,{"$f":"SUM(AF37:AF38)","v":2689.8979166666668},{"$f":"SUM(AG37:AG38)","v":1395.66875},1851.7970833333334,3938.3043750000002,0,0,0,793.3275000000001,1342.500416666667,2579.713541666667,637.32041666666669,1190.3410416666666,2899.4231250000003,4185.6070833333333,6393.4920833333344,1562.5193750000001,2789.2387499999995,0,0,0,0,{"$f":"SUM(BA37:BA38)","v":982.91458333333344},793.3275000000001,1342.500416666667,2579.713541666667,637.32041666666669]
[]
[null,"Average price c/kWh",null,null,{"$f":"SUMIFS(F42:AD42,$F$7:$AD$7,Selected_Tariff_ID)","v":{"$error":"#DIV/0!"}},{"$f":"F37/SPU_Annual_Total_Energy*100","v":{"$error":"#DIV/0!"}},{"$error":"#DIV/0!"},{"$f":"H37/SPU_Annual_Total_Energy*100","v":{"$error":"#DIV/0!"}},{"$error":"#DIV/0!"},{"$error":"#DIV/0!"},{"$error":"#DIV/0!"},{"$error":"#DIV/0!"},{"$error":"#DIV/0!"},{"$error":"#DIV/0!"},{"$error":"#DIV/0!"},{"$error":"#DIV/0!"},{"$error":"#DIV/0!"},{"$error":"#DIV/0!"},{"$error":"#DIV/0!"},{"$error":"#DIV/0!"},{"$error":"#DIV/0!"},{"$error":"#DIV/0!"},{"$error":"#DIV/0!"},{"$error":"#DIV/0!"},{"$error":"#DIV/0!"},{"$f":"Z37/SPU_Annual_Total_Energy*100","v":{"$error":"#DIV/0!"}},{"$error":"#DIV/0!"},{"$error":"#DIV/0!"},{"$error":"#DIV/0!"},{"$error":"#DIV/0!"},null,{"$f":"SUMIFS(AG42:BE42,$F$7:$AD$7,Selected_Tariff_ID)","v":{"$error":"#DIV/0!"}},{"$f":"AG37/SPU_Annual_Total_Energy*100","v":{"$error":"#DIV/0!"}},{"$error":"#DIV/0!"},{"$error":"#DIV/0!"},{"$error":"#DIV/0!"},{"$error":"#DIV/0!"},{"$error":"#DIV/0!"},{"$error":"#DIV/0!"},{"$error":"#DIV/0!"},{"$error":"#DIV/0!"},{"$error":"#DIV/0!"},{"$error":"#DIV/0!"},{"$error":"#DIV/0!"},{"$error":"#DIV/0!"},{"$error":"#DIV/0!"},{"$error":"#DIV/0!"},{"$error":"#DIV/0!"},{"$error":"#DIV/0!"},{"$error":"#DIV/0!"},{"$error":"#DIV/0!"},{"$error":"#DIV/0!"},{"$f":"BA37/SPU_Annual_Total_Energy*100","v":{"$error":"#DIV/0!"}},{"$error":"#DIV/0!"},{"$error":"#DIV/0!"},{"$error":"#DIV/0!"},{"$error":"#DIV/0!"}]
[]
[null,"Check tables"]
[null,null,"Table 1: 1 = LPU, 0 = SPU",null,{"$f":"SUMIFS(F45:AD45,$F$7:$AD$7,Selected_Tariff_ID)","v":0},{"$f":"'Rates Table'!F44","v":0},{"$f":"'Rates Table'!G44","v":0},{"$f":"'Rates Table'!H44","v":0},{"$f":"'Rates Table'!I44","v":0},{"$f":"'Rates Table'!J44","v":0},{"$f":"'Rates Table'!K44","v":0},{"$f":"'Rates Table'!L44","v":0},{"$f":"'Rates Table'!M44","v":0},{"$f":"'Rates Table'!N44","v":0},{"$f":"'Rates Table'!O44","v":0},{"$f":"'Rates Table'!P44","v":0},{"$f":"'Rates Table'!Q44","v":0},{"$f":"'Rates Table'!R44","v":0},{"$f":"'Rates Table'!S44","v":0},{"$f":"'Rates Table'!T44","v":0},{"$f":"'Rates Table'!U44","v":0},{"$f":"'Rates Table'!V44","v":0},{"$f":"'Rates Table'!W44","v":0},{"$f":"'Rates Table'!X44","v":0},{"$f":"'Rates Table'!Y44","v":0},{"$f":"'Rates Table'!Z44","v":0},{"$f":"'Rates Table'!AA44","v":0},{"$f":"'Rates Table'!AB44","v":0},{"$f":"'Rates Table'!AC44","v":0},{"$f":"'Rates Table'!AD44","v":0},null,{"$f":"SUMIFS(AG45:BE45,$F$7:$AD$7,Selected_Tariff_ID)","v":0},{"$f":"F45","v":0},0,0,0,0,0,0,0,0,0,{"$f":"P45","v":0},0,0,0,0,0,0,0,0,0,{"$f":"Z45","v":0},{"$f":"AA45","v":0},0,0,0]
[null,null,"Tariff Type",null,{"$f":"Selected_Tariff_Type","v":"Rural"},{"$f":"INDEX(Full_Tariff_Type,F$7,)","v":"Urban"},"Urban","Urban","Urban","Urban","Urban","Urban","Urban","Urban","Urban","Urban","Rural","Rural","Rural","Rural","Rural","Rural","Rural","Urban","Urban","Urban","Urban","Urban","Urban","Urban",null,{"$f":"Selected_Tariff_Type","v":"Rural"},"Urban","Urban","Urban","Urban","Urban","Urban","Urban","Urban","Urban","Urban","Urban","Rural","Rural","Rural","Rural","Rural","Rural","Rural","Urban","Urban",{"$f":"Z46","v":"Urban"},"Urban","Urban","Urban","Urban"]

{"sheet":"Rates SPU - New","index":8,"n_rows":51,"n_cols":29,"rows_kept":51,"cut":false,"hidden":true,"merged":[]}
[]
[]
[]
[null,null,{"$f":"\"Small Power User | Tariff Inputs | \"&New_Period","v":"Small Power User | Tariff Inputs | 2024/25 RTP"}]
[null,null,null,null,null,null,null,null,null,null,null,null,null,null,null,null,null,null,null,null,"Dx NAC"]
[null,null,"Rates - All Other",null,null,null,null,null,"kWhHP","kWhHS","kWhHO","kWhLP","kWhLS","kWhLO","kWhRBlock1","kWhRBlock4","kWhHP","Reliab","DxNDC Energy","DxNDC Energy","NAC POD","SerS",null,"ERS","GCC","Legacy"]
[null,null,"Tariff","Tariff Category","Type","Column1","Code","Matrix Code","High - Peak","High - Standard","High-Off Peak","Low - Peak","Low - Standard","Low-Off Peak","Energy charge Block 1 [c/kWh]","Energy charge Block 2 [c/kWh]","Energy charge [c/kWh]","Ancillary service charge [c/kWh]","Network demand charge [c/kWh]","Network demand charge, Ancillary service charge and retail [c/kWh]","Network capacity charge [R/POD/day]","Service and administration charge [R/POD/day]","Environmental levy charge [c/kWh]","Electrification and rural subsidy [c/kWh]","Generation capacity charge [R/POD/day]","Legacy charge [c/kWh]",null,null,"check"]
[null,null,"Businessrate 1","Non-Local Authority",null,null,{"$f":"C8&\"_\"&D8","v":"Businessrate 1_Non-Local Authority"},{"$f":"INDEX(Matrix_Tariff_Map,MATCH(C8,Matrix_Model_Tariffs,0),2)&IFERROR(INDEX(Matrix_Transmission_Map,MATCH(E8,Matrix_Model_Transmission,0),2),0)&IFERROR(INDEX(Matrix_Voltage_Map,MATCH(F8,Matrix_Model_Voltage,0),2),1)&INDEX(Matrix_Category_Map,MATCH(D8,Matrix_Model_Category,0),2)","v":"B101N"},0,0,0,0,0,0,0,0,188.86,0.36,12.9,null,18.04,13.04,"n/a",4.63,8.82,0]
[null,null,"Businessrate 2","Non-Local Authority",null,null,{"$f":"C9&\"_\"&D9","v":"Businessrate 2_Non-Local Authority"},"B201N",0,0,0,0,0,0,0,0,188.86,0.36,12.9,null,26.8,13.04,"n/a",4.63,13.1,0]
[null,null,"Businessrate 3","Non-Local Authority",null,null,{"$f":"C10&\"_\"&D10","v":"Businessrate 3_Non-Local Authority"},"B301N",0,0,0,0,0,0,0,0,188.86,0.36,12.9,null,66.86,13.04,"n/a",4.63,32.69,0]
[null,null,"Businessrate 4","Non-Local Authority",null,null,{"$f":"C11&\"_\"&D11","v":"Businessrate 4_Non-Local Authority"},"B401N",0,0,0,0,0,0,0,0,317.48,0.36,12.9,null,0,0,"n/a",4.63,0,0]
[null,null,"Homepower Bulk","Non-Local Authority",null,null,{"$f":"C12&\"_\"&D12","v":"Homepower Bulk_Non-Local Authority"},"HB01N",0,0,0,0,0,0,0,0,206.78,0.36,23.39,null,0,12.84,"n/a",0,21.19,0]
[null,null,"Homepower 1","Non-Local Authority",null,null,{"$f":"C13&\"_\"&D13","v":"Homepower 1_Non-Local Authority"},"H101N",0,0,0,0,0,0,null,null,206.78,0.36,23.39,null,10.76,8.7200000000000006,"n/a",0,3.2,0]
[null,null,"Homepower 2","Non-Local Authority",null,null,"Homepower 2_Non-Local Authority","H201N",0,0,0,0,0,0,null,null,206.78,0.36,23.39,null,24.01,8.7200000000000006,"n/a",0,5.65,0]
[null,null,"Homepower 3","Non-Local Authority",null,null,"Homepower 3_Non-Local Authority","H301N",0,0,0,0,0,0,null,null,206.78,0.36,23.39,null,51.29,8.7200000000000006,"n/a",0,13.74,0]
[null,null,"Homepower 4","Non-Local Authority",null,null,"Homepower 4_Non-Local Authority","H401N",0,0,0,0,0,0,null,null,206.78,0.36,23.39,null,7.41,8.7200000000000006,"n/a",0,2.09,0]
[null,null,"Homelight 20A","Non-Local Authority",null,null,"Homelight 20A_Non-Local Authority","HL2001N",0,0,0,0,0,0,null,null,191.69,0,0,null,0,0,"n/a",0,0,0]
[null,null,"Homelight 60A","Non-Local Authority",null,null,"Homelight 60A_Non-Local Authority","HL6001N",0,0,0,0,0,0,null,null,243.68,0,0,null,0,0,"n/a",0,0,0]
[null,null,"Landrate 1","Non-Local Authority",null,null,"Landrate 1_Non-Local Authority","L101N",0,0,0,0,0,0,0,0,202.57,0.36,54.75,null,55.17,21.73,"n/a",0,5.99,0]
[null,null,"Landrate 2","Non-Local Authority",null,null,"Landrate 2_Non-Local Authority","L201N",0,0,0,0,0,0,0,0,202.57,0.36,54.75,null,86.03,21.73,"n/a",0,11.9,0]
[null,null,"Landrate 3","Non-Local Authority",null,null,"Landrate 3_Non-Local Authority","L301N",0,0,0,0,0,0,0,0,202.57,0.36,54.75,null,137.77000000000001,21.73,"n/a",0,23.28,0]
[null,null,"Landrate 4","Non-Local Authority",null,null,"Landrate 4_Non-Local Authority","L401N",0,0,0,0,0,0,0,0,330.64,0.36,54.75,null,40.729999999999997,0,"n/a",0,3.94,0]
[null,null,"Landrate Dx","Non-Local Authority",null,null,"Landrate Dx_Non-Local Authority","Ld01N",0,0,0,0,0,0,0,0,0,0,0,null,0,79.739999999999995,"n/a",0,0,0]
[null,null,"Landlight 20A","Non-Local Authority",null,null,{"$f":"C24&\"_\"&D24","v":"Landlight 20A_Non-Local Authority"},{"$f":"INDEX(Matrix_Tariff_Map,MATCH(C24,Matrix_Model_Tariffs,0),2)&IFERROR(INDEX(Matrix_Transmission_Map,MATCH(E24,Matrix_Model_Transmission,0),2),0)&IFERROR(INDEX(Matrix_Voltage_Map,MATCH(F24,Matrix_Model_Voltage,0),2),1)&INDEX(Matrix_Category_Map,MATCH(D24,Matrix_Model_Category,0),2)","v":"Lt2001N"},0,0,0,0,0,0,0,0,543.6,0,0,null,0,0,"n/a",0,0,0]
[null,null,"Landlight 60A","Non-Local Authority",null,null,"Landlight 60A_Non-Local Authority","Lt6001N",0,0,0,0,0,0,0,0,762.65,0,0,null,0,0,"n/a",0,0,0]
[null,null,"Public Lighting All Night","Non-Local Authority",null,null,"Public Lighting All Night_Non-Local Authority","Pa01N",0,0,0,0,0,0,0,0,206.28,0,0,null,0,0,"n/a",0,0,0]
[null,null,"Public Lighting 24 Hours","Non-Local Authority",null,null,"Public Lighting 24 Hours_Non-Local Authority","Pu01N",0,0,0,0,0,0,0,0,196.47,0,0,null,0,0,"n/a",0,0,0]
[null,null,"Public Lighting Urban Fixed","Non-Local Authority",null,null,"Public Lighting Urban Fixed_Non-Local Authority","Pt01N",0,0,0,0,0,0,0,0,0,0,0,null,0,28.1,"n/a",0,0,0]
[null,null,"Homeflex 1","Non-Local Authority",null,null,"Homeflex 1_Non-Local Authority","HF101N",571.16999999999996,163,115.41,257.24,153.49,115.41,"n/a","n/a","n/a",0.36,23.39,0,10.76,8.7200000000000006,"n/a",0,3.2,20.21]
[null,null,"Homeflex 2","Non-Local Authority",null,null,"Homeflex 2_Non-Local Authority","HF201N",571.16999999999996,163,115.41,257.24,153.49,115.41,"n/a","n/a","n/a",0.36,23.39,0,24.01,8.7200000000000006,"n/a",0,5.65,20.21]
[null,null,"Homeflex 3","Non-Local Authority",null,null,"Homeflex 3_Non-Local Authority","HF301N",571.16999999999996,163,115.41,257.24,153.49,115.41,"n/a","n/a","n/a",0.36,23.39,0,51.29,8.7200000000000006,"n/a",0,13.74,20.21]
[null,null,"Homeflex 4","Non-Local Authority",null,null,"Homeflex 4_Non-Local Authority","HF401N",571.16999999999996,163,115.41,257.24,153.49,115.41,"n/a","n/a","n/a",0.36,23.39,0,7.41,8.7200000000000006,"n/a",0,2.09,20.21]
[null,null,{"$f":"C8","v":"Businessrate 1"},"Local Authority",null,null,"Businessrate 1_Local Authority","Mr101Y",0,0,0,0,0,0,0,0,208.93,0.37,39.049999999999997,null,30.51,16.850000000000001,"n/a","n/a","n/a","n/a"]
[null,null,{"$f":"C9","v":"Businessrate 2"},"Local Authority",null,null,"Businessrate 2_Local Authority","Mr201Y",0,0,0,0,0,0,0,0,208.93,0.37,39.049999999999997,null,61.81,16.850000000000001,"n/a","n/a","n/a","n/a"]
[null,null,{"$f":"C10","v":"Businessrate 3"},"Local Authority",null,null,"Businessrate 3_Local Authority","Mr301Y",0,0,0,0,0,0,0,0,208.93,0.37,39.049999999999997,null,123.79,16.850000000000001,"n/a","n/a","n/a","n/a"]
[null,null,{"$f":"C11","v":"Businessrate 4"},"Local Authority",null,null,"Businessrate 4_Local Authority","Mr401Y",0,0,0,0,0,0,0,0,320.88,0.37,39.049999999999997,null,0,0,"n/a","n/a","n/a","n/a"]
[null,null,"Homepower Bulk","Local Authority",null,null,"Homepower Bulk_Local Authority","HB01Y",0,0,0,0,0,0,0,0,208.93,0.37,39.049999999999997,null,123.79,16.850000000000001,"n/a","n/a","n/a","n/a"]
[null,null,{"$f":"C13","v":"Homepower 1"},"Local Authority",null,null,{"$f":"C38&\"_\"&D38","v":"Homepower 1_Local Authority"},"Mr101Y",0,0,0,0,0,0,0,0,208.93,0.37,39.049999999999997,null,30.51,16.850000000000001,"n/a","n/a","n/a","n/a"]
[null,null,"Homepower 2","Local Authority",null,null,"Homepower 2_Local Authority","Mr201Y",0,0,0,0,0,0,0,0,208.93,0.37,39.049999999999997,null,61.81,16.850000000000001,"n/a","n/a","n/a","n/a"]
[null,null,"Homepower 3","Local Authority",null,null,"Homepower 3_Local Authority","Mr301Y",0,0,0,0,0,0,0,0,208.93,0.37,39.049999999999997,null,123.79,16.850000000000001,"n/a","n/a","n/a","n/a"]
[null,null,"Homepower 4","Local Authority",null,null,"Homepower 4_Local Authority","Mr401Y",0,0,0,0,0,0,0,0,320.88,0.37,39.049999999999997,null,0,0,"n/a","n/a","n/a","n/a"]
[null,null,"Homelight 20A","Local Authority",null,null,"Homelight 20A_Local Authority","HL2001Y",0,0,0,0,0,0,0,0,320.88,0.37,39.049999999999997,null,0,0,"n/a","n/a","n/a","n/a"]
[null,null,"Homelight 60A","Local Authority",null,null,"Homelight 60A_Local Authority","HL6001Y",0,0,0,0,0,0,0,0,320.88,0.37,39.049999999999997,null,0,0,"n/a","n/a","n/a","n/a"]
[null,null,"Landrate 1","Local Authority",null,null,"Landrate 1_Local Authority","Mr101Y",0,0,0,0,0,0,0,0,208.93,0.37,39.049999999999997,null,30.51,16.850000000000001,"n/a","n/a","n/a","n/a"]
[null,null,"Landrate 2","Local Authority",null,null,"Landrate 2_Local Authority","Mr201Y",0,0,0,0,0,0,0,0,208.93,0.37,39.049999999999997,null,61.81,16.850000000000001,"n/a","n/a","n/a","n/a"]
[null,null,"Landrate 3","Local Authority",null,null,"Landrate 3_Local Authority","Mr301Y",0,0,0,0,0,0,0,0,208.93,0.37,39.049999999999997,null,123.79,16.850000000000001,"n/a","n/a","n/a","n/a"]
[null,null,"Landrate 4","Local Authority",null,null,"Landrate 4_Local Authority","Mr401Y",0,0,0,0,0,0,0,0,320.88,0.37,39.049999999999997,null,0,0,"n/a","n/a","n/a","n/a"]
[null,null,"Landrate Dx","Local Authority",null,null,{"$f":"C48&\"_\"&D48","v":"Landrate Dx_Local Authority"},"Ld01Y",0,0,0,0,0,0,0,0,0,0,0,null,0,27.607507188,"n/a","n/a","n/a","n/a"]
[null,null,"Public Lighting All Night","Local Authority",null,null,{"$f":"C49&\"_\"&D49","v":"Public Lighting All Night_Local Authority"},{"$f":"INDEX(Matrix_Tariff_Map,MATCH(C49,Matrix_Model_Tariffs,0),2)&IFERROR(INDEX(Matrix_Transmission_Map,MATCH(E49,Matrix_Model_Transmission,0),2),0)&IFERROR(INDEX(Matrix_Voltage_Map,MATCH(F49,Matrix_Model_Voltage,0),2),1)&INDEX(Matrix_Category_Map,MATCH(D49,Matrix_Model_Category,0),2)","v":"Pa01Y"},0,0,0,0,0,0,0,0,227.65,0,0,null,0,0,"n/a","n/a","n/a","n/a"]
[null,null,"Public Lighting 24 Hours","Local Authority",null,null,{"$f":"C50&\"_\"&D50","v":"Public Lighting 24 Hours_Local Authority"},{"$f":"INDEX(Matrix_Tariff_Map,MATCH(C50,Matrix_Model_Tariffs,0),2)&IFERROR(INDEX(Matrix_Transmission_Map,MATCH(E50,Matrix_Model_Transmission,0),2),0)&IFERROR(INDEX(Matrix_Voltage_Map,MATCH(F50,Matrix_Model_Voltage,0),2),1)&INDEX(Matrix_Category_Map,MATCH(D50,Matrix_Model_Category,0),2)","v":"Pu01Y"},0,0,0,0,0,0,0,0,196.38,0,0,null,0,0,"n/a","n/a","n/a","n/a"]
[null,null,"Public Lighting Urban Fixed","Local Authority",null,null,{"$f":"C51&\"_\"&D51","v":"Public Lighting Urban Fixed_Local Authority"},{"$f":"INDEX(Matrix_Tariff_Map,MATCH(C51,Matrix_Model_Tariffs,0),2)&IFERROR(INDEX(Matrix_Transmission_Map,MATCH(E51,Matrix_Model_Transmission,0),2),0)&IFERROR(INDEX(Matrix_Voltage_Map,MATCH(F51,Matrix_Model_Voltage,0),2),1)&INDEX(Matrix_Category_Map,MATCH(D51,Matrix_Model_Category,0),2)","v":"Pt01Y"},0,0,0,0,0,0,0,0,0,0,0,null,0,27.607507188,"n/a","n/a","n/a","n/a"]

{"sheet":"Rates SPU - Current","index":9,"n_rows":51,"n_cols":23,"rows_kept":51,"cut":false,"hidden":true,"merged":[]}
[]
[]
[]
[null,null,{"$f":"\"Small Power User | Tariff Inputs | \"&Current_Period","v":"Small Power User | Tariff Inputs | 2024/25 Tariff Book"}]
[null,null,null,null,null,null,null,null,null,null,null,null,null,null,null,null,null,null,null,null,"Dx NAC"]
[null,null,"Rates - All Other",null,null,null,null,null,"kWhHP","kWhHS","kWhHO","kWhLP","kWhLS","kWhLO","kWhRBlock1","kWhRBlock4","kWhHP","Reliab","DxNDC Energy","DxNDC Energy","NAC POD","SerS"]
[null,null,"Tariff","Tariff Category","Type","Column1","Code","Matrix Code","High - Peak","High - Standard","High-Off Peak","Low - Peak","Low - Standard","Low-Off Peak","Energy charge Block 1 [c/kWh]","Energy charge Block 2 [c/kWh]","Energy charge [c/kWh]","Ancillary service charge [c/kWh]","Network demand charge [c/kWh]","Network demand charge, Ancillary service charge and retail [c/kWh]","Network capacity charge [R/POD/day]","Service and administration charge [R/POD/day]","Environmental levy charge [c/kWh]"]
[null,null,"Businessrate 1","Non-Local Authority",null,null,{"$f":"C8&\"_\"&D8","v":"Businessrate 1_Non-Local Authority"},{"$f":"INDEX(Matrix_Tariff_Map,MATCH(C8,Matrix_Model_Tariffs,0),2)&IFERROR(INDEX(Matrix_Transmission_Map,MATCH(E8,Matrix_Model_Transmission,0),2),0)&IFERROR(INDEX(Matrix_Voltage_Map,MATCH(F8,Matrix_Model_Voltage,0),2),1)&INDEX(Matrix_Category_Map,MATCH(D8,Matrix_Model_Category,0),2)","v":"B101N"},0,0,0,0,0,0,0,0,209.5,0.8,29.57,null,42.47,36.71,"n/a"]
[null,null,"Businessrate 2","Non-Local Authority",null,null,{"$f":"C9&\"_\"&D9","v":"Businessrate 2_Non-Local Authority"},"B201N",0,0,0,0,0,0,0,0,209.5,0.8,29.57,null,71.569999999999993,36.71,"n/a"]
[null,null,"Businessrate 3","Non-Local Authority",null,null,{"$f":"C10&\"_\"&D10","v":"Businessrate 3_Non-Local Authority"},"B301N",0,0,0,0,0,0,0,0,209.5,0.8,29.57,null,123.64,36.71,"n/a"]
[null,null,"Businessrate 4","Non-Local Authority",null,null,{"$f":"C11&\"_\"&D11","v":"Businessrate 4_Non-Local Authority"},"B401N",0,0,0,0,0,0,0,0,563.80999999999995,0.8,29.57,null,0,0,"n/a"]
[null,null,"Homepower Bulk","Non-Local Authority",null,null,{"$f":"C12&\"_\"&D12","v":"Homepower Bulk_Non-Local Authority"},"HB01N",0,0,0,0,0,0,0,0,322.39,0,0,null,66.72,0,"n/a"]
[null,null,"Homepower 1","Non-Local Authority",null,null,{"$f":"C13&\"_\"&D13","v":"Homepower 1_Non-Local Authority"},"H101N",0,0,0,0,0,0,245.54,387.72,0,0,0,null,10.52,0,"n/a"]
[null,null,"Homepower 2","Non-Local Authority",null,null,"Homepower 2_Non-Local Authority","H201N",0,0,0,0,0,0,245.54,378.05,0,0,0,null,19.71,0,"n/a"]
[null,null,"Homepower 3","Non-Local Authority",null,null,"Homepower 3_Non-Local Authority","H301N",0,0,0,0,0,0,245.54,378.05,0,0,0,null,40.69,0,"n/a"]
[null,null,"Homepower 4","Non-Local Authority",null,null,"Homepower 4_Non-Local Authority","H401N",0,0,0,0,0,0,245.54,394.86,0,0,0,null,6.43,0,"n/a"]
[null,null,"Homelight 20A","Non-Local Authority",null,null,"Homelight 20A_Non-Local Authority","HL2001N",0,0,0,0,0,0,190.28,215.62,0,0,0,null,0,0,"n/a"]
[null,null,"Homelight 60A","Non-Local Authority",null,null,"Homelight 60A_Non-Local Authority","HL6001N",0,0,0,0,0,0,232.31,394.86,0,0,0,null,0,0,"n/a"]
[null,null,"Landrate 1","Non-Local Authority",null,null,"Landrate 1_Non-Local Authority","L101N",0,0,0,0,0,0,0,0,208.48,0.8,52.09,null,55.68,46.25,"n/a"]
[null,null,"Landrate 2","Non-Local Authority",null,null,"Landrate 2_Non-Local Authority","L201N",0,0,0,0,0,0,0,0,208.48,0.8,52.09,null,85.59,46.25,"n/a"]
[null,null,"Landrate 3","Non-Local Authority",null,null,"Landrate 3_Non-Local Authority","L301N",0,0,0,0,0,0,0,0,208.48,0.8,52.09,null,136.84,46.25,"n/a"]
[null,null,"Landrate 4","Non-Local Authority",null,null,"Landrate 4_Non-Local Authority","L401N",0,0,0,0,0,0,0,0,450.29,0.8,52.09,null,44.34,0,"n/a"]
[null,null,"Landrate Dx","Non-Local Authority",null,null,"Landrate Dx_Non-Local Authority","Ld01N",0,0,0,0,0,0,0,0,0,0,0,null,0,99.18,"n/a"]
[null,null,"Landlight 20A","Non-Local Authority",null,null,{"$f":"C24&\"_\"&D24","v":"Landlight 20A_Non-Local Authority"},"Lt2001N",0,0,0,0,0,0,0,0,599.48,0,0,null,0,0,"n/a"]
[null,null,"Landlight 60A","Non-Local Authority",null,null,"Landlight 60A_Non-Local Authority",{"$f":"INDEX(Matrix_Tariff_Map,MATCH(C25,Matrix_Model_Tariffs,0),2)&IFERROR(INDEX(Matrix_Transmission_Map,MATCH(E25,Matrix_Model_Transmission,0),2),0)&IFERROR(INDEX(Matrix_Voltage_Map,MATCH(F25,Matrix_Model_Voltage,0),2),1)&INDEX(Matrix_Category_Map,MATCH(D25,Matrix_Model_Category,0),2)","v":"Lt6001N"},0,0,0,0,0,0,0,0,772.81,0,0,null,0,0,"n/a"]
[null,null,"Public Lighting All Night","Non-Local Authority",null,null,"Public Lighting All Night_Non-Local Authority","Pa01N",0,0,0,0,0,0,0,0,166.73,0,0,null,0,0,"n/a"]
[null,null,"Public Lighting 24 Hours","Non-Local Authority",null,null,"Public Lighting 24 Hours_Non-Local Authority","Pu01N",0,0,0,0,0,0,0,0,223.24,0,0,null,0,0,"n/a"]
[null,null,"Public Lighting Urban Fixed","Non-Local Authority",null,null,"Public Lighting Urban Fixed_Non-Local Authority","Pt01N",0,0,0,0,0,0,0,0,0,0,0,null,0,10.96,"n/a"]
[null,null,"Homeflex 1","Non-Local Authority",null,null,"Homeflex 1_Non-Local Authority","HF101N",611.94000000000005,186.18,101.66,200.38,138.26,88.15,0,0,0,0,null,126.39,10.52,null,"n/a"]
[null,null,"Homeflex 2","Non-Local Authority",null,null,"Homeflex 2_Non-Local Authority","HF201N",611.94000000000005,186.18,101.66,200.38,138.26,88.15,0,0,0,0,null,126.39,19.71,null,"n/a"]
[null,null,"Homeflex 3","Non-Local Authority",null,null,"Homeflex 3_Non-Local Authority","HF301N",611.94000000000005,186.18,101.66,200.38,138.26,88.15,0,0,0,0,null,126.39,40.69,null,"n/a"]
[null,null,"Homeflex 4","Non-Local Authority",null,null,"Homeflex 4_Non-Local Authority","HF401N",611.94000000000005,186.18,101.66,200.38,138.26,88.15,0,0,0,0,null,126.39,6.43,null,"n/a"]
[null,null,{"$f":"C8","v":"Businessrate 1"},"Local Authority",null,null,"Businessrate 1_Local Authority","B101Y",0,0,0,0,0,0,0,0,217.08,0.82,30.1,null,43.14,36.94,"n/a"]
[null,null,"Businessrate 2","Local Authority",null,null,"Businessrate 2_Local Authority","B201Y",0,0,0,0,0,0,0,0,217.08,0.82,30.1,null,72.760000000000005,36.94,"n/a"]
[null,null,"Businessrate 3","Local Authority",null,null,"Businessrate 3_Local Authority","B301Y",0,0,0,0,0,0,0,0,217.08,0.82,30.1,null,125.73,36.94,"n/a"]
[null,null,"Businessrate 4","Local Authority",null,null,"Businessrate 4_Local Authority","B401Y",0,0,0,0,0,0,0,0,584.16999999999996,0.82,30.1,null,0,0,"n/a"]
[null,null,"Homepower Bulk","Local Authority",null,null,"Homepower Bulk_Local Authority","HB01Y",0,0,0,0,0,0,0,0,0,0,0,null,0,0,"n/a"]
[null,null,"Homepower 1","Local Authority",null,null,{"$f":"C38&\"_\"&D38","v":"Homepower 1_Local Authority"},"H101Y",0,0,0,0,0,0,248.51,392.39,0,0,0,null,10.63,0,"n/a"]
[null,null,"Homepower 2","Local Authority",null,null,"Homepower 2_Local Authority","H201Y",0,0,0,0,0,0,248.51,382.55,0,0,0,null,19.940000000000001,0,"n/a"]
[null,null,"Homepower 3","Local Authority",null,null,"Homepower 3_Local Authority","H301Y",0,0,0,0,0,0,248.51,382.55,0,0,0,null,41.2,0,"n/a"]
[null,null,"Homepower 4","Local Authority",null,null,"Homepower 4_Local Authority","H401Y",0,0,0,0,0,0,248.51,399.61,0,0,0,null,6.52,0,"n/a"]
[null,null,"Homelight 20A","Local Authority",null,null,"Homelight 20A_Local Authority","HL2001Y",0,0,0,0,0,0,0,0,0,0,0,null,0,0,"n/a"]
[null,null,"Homelight 60A","Local Authority",null,null,"Homelight 60A_Local Authority","HL6001Y",0,0,0,0,0,0,0,0,0,0,0,null,0,0,"n/a"]
[null,null,"Landrate 1","Local Authority",null,null,"Landrate 1_Local Authority","L101Y",0,0,0,0,0,0,0,0,216.01,0.82,53.25,null,56.87,46.54,"n/a"]
[null,null,"Landrate 2","Local Authority",null,null,"Landrate 2_Local Authority","L201Y",0,0,0,0,0,0,0,0,216.01,0.82,53.25,null,87.4,46.54,"n/a"]
[null,null,"Landrate 3","Local Authority",null,null,"Landrate 3_Local Authority","L301Y",0,0,0,0,0,0,0,0,216.01,0.82,53.25,null,139.77000000000001,46.54,"n/a"]
[null,null,"Landrate 4","Local Authority",null,null,"Landrate 4_Local Authority","L401Y",0,0,0,0,0,0,0,0,466.55,0.82,53.25,null,45.29,0,"n/a"]
[null,null,"Landrate Dx","Local Authority",null,null,{"$f":"C48&\"_\"&D48","v":"Landrate Dx_Local Authority"},"Ld01Y",0,0,0,0,0,0,0,0,0,0,0,null,0,100.71,"n/a"]
[null,null,"Public Lighting All Night","Local Authority",null,null,{"$f":"C49&\"_\"&D49","v":"Public Lighting All Night_Local Authority"},{"$f":"INDEX(Matrix_Tariff_Map,MATCH(C49,Matrix_Model_Tariffs,0),2)&IFERROR(INDEX(Matrix_Transmission_Map,MATCH(E49,Matrix_Model_Transmission,0),2),0)&IFERROR(INDEX(Matrix_Voltage_Map,MATCH(F49,Matrix_Model_Voltage,0),2),1)&INDEX(Matrix_Category_Map,MATCH(D49,Matrix_Model_Category,0),2)","v":"Pa01Y"},0,0,0,0,0,0,0,0,175.23,0,0,null,0,0,"n/a"]
[null,null,"Public Lighting 24 Hours","Local Authority",null,null,{"$f":"C50&\"_\"&D50","v":"Public Lighting 24 Hours_Local Authority"},{"$f":"INDEX(Matrix_Tariff_Map,MATCH(C50,Matrix_Model_Tariffs,0),2)&IFERROR(INDEX(Matrix_Transmission_Map,MATCH(E50,Matrix_Model_Transmission,0),2),0)&IFERROR(INDEX(Matrix_Voltage_Map,MATCH(F50,Matrix_Model_Voltage,0),2),1)&INDEX(Matrix_Category_Map,MATCH(D50,Matrix_Model_Category,0),2)","v":"Pu01Y"},0,0,0,0,0,0,0,0,234.64,0,0,null,0,0,"n/a"]
[null,null,"Public Lighting Urban Fixed","Local Authority",null,null,{"$f":"C51&\"_\"&D51","v":"Public Lighting Urban Fixed_Local Authority"},{"$f":"INDEX(Matrix_Tariff_Map,MATCH(C51,Matrix_Model_Tariffs,0),2)&IFERROR(INDEX(Matrix_Transmission_Map,MATCH(E51,Matrix_Model_Transmission,0),2),0)&IFERROR(INDEX(Matrix_Voltage_Map,MATCH(F51,Matrix_Model_Voltage,0),2),1)&INDEX(Matrix_Category_Map,MATCH(D51,Matrix_Model_Category,0),2)","v":"Pt01Y"},0,0,0,0,0,0,0,0,0,0,0,null,0,11.52,"n/a"]

{"sheet":"Mapping","index":10,"n_rows":43,"n_cols":7,"rows_kept":43,"cut":false,"hidden":true,"merged":[]}
[]
[]
[]
[null,"Mapping"]
[]
[]
[null,"Model Tariffs","Matrix Code","Munic RTP Tariff",null,"Model Transmission Zone","Matrix Code"]
[null,{"$f":"Lists!B17","v":"Businessrate 1"},"B1","Municrate 1",null,"Not Applicable",0]
[null,{"$f":"Lists!B18","v":"Businessrate 2"},"B2","Municrate 2",null,{"$f":"Lists!C94","v":"[0 - 300km]"},0]
[null,{"$f":"Lists!B19","v":"Businessrate 3"},"B3","Municrate 3",null,{"$f":"Lists!C95","v":"[301 - 600km]"},1]
[null,{"$f":"Lists!B20","v":"Businessrate 4"},"B4","Municrate 4",null,{"$f":"Lists!C96","v":"[601 - 900km]"},2]
[null,{"$f":"Lists!B21","v":"Homelight 20A"},"HL20",null,null,{"$f":"Lists!C97","v":"[> 900km]"},3]
[null,{"$f":"Lists!B22","v":"Homelight 60A"},"HL60"]
[null,{"$f":"Lists!B23","v":"Homepower 1"},"H1","Municrate 1"]
[null,{"$f":"Lists!B24","v":"Homepower 2"},"H2","Municrate 2",null,"Model Voltage","Matrix Code"]
[null,{"$f":"Lists!B25","v":"Homepower 3"},"H3","Municrate 3",null,{"$f":"Lists!C77","v":"< 500V"},1]
[null,{"$f":"Lists!B26","v":"Homepower 4"},"H4","Municrate 4",null,{"$f":"Lists!C78","v":"≥ 500V & < 66kV"},2]
[null,{"$f":"Lists!B27","v":"Homepower Bulk"},"HB",null,null,{"$f":"Lists!C79","v":"≥ 66kV & ≤ 132kV"},3]
[null,{"$f":"Lists!B28","v":"Landrate 1"},"L1","Municrate 1",null,{"$f":"Lists!C80","v":"> 132kV"},4]
[null,{"$f":"Lists!B29","v":"Landrate 2"},"L2","Municrate 2"]
[null,{"$f":"Lists!B30","v":"Landrate 3"},"L3","Municrate 3",null,"Model Category","Matrix Code"]
[null,{"$f":"Lists!B31","v":"Landrate 4"},"L4","Municrate 4",null,{"$f":"Lists!L37","v":"Non-Local Authority"},"N"]
[null,{"$f":"Lists!B32","v":"Landrate Dx"},"Ld",null,null,{"$f":"Lists!L38","v":"Local Authority"},"Y"]
[null,"Landlight 20A","Lt20"]
[null,"Landlight 60A","Lt60"]
[null,"Public Lighting All Night","Pa","Public Lighting All Night"]
[null,"Public Lighting 24 Hours","Pu","Public Lighting 24 Hours"]
[null,"Public Lighting Urban Fixed","Pt","Public Lighting Urban Fixed"]
[null,{"$f":"Lists!B38","v":"Megaflex"},"Me"]
[null,{"$f":"Lists!B39","v":"Miniflex"},"Mi"]
[null,{"$f":"Lists!B40","v":"Nightsave Large"},"NL"]
[null,{"$f":"Lists!B41","v":"Nightsave Rural"},"NR"]
[null,{"$f":"Lists!B42","v":"Nightsave Small"},"NS"]
[null,{"$f":"Lists!B43","v":"Ruraflex"},"Ru"]
[null,"Municflex","Mf"]
[null,"Municrate 1","Mr1"]
[null,"Municrate 2","Mr2"]
[null,"Municrate 3","Mr3"]
[null,"Municrate 4","Mr4"]
[null,"Homeflex 1","HF1"]
[null,"Homeflex 2","HF2"]
[null,"Homeflex 3","HF3"]
[null,"Homeflex 4","HF4"]

{"sheet":"Lists","index":11,"n_rows":115,"n_cols":29,"rows_kept":115,"cut":false,"hidden":true,"merged":[[54,17,54,28],[82,17,82,28]]}
[]
[]
[]
[null,"Model Lists"]
[]
[null,"Selections","Dropbox ID","Description","ID",null,null,null,null,null,"Description","Dates","Units",null,"Customer Category","Tariff Category ID"]
[null,"Selected Tariff Category",1,{"$f":"INDEX(Tariff_Category_List,Dropdown_Category)","v":"Non-Local Authority"},{"$f":"MATCH(D7,Tariff_Category_List,0)","v":1},{"$f":"Selected_Tariff_Category_ID","v":1},null,null,null,null,"ESKOM Financial Year End","2025-03-31","dd-mmm-yy",null,"Small Power User",1]
[null,"Selected Customer Category",1,{"$f":"INDEX(Customer_Category_List,Dropdown_Customer)","v":"Small Power User"},{"$f":"MATCH(D8,Customer_Category_List,0)","v":1},null,null,null,null,null,"Municipality Financial Year End",{"$f":"EOMONTH(ESKOM_Period,3)","v":"2025-06-30"},"dd-mmm-yy",null,"Large Power User",2]
[null,"Selected Supply Size",1,{"$f":"INDEX(Capacity_List,Dropdown_Supply)","v":"5kVA, 16kVA, 20A or 60A"},{"$f":"MATCH(D9,Capacity_List,0)","v":1},null,null,null,null,null,"Current Period","2024/25 Tariff Book"]
[null,"Selected Base Tariff",7,{"$f":"INDEX(Supply_Tariff_List,MIN(Dropdown_Tariff,Supply_Tariff_List_Count),0)","v":"Landrate 1"},{"$f":"MATCH(D10,Full_Tariff_List,0)","v":12},null,null,null,null,null,"New Period","2024/25 RTP",null,null,"SPU Capacity","Capacity ID"]
[null,"Selected Tariff Type",null,{"$f":"'Monthly Average Bill'!D15","v":"Rural"},{"$f":"IF(Selected_Tariff_Type=\"Rural\",2,1)","v":2},null,null,null,null,null,"Total Days",30.416666666666668,null,null,"5kVA, 16kVA, 20A or 60A",1]
[null,"Selected Supply Voltage",1,{"$f":"INDEX(Voltage_List,MIN(Dropdown_Voltage,Voltage_List_Count))","v":"< 500V"},{"$f":"MATCH(D12,Voltage_List,0)","v":1},null,null,null,null,null,null,null,null,null,"25kVA",2]
[null,"Selected transmission zone",1,{"$f":"INDEX(Transmission_List,MIN(Dropdown_Zone,Transmission_List_Count))","v":"Not Applicable"},{"$f":"MATCH(D13,Transmission_List,0)","v":1},null,null,null,null,null,"VAT",0.15,null,null,"32kVA",3]
[null,"Time of Use Toggle",null,null,{"$f":"IF(Selected_Customer_Category_ID=1,0,1)","v":0},null,null,null,null,null,null,null,null,null,"50kVA",4]
[null,null,null,null,null,null,null,null,null,null,null,null,null,null,">50kVA",5]
[null,"Tariffs","Base Tariff","Tariff Variant","Type","Base Tariff ID","Tariff ID","RTP Tariff",null,"Base Tariffs","Type","Long Type","Base Tariff ID"]
[null,{"$f":"IF(D17=\"\",C17,C17&\" \"&D17)","v":"Businessrate 1"},"Businessrate",1,{"$f":"INDEX(Base_Tariff_Type,F17)","v":"Urban"},{"$f":"MATCH(C17,Base_Tariff_List,0)","v":1},1,"Municrate 1",null,"Businessrate","Urban","Commercial Urban",1]
[null,{"$f":"IF(D18=\"\",C18,C18&\" \"&D18)","v":"Businessrate 2"},"Businessrate",2,"Urban",1,2,"Municrate 2",null,"Homelight","Urban","Residential Urban",2]
[null,"Businessrate 3","Businessrate",3,"Urban",1,3,"Municrate 3",null,"Homepower","Urban","Residential Urban",3]
[null,"Businessrate 4","Businessrate",4,"Urban",1,4,"Municrate 4",null,"Landrate","Rural","Rural",4,null,"LPU Capacity","Capacity ID"]
[null,"Homelight 20A","Homelight","20A","Urban",2,5,null,null,"Megaflex","Urban","Commercial Urban",5,null,"≤100kVA",1]
[null,"Homelight 60A","Homelight","60A","Urban",2,6,null,null,"Miniflex","Urban","Commercial Urban",6,null,">100kVA & ≤500kVA",2]
[null,"Homepower 1","Homepower",1,"Urban",3,7,"Municrate 1",null,"Nightsave Large","Urban","Commercial Urban",7,null,">500kVA & ≤1MVA",3]
[null,"Homepower 2","Homepower",2,"Urban",3,8,"Municrate 2",null,"Nightsave Rural","Rural","Rural",8,null,">1MVA & ≤5MVA",4]
[null,"Homepower 3","Homepower",3,"Urban",3,9,"Municrate 3",null,"Nightsave Small","Urban","Commercial Urban",9,null,">5MVA",5]
[null,"Homepower 4","Homepower",4,"Urban",3,10,"Municrate 4",null,"Ruraflex","Rural","Rural",10,null,"Key customer",6]
[null,"Homepower Bulk","Homepower","Bulk","Urban",3,11,null,null,"Public Lighting","Urban","Commercial Urban",11]
[null,"Landrate 1","Landrate",1,"Rural",4,12,"Municrate 1",null,"Municflex","Urban","Commercial Urban",12,null,"Capacity","Capacity ID"]
[null,"Landrate 2","Landrate",2,"Rural",4,13,"Municrate 2",null,"Municrate","Urban","Residential Urban",13,null,{"$f":"IFERROR(IF(Selected_Customer_Category_ID=1,INDEX(Capacity_SPU_List,P29,0),INDEX(Capacity_LPU_List,P29,0)),\"\")","v":"5kVA, 16kVA, 20A or 60A"},1]
[null,"Landrate 3","Landrate",3,"Rural",4,14,"Municrate 3",null,"Homeflex","Urban","Residential Urban",14,null,"25kVA",2]
[null,"Landrate 4","Landrate",4,"Rural",4,15,"Municrate 4",null,null,null,null,null,null,"32kVA",3]
[null,"Landrate Dx","Landrate","Dx","Rural",4,16,null,null,null,null,null,null,null,"50kVA",4]
[null,"Landlight 20A","Landrate","Dx",{"$f":"INDEX(Base_Tariff_Type,F33)","v":"Rural"},{"$f":"MATCH(C33,Base_Tariff_List,0)","v":4},17,null,null,null,null,null,null,null,">50kVA",5]
[null,"Landlight 60A","Landrate","Dx",{"$f":"INDEX(Base_Tariff_Type,F34)","v":"Rural"},{"$f":"MATCH(C34,Base_Tariff_List,0)","v":4},18,null,null,null,null,null,null,null,"",6]
[null,"Public Lighting All Night","Public Lighting","All Night",{"$f":"INDEX(Base_Tariff_Type,F35)","v":"Urban"},11,19,"Public Lighting All Night"]
[null,"Public Lighting 24 Hours","Public Lighting","24 Hours",{"$f":"INDEX(Base_Tariff_Type,F36)","v":"Urban"},11,20,"Public Lighting 24 Hours",null,null,null,"Tariff Category","Tariff Category ID",null,"Capacity List Count",{"$f":"IF(Selected_Customer_Category_ID=1,COUNTA(Capacity_SPU_List),COUNTA(Capacity_LPU_List))","v":5}]
[null,"Public Lighting Urban Fixed","Public Lighting","Urban Fixed",{"$f":"INDEX(Base_Tariff_Type,F37)","v":"Urban"},11,21,"Public Lighting Urban Fixed",null,null,null,"Non-Local Authority",1]
[null,{"$f":"IF(D38=\"\",C38,C38&\" \"&D38)","v":"Megaflex"},"Megaflex",null,{"$f":"INDEX(Base_Tariff_Type,F38)","v":"Urban"},{"$f":"MATCH(C38,Base_Tariff_List,0)","v":5},22,null,null,null,null,"Local Authority",2]
[null,"Miniflex","Miniflex",null,"Urban",6,23]
[null,"Nightsave Large","Nightsave Large",null,"Urban",7,24]
[null,"Nightsave Rural","Nightsave Rural",null,"Rural",8,25,null,null,null,null,"Tariffs","Block 1 kWh"]
[null,"Nightsave Small","Nightsave Small",null,"Urban",9,26,null,null,null,null,"Homelight 20A",350]
[null,"Ruraflex","Ruraflex",null,"Rural",10,27,null,null,null,null,"Homelight 60A",600]
[null,"Municflex","Municflex",null,"Urban",12,28,null,null,null,null,"Homepower",600]
[null,"Municrate 1","Municrate",1,"Urban",13,29]
[null,"Municrate 2","Municrate",2,"Urban",13,30]
[null,"Municrate 3","Municrate",3,"Urban",13,31]
[null,"Municrate 4","Municrate",4,"Urban",13,32]
[null,"Homeflex 1","Homeflex",1,"Urban",14,33]
[null,"Homeflex 2","Homeflex",2,"Urban",14,34]
[null,"Homeflex 3","Homeflex",3,"Urban",14,35]
[null,"Homeflex 4","Homeflex",4,"Urban",14,36]
[]
[]
[null,"Selection Tables","LPU Selections",null,null,null,null,null,null,null,"SPU Selections",null,null,null,null,null,null,"Non Munic"]
[null,{"$f":"IF(Selected_Customer_Category_ID=1,INDEX(K56:P56,0,Selected_Supply_Size_ID),INDEX(C56:I56,Selected_Supply_Size_ID))","v":"5kVA, 16kVA, 20A or 60A"},{"$f":"$O21","v":"≤100kVA"},{"$f":"$O22","v":">100kVA & ≤500kVA"},{"$f":"$O23","v":">500kVA & ≤1MVA"},{"$f":"$O24","v":">1MVA & ≤5MVA"},{"$f":"$O25","v":">5MVA"},null,{"$f":"$O26","v":"Key customer"},null,{"$f":"$O11","v":"5kVA, 16kVA, 20A or 60A"},{"$f":"$O12","v":"25kVA"},{"$f":"$O13","v":"32kVA"},{"$f":"$O14","v":"50kVA"},{"$f":"$O15","v":">50kVA"},null,null,{"$f":"$O21","v":"≤100kVA"},{"$f":"$O22","v":">100kVA & ≤500kVA"},{"$f":"$O23","v":">500kVA & ≤1MVA"},{"$f":"$O24","v":">1MVA & ≤5MVA"},{"$f":"$O25","v":">5MVA"},{"$f":"$O26","v":"Key customer"},null,{"$f":"$O11","v":"5kVA, 16kVA, 20A or 60A"},{"$f":"$O12","v":"25kVA"},{"$f":"$O13","v":"32kVA"},{"$f":"$O14","v":"50kVA"},{"$f":"$O15","v":">50kVA"}]
[null,{"$f":"INDEX(K57:O57,0,Selected_Supply_Size_ID)","v":"Businessrate 1"},"Ruraflex","Ruraflex","Ruraflex","Ruraflex","Ruraflex",null,{"$f":"F57","v":"Ruraflex"},null,{"$f":"IF(IF(Dropdown_Category = 1, Y57, Y85) = 0, \"\", IF(Dropdown_Category = 1, Y57, Y85))","v":"Businessrate 1"},{"$f":"IF(IF(Dropdown_Category = 1, Z57, Z85) = 0, \"\", IF(Dropdown_Category = 1, Z57, Z85))","v":"Businessrate 1"},{"$f":"IF(IF(Dropdown_Category = 1, AA57, AA85) = 0, \"\", IF(Dropdown_Category = 1, AA57, AA85))","v":"Businessrate 1"},{"$f":"IF(IF(Dropdown_Category = 1, AB57, AB85) = 0, \"\", IF(Dropdown_Category = 1, AB57, AB85))","v":"Businessrate 2"},{"$f":"IF(IF(Dropdown_Category = 1, AC57, AC85) = 0, \"\", IF(Dropdown_Category = 1, AC57, AC85))","v":"Businessrate 2"},null,null,"Ruraflex","Ruraflex","Ruraflex","Ruraflex","Ruraflex",{"$f":"U57","v":"Ruraflex"},null,"Businessrate 1","Businessrate 1","Businessrate 1","Businessrate 2","Businessrate 2"]
[null,"Businessrate 4","Miniflex","Miniflex","Miniflex","Miniflex","Nightsave Large",null,"Nightsave Large",null,"Businessrate 4","Businessrate 4","Businessrate 4","Homepower 2","Businessrate 3",null,null,"Miniflex","Miniflex","Miniflex","Miniflex","Nightsave Large","Nightsave Large",null,"Businessrate 4","Businessrate 4","Businessrate 4","Homepower 2","Businessrate 3"]
[null,"Homepower 4","Nightsave Small","Nightsave Small","Nightsave Small","Nightsave Large","Megaflex",null,"Megaflex",null,"Homepower 4","Homepower 1","Homepower 1","Landrate 2","Homepower 2",null,null,"Nightsave Small","Nightsave Small","Nightsave Small","Nightsave Large","Megaflex","Megaflex",null,"Homepower 4","Homepower 1","Homepower 1","Landrate 2","Homepower 2"]
[null,"Homelight 20A","Nightsave Rural","Nightsave Rural","Nightsave Rural","Megaflex","Nightsave Rural",null,"Nightsave Rural",null,"Homelight 20A","Landrate 1","Landrate 1","Homepower Bulk","Homepower 3",null,null,"Nightsave Rural","Nightsave Rural","Nightsave Rural","Megaflex","Nightsave Rural","Nightsave Rural",null,"Homelight 20A","Landrate 1","Landrate 1","Homepower Bulk","Homepower 3"]
[null,"Homelight 60A","Homepower Bulk","Homepower Bulk","Homepower Bulk","Nightsave Rural",null,null,null,null,"Homelight 60A","Homeflex 1","Homeflex 1","Homeflex 2","Landrate 2",null,null,"Homepower Bulk","Homepower Bulk","Homepower Bulk","Nightsave Rural",null,null,null,"Homelight 60A","Homeflex 1","Homeflex 1","Homeflex 2","Landrate 2"]
[null,"Homeflex 4",null,null,null,null,null,null,null,null,"Homeflex 4","","","","Landrate 3",null,null,null,null,null,null,null,null,null,"Homeflex 4",null,null,null,"Landrate 3"]
[null,"Landrate 1",null,null,null,null,null,null,null,null,"Landrate 1","","","","Homepower Bulk",null,null,null,null,null,null,null,null,null,"Landrate 1",null,null,null,"Homepower Bulk"]
[null,"Landrate 4",null,null,null,null,null,null,null,null,"Landrate 4","","","","Homeflex 2",null,null,null,null,null,null,null,null,null,"Landrate 4",null,null,null,"Homeflex 2"]
[null,"Landrate Dx",null,null,null,null,null,null,null,null,"Landrate Dx","","","","Homeflex 3",null,null,null,null,null,null,null,null,null,"Landrate Dx",null,null,null,"Homeflex 3"]
[null,"Landlight 20A",null,null,null,null,null,null,null,null,"Landlight 20A","","","","",null,null,null,null,null,null,null,null,null,"Landlight 20A"]
[null,"Landlight 60A",null,null,null,null,null,null,null,null,"Landlight 60A","","","","",null,null,null,null,null,null,null,null,null,"Landlight 60A"]
[null,"Public Lighting All Night",null,null,null,null,null,null,null,null,"Public Lighting All Night","","","","",null,null,null,null,null,null,null,null,null,"Public Lighting All Night"]
[null,"Public Lighting 24 Hours",null,null,null,null,null,null,null,null,"Public Lighting 24 Hours","","","","",null,null,null,null,null,null,null,null,null,"Public Lighting 24 Hours"]
[null,"Public Lighting Urban Fixed",null,null,null,null,null,null,null,null,"Public Lighting Urban Fixed","","","","",null,null,null,null,null,null,null,null,null,"Public Lighting Urban Fixed"]
[]
[]
[null,{"$f":"INDEX(K73:O73,0,Selected_Supply_Size_ID)","v":14},{"$f":"COUNTA(C57:C70)","v":5},{"$f":"COUNTA(D57:D70)","v":5},{"$f":"COUNTA(E57:E70)","v":5},{"$f":"COUNTA(F57:F70)","v":5},{"$f":"COUNTA(G57:G70)","v":4},null,{"$f":"COUNTA(I57:I70)","v":4},null,{"$f":"COUNTA(K57:K70)","v":14},{"$f":"COUNTA(L57:L70)","v":14},{"$f":"COUNTA(M57:M70)","v":14},{"$f":"COUNTA(N57:N70)","v":14},{"$f":"COUNTA(O57:O70)","v":14}]
[]
[]
[null,"LPU Voltage","Urban","Rural",null,null,null,null,null,null,"Compare Tables","SPU","ID","Base Tariff ID","Long Type"]
[null,{"$f":"INDEX($C77:$D77,Selected_Tariff_Type_ID)","v":"< 500V"},"< 500V","< 500V",null,null,null,null,null,null,{"$f":"(IF(Selected_Customer_Category_ID=1,L77,B57))","v":"Businessrate 1"},{"$f":"B57","v":"Businessrate 1"},1,{"$f":"IFERROR(INDEX($F$17:$F$52,MATCH(K77,Full_Tariff_List,0),0),0)","v":1},{"$f":"IFERROR(INDEX($L$17:$L$30,MATCH(N77,$M$17:$M$30,0),0),0)","v":"Commercial Urban"}]
[null,{"$f":"INDEX($C78:$D78,Selected_Tariff_Type_ID)","v":"≥ 500V & < 66kV"},"≥ 500V & < 66kV","≥ 500V & < 66kV",null,null,null,null,null,null,"Businessrate 4",{"$f":"B58","v":"Businessrate 4"},2,1,{"$f":"IFERROR(INDEX($L$17:$L$30,MATCH(N78,$M$17:$M$30,0),0),0)","v":"Commercial Urban"}]
[null,{"$f":"INDEX($C79:$D79,Selected_Tariff_Type_ID)","v":0},"≥ 66kV & ≤ 132kV",null,null,null,null,null,null,null,"Homepower 4",{"$f":"B59","v":"Homepower 4"},3,3,{"$f":"IFERROR(INDEX($L$17:$L$30,MATCH(N79,$M$17:$M$30,0),0),0)","v":"Residential Urban"}]
[null,{"$f":"INDEX($C80:$D80,Selected_Tariff_Type_ID)","v":0},"> 132kV",null,null,null,null,null,null,null,"Homelight 20A",{"$f":"B60","v":"Homelight 20A"},4,2,{"$f":"IFERROR(INDEX($L$17:$L$30,MATCH(N80,$M$17:$M$30,0),0),0)","v":"Residential Urban"}]
[null,null,null,null,null,null,null,null,null,null,"Homelight 60A",{"$f":"B61","v":"Homelight 60A"},5,2,{"$f":"IFERROR(INDEX($L$17:$L$30,MATCH(N81,$M$17:$M$30,0),0),0)","v":"Residential Urban"},null,null,{"$f":"COUNTA(R57:R70)","v":5},{"$f":"COUNTA(S57:S70)","v":5},5,5,4,4,0,14,5,5,5,9]
[null,{"$f":"INDEX($C82:$D82,Selected_Tariff_Type_ID)","v":2},{"$f":"COUNTA(C77:C80)","v":4},{"$f":"COUNTA(D77:D80)","v":2},null,null,null,null,null,null,"Landrate 1",{"$f":"B63","v":"Landrate 1"},6,4,{"$f":"IFERROR(INDEX($L$17:$L$30,MATCH(N82,$M$17:$M$30,0),0),0)","v":"Rural"}]
[null,null,null,null,null,null,null,null,null,null,"Landrate 4","Landrate 4",7,4,"Rural",null,null,"Munic"]
[null,"Voltage","LPU","SPU","Voltage ID",null,null,null,null,null,"Landrate Dx","Landrate Dx",8,4,"Rural",null,null,{"$f":"R56","v":"≤100kVA"},">100kVA & ≤500kVA",">500kVA & ≤1MVA",">1MVA & ≤5MVA",">5MVA","Key customer",0,"5kVA, 16kVA, 20A or 60A","25kVA","32kVA","50kVA",">50kVA"]
[null,{"$f":"IF(Selected_Customer_Category_ID=1,D85,C85)","v":"< 500V"},{"$f":"B77","v":"< 500V"},"< 500V",1,null,null,null,null,null,"Landlight 20A","Landlight 20A",9,4,"Rural",null,null,"Ruraflex","Ruraflex","Ruraflex","Ruraflex","Ruraflex",{"$f":"U85","v":"Ruraflex"},null,"Businessrate 1","Businessrate 1","Businessrate 1","Businessrate 2","Businessrate 2"]
[null,{"$f":"IF(Selected_Customer_Category_ID=1,D86,C86)","v":"≥ 500V & < 66kV"},{"$f":"B78","v":"≥ 500V & < 66kV"},"≥ 500V & < 66kV",2,null,null,null,null,null,"Landlight 60A","Landlight 60A",10,4,"Rural",null,null,"Miniflex","Miniflex","Miniflex","Miniflex","Nightsave Large","Nightsave Large",null,"Businessrate 4","Businessrate 4","Businessrate 4","Homepower 2","Businessrate 3"]
[null,{"$f":"IF(Selected_Customer_Category_ID=1,D87,C87)","v":0},{"$f":"B79","v":0},null,3,null,null,null,null,null,"Public Lighting All Night","Public Lighting All Night",11,11,"Commercial Urban",null,null,"Nightsave Small","Nightsave Small","Nightsave Small","Nightsave Large","Megaflex","Megaflex",null,"Homepower 4","Homepower 1","Homepower 1","Landrate 2","Homepower 2"]
[null,{"$f":"IF(Selected_Customer_Category_ID=1,D88,C88)","v":0},{"$f":"B80","v":0},null,4,null,null,null,null,null,"Public Lighting 24 Hours","Public Lighting 24 Hours",12,11,"Commercial Urban",null,null,"Nightsave Rural","Nightsave Rural","Nightsave Rural","Megaflex","Nightsave Rural","Nightsave Rural",null,"Landrate 1","Landrate 1","Landrate 1",null,"Homepower 3"]
[null,null,null,null,null,null,null,null,null,null,"Homeflex 4",{"$f":"B62","v":"Homeflex 4"},13,14,"Residential Urban",null,null,"Homepower Bulk","Homepower Bulk","Homepower Bulk","Nightsave Rural",null,null,null,"Landrate 4",null,null,null,"Landrate 2"]
[null,null,null,null,null,null,null,null,null,null,"Public Lighting Urban Fixed",{"$f":"B70","v":"Public Lighting Urban Fixed"},14,11,"Commercial Urban",null,null,null,null,null,null,null,null,null,"Landrate Dx",null,null,null,"Landrate 3"]
[null,{"$f":"IF(Selected_Customer_Category_ID=1,D91,C91)","v":2},{"$f":"B82","v":2},{"$f":"COUNTA(D85:D88)","v":2},null,null,null,null,null,null,{"$f":"IF(Selected_Customer_Category_ID=1,L91,B73)","v":14},{"$f":"Supply_Tariff_List_Count","v":14},null,null,null,null,null,null,null,null,null,null,null,null,"Public Lighting All Night"]
[null,null,null,null,null,null,null,null,null,null,null,null,null,null,null,null,null,null,null,null,null,null,null,null,"Public Lighting 24 Hours"]
[null,"Transmission zone","LPU","SPU","Transmission Zone ID",null,null,null,null,null,"Selected Tariff in Compare",{"$f":"MATCH(Selected_Base_Tariff,Compare_Tariff_List,0)","v":6},null,null,null,null,null,null,null,null,null,null,null,null,"Public Lighting Urban Fixed"]
[null,{"$f":"IF(Selected_Customer_Category_ID=1,D94,C94)","v":"Not Applicable"},"[0 - 300km]","Not Applicable",0]
[null,{"$f":"IF(Selected_Customer_Category_ID=1,D95,C95)","v":0},"[301 - 600km]",null,1]
[null,{"$f":"IF(Selected_Customer_Category_ID=1,D96,C96)","v":0},"[601 - 900km]",null,2]
[null,{"$f":"IF(Selected_Customer_Category_ID=1,D97,C97)","v":0},"[> 900km]",null,3]
[]
[null,{"$f":"IF(Selected_Customer_Category_ID=1,D99,C99)","v":1},{"$f":"COUNTA(C94:C97)","v":4},{"$f":"COUNTA(D94:D97)","v":1},null,null,null,null,null,null,"Compare_Tariff_List"]
[]
[]
[null,"Months","Month ID","Season"]
[]
[null,{"$f":"DATE(YEAR(Period)-1,2,)","v":"2024-01-31"},1,"Low Demand"]
[null,{"$f":"EOMONTH(B104,1)","v":"2024-02-29"},2,"Low Demand"]
[null,{"$f":"EOMONTH(B105,1)","v":"2024-03-31"},3,"High Demand"]
[null,"2024-04-30",4,"Low Demand"]
[null,"2024-05-31",5,"Low Demand",null,null,null,null,null,null,null,null,null,null,null,null,null,{"$f":"COUNTA(R86:R98)","v":4},4,4,4,3,3,null,{"$f":"COUNTA(Y86:Y98)","v":8},{"$f":"COUNTA(Z86:Z98)","v":3},{"$f":"COUNTA(AA86:AA98)","v":3},{"$f":"COUNTA(AB86:AB98)","v":2},{"$f":"COUNTA(AC86:AC98)","v":5}]
[null,"2024-06-30",6,"High Demand"]
[null,"2024-07-31",7,"High Demand"]
[null,"2024-08-31",8,"High Demand"]
[null,"2024-09-30",9,"Low Demand"]
[null,"2024-10-31",10,"Low Demand"]
[null,"2024-11-30",11,"Low Demand"]
[null,"2024-12-31",12,"Low Demand"]

{"sheet":"Notes on updates","index":12,"n_rows":104,"n_cols":7,"rows_kept":104,"cut":false,"hidden":true,"merged":[[104,0,109,0],[103,1,108,1],[2,1,16,1],[18,1,26,1],[28,1,33,1],[35,1,41,1],[43,1,49,1],[51,1,57,1],[59,1,69,1],[70,1,80,1],[81,1,91,1],[92,1,102,1]]}
[]
[null,null,"Notes on updates",null,"Sheet",null,"Status"]
[null,"2015/16","]","Need to add SPU tariffs"]
[null,null,null,"Public Lighting All Night",null,null,"Done"]
[null,null,null,"Public Lighting 24 Hours"]
[null,null,null,"Public Lighting Urban Fixed"]
[null,null,null,"Landlight"]
[]
[null,null,"]","Rates"]
[null,null,null,"Update the New with 2015/16 rates",null,null,"2014-12-05"]
[null,null,null,"Update the Current with 2014/15 rates",null,null,"2014-12-05"]
[]
[null,null,"]","SPU"]
[null,null,null,"Activate the Tx zone. This is needed for LPU tariff conversions",null,null,"2014-12-05"]
[]
[null,null,"]","Tariff component name changes"]
[null,null,null,"Change the Distribution network access charge NAC) to Distribution network capacity charge (NCC)",null,null,"2015-10-14"]
[]
[null,"2016/17","]","Need to add SPU tariffs"]
[null,null,null,"Landlight 20A","Mapping\nLists",null,"2016-02-22"]
[null,null,null,"Landlight 60A","Mapping\nLists",null,"2016-02-22"]
[]
[null,null,"]","Rates"]
[null,null,null,"Update the New with 2016/17 rates","Rates SPU - New",null,"2016-03-02"]
[null,null,null,"Update the Current with 2015/16 rates","Rates SPU - Current",null,"2016-03-02"]
[null,null,null,"Tested & validated by RPM's & super-users",null,null,"2016-02-15"]
[null,null,null,"Tested & validated by PI team",null,null,"2016-02-16"]
[]
[null,"2017/18"]
[null,null,"]","Rates"]
[null,null,null,"Update the New with 2017/18 rates","Rates SPU - New",null,"2017-03-10"]
[null,null,null,"Update the Current with 2016/17 rates","Rates SPU - Current",null,"2017-03-10"]
[null,null,null,"Tested & validated by RPM's & super-users"]
[null,null,null,"Tested & validated by PI team"]
[]
[null,"2018/19"]
[null,null,"]","Rates"]
[null,null,null,"Update the New with 2018/19 rates","Rates SPU - New",null,"2018-02-22"]
[null,null,null,"Update the Current with 2017/18 rates","Rates SPU - Current",null,"2018-02-22"]
[null,null,null,"Update VAT rate to 15%","Rates SPU - Current",null,"2018-02-22"]
[null,null,null,"Tested & validated by RPM's & super-users"]
[null,null,null,"Tested & validated by PI team"]
[]
[null,"2019/20"]
[null,null,"]","Rates"]
[null,null,null,"Update the New with 2019/20 rates","Rates SPU - New",null,"2019-03-11"]
[null,null,null,"Update the Current with 2018/19 rates","Rates SPU - Current",null,"2019-03-11"]
[null,null,null,"Update Eskom financial year  [Range K7]","Lists",null,"2019-03-11"]
[null,null,null,"Tested & validated by RPM's & super-users"]
[null,null,null,"Tested & validated by PI team"]
[]
[null,"2020/21"]
[null,null,"]","Rates"]
[null,null,null,"Update the New with 2020/21 rates","Rates SPU - New",null,"2020-03-10"]
[null,null,null,"Update the Current with 2019/20 rates","Rates SPU - Current",null,"2020-03-10"]
[null,null,null,"Update Eskom financial year  [Range K7]","Lists",null,"2020-03-10"]
[null,null,null,"Tested & validated by RPM's & super-users"]
[null,null,null,"Tested & validated by PI team"]
[]
[null,"RTP 2019/20"]
[null,null,"]","Rates"]
[null,null,null,"Update the New with RTP 2019/20 rates","Rates SPU - New",null,"2020-06-22"]
[null,null,null,"Update the Current with 2019/20 rates","Rates SPU - Current",null,"2020-06-22"]
[null,null,null,"Update Eskom financial year  [Range K7]","Lists","Add RTP tariffs\nRow 44 - 48\nRange Q56 - AB107","2020-06-22"]
[]
[]
[null,null,null,"Tested & validated by PI team",null,"Feedback on","2020-07-06"]
[null,null,null,"Tested & validated by Core Workgroup",null,"Send out on","2020-07-06"]
[null,null,null,"Update for Public Lighting Urban Fixed",null,null,"2020-07-17"]
[]
[null,"RTP 2021/22"]
[null,null,"]","Rates"]
[null,null,null,"Update the New with RTP 2021/22 rates","Rates SPU - New",null,"2022-08-11"]
[null,null,null,"Update the Current with 2021/22 rates","Rates SPU - Current",null,"2022-08-11"]
[null,null,null,"Update Eskom financial year  [Range K7]","Lists",null,"2022-08-11"]
[null,null,null,"Add RTP Generation capacity charge","Rates SPU - New",null,"2022-08-11"]
[null,null,null,null,"Workings",null,"2022-08-11"]
[null,null,null,null,"Rates Table",null,"2022-08-11"]
[null,null,null,null,"  Monthly Average Bill",null,"2022-08-11"]
[null,null,null,null,"  Tariff Comparison",null,"2022-08-11"]
[]
[null,"RTP 2023/24"]
[null,null,"]","Rates"]
[null,null,null,"Update the New with RTP 2023/24 rates","Rates SPU - New",null,"2022-12-12"]
[null,null,null,"Update the Current with 2023/24 rates","Rates SPU - Current",null,"2022-12-12"]
[null,null,null,"Update Eskom financial year  [Range K7]","Lists",null,"2022-12-12"]
[null,null,null,"Add RTP Generation capacity charge","Rates SPU - New",null,"2022-12-12"]
[null,null,null,null,"Workings",null,"2022-12-12"]
[null,null,null,null,"Rates Table",null,"2022-12-12"]
[null,null,null,null,"  Monthly Average Bill",null,"2022-12-12"]
[null,null,null,null,"  Tariff Comparison",null,"2022-12-12"]
[]
[null,"RTP 2024/25"]
[null,null,"]","Rates"]
[null,null,null,"Update the New with RTP 2024/25 rates","Rates SPU - New",null,"2024-07-30"]
[null,null,null,"Update the Current with 2024/25 rates","Rates SPU - Current",null,"2024-07-30"]
[null,null,null,"Update Eskom financial year  [Range K7]","Lists",null,"2024-07-30"]
[null,null,null,"Add RTP Generation capacity charge","Rates SPU - New",null,"2024-07-30"]
[null,null,null,"Add RTP Legacy charge","Workings",null,"2024-07-30"]
[null,null,null,null,"Rates Table",null,"2024-07-30"]
[null,null,null,null,"  Monthly Average Bill",null,"2024-07-30"]
[null,null,null,null,"  Tariff Comparison",null,"2024-07-30"]
[]
[null,null,null,"Include Homeflex default profile","Inputs",null,"2024-07-31"]